{"text_format":"3","workbook":"xlsx","n_sheets":1,"sheets":["WYKAZ URZĄDZEŃ"],"not_rendered":{"macros":1,"defined_names":14},"read":"whole","date_system":"1900"}

{"sheet":"WYKAZ URZĄDZEŃ","index":0,"n_rows":525,"n_cols":14,"rows_kept":525}
[null,"FORMULARZ CENOWY (WYKAZ URZĄDZEŃ) DLA ZADANIA NR 1 -SERWISOWANIE INSTALACJI KLIMATYZACJI I WENTYLACJI "]
[null,"ŁĄCZNA WARTOŚĆ PRZEGLĄDÓW:","ILOŚĆ POZYCJI",null,"ILOŚĆ URZĄDZEŃ"]
[null,{"$f":"SUM(Wykaz_zapasów5[ŁĄCZNA WARTOŚĆ \nPRZEGLĄDÓW])","v":{"v":0,"d":"0.00 zł"}},{"$f":"COUNTA(Wykaz_zapasów5[Typ urządzenia])","v":518},null,{"$f":"SUM(Wykaz_zapasów5[Ilość urządzeń])","v":1194}]
[null,"Nazwa urządzenia","Typ urządzenia","Budynek/Pomieszczenie","Ilość urządzeń","Ilość przeglądów","Typ wkładów filtrów","Ilośc filtrów \ndo wymiany","Krotność wymiany \nfiltrów","Dezynfekcja \nurządzenia","Koszt za I przegląd\nbrutto","Koszt za II przegląd\nbrutto","ŁĄCZNA WARTOŚĆ \nPRZEGLĄDÓW","Urżdzenie na gwarancji"]
[null,"KOMPLEKS 925",{"$nulls":4},{"$f":"IFERROR(VLOOKUP(Wykaz_zapasów5[[#This Row],[Ilość przeglądów]],#REF!,3,FALSE),\"\")","v":""},{"$nulls":5},{"$f":"Wykaz_zapasów5[[#This Row],[Koszt za I przegląd\nbrutto]]+Wykaz_zapasów5[[#This Row],[Koszt za II przegląd\nbrutto]]","v":{"v":0,"d":"0.00 zł"}},{"$f":"IFERROR(IF(Wykaz_zapasów5[[#This Row],[Dezynfekcja \nurządzenia]]<=Wykaz_zapasów5[[#This Row],[Koszt za I przegląd\nbrutto]],1,0),0)","v":1}]
[null,"Instalacja N3/W3 :\nCentrala Nawiewna N3,wywiew za pomocą \nkonwektora dachowego W3, szafa sterująca.","CLIMA PRODUKT HERMES APN 1-P-1000/200, W3 : Konwektor typ. WVPKV-250 silnik typ. Skh80x,  szafa sterująca STEUR ACS","Bud. Nr 1",1,1,"G4 450/236/360",1,"2 razy w roku","NIE",{"v":0,"d":"0.00 zł"},null,{"$f":"Wykaz_zapasów5[[#This Row],[Koszt za I przegląd\nbrutto]]+Wykaz_zapasów5[[#This Row],[Koszt za II przegląd\nbrutto]]","v":{"v":0,"d":"0.00 zł"}},"NIE"]
[null,"Instalacja N2/W2 :\nWentylator nawiewu (kanałowy) + \nnagrzewnica elektryczna, \nwywiew za pomocą konwektora dachowego W2, \nszafa sterująca.","TD800/200LS 120W,  nagrzewnica : DH-200/60 6kW, W2 : konwektor typ. WVPKV-200 silnik typ. Skh-711-6A, szafa sterująca STEUR ACS ","Bud. Nr 1",1,1,"EU4 DF-200 mata filtracyjna 360x250",1,"2 razy w roku","NIE",{"v":0,"d":"0.00 zł"},null,{"$f":"Wykaz_zapasów5[[#This Row],[Koszt za I przegląd\nbrutto]]+Wykaz_zapasów5[[#This Row],[Koszt za II przegląd\nbrutto]]","v":{"v":0,"d":"0.00 zł"}},"NIE"]
[null,"Instalacja N1/W1 :Wentylator nawiewu (kanałowy) + \nnagrzewnica elektryczna, \nwywiew za pomocą konwektora dachowego W1","TD800/200LS 120W,  nagrzewnica : DH-200/60 6kW, W1 : konwektor typ. WVPKV-200 silnik typ. Skh-711-6A, szafa sterująca   STEUR ACS","Bud. Nr 1",1,1,"EU4 DF-200 mata filtracyjna 360x250",1,"2 razy w roku","NIE",{"v":0,"d":"0.00 zł"},null,{"$f":"Wykaz_zapasów5[[#This Row],[Koszt za I przegląd\nbrutto]]+Wykaz_zapasów5[[#This Row],[Koszt za II przegląd\nbrutto]]","v":{"v":0,"d":"0.00 zł"}},"NIE"]
[null,"Instalacja SW : \nwentylatory łazienkowe ","EBB 250 N/VL  0,51kW","Bud. Nr 1",11,1,"NIE WYSTĘPUJĄ",0,0,"NIE",{"v":0,"d":"0.00 zł"},null,{"$f":"Wykaz_zapasów5[[#This Row],[Koszt za I przegląd\nbrutto]]+Wykaz_zapasów5[[#This Row],[Koszt za II przegląd\nbrutto]]","v":{"v":0,"d":"0.00 zł"}},"NIE"]
[null,"Wentylator Dachowy","WD TIPO \nTH500/160 ","Bud. Nr 1",1,1,"NIE WYSTĘPUJĄ",0,0,"NIE",{"v":0,"d":"0.00 zł"},null,{"$f":"Wykaz_zapasów5[[#This Row],[Koszt za I przegląd\nbrutto]]+Wykaz_zapasów5[[#This Row],[Koszt za II przegląd\nbrutto]]","v":{"v":0,"d":"0.00 zł"}},"NIE"]
[null,"Klimatyzator Multi Split K1","Jednostka zewnętrzna:                 LG FM40AH (A7UW40FA3) s/n 801KALC00384","Bud. Nr 1",1,1,"NIE WYSTĘPUJĄ",0,0,"TAK",{"v":0,"d":"0.00 zł"},null,{"$f":"Wykaz_zapasów5[[#This Row],[Koszt za I przegląd\nbrutto]]+Wykaz_zapasów5[[#This Row],[Koszt za II przegląd\nbrutto]]","v":{"v":0,"d":"0.00 zł"}},"NIE"]
[null,null,"Rozdzielacz:\nPAC-AK 50 BC","Bud. Nr 1",1,1,"NIE WYSTĘPUJĄ",0,0,"TAK",{"v":0,"d":"0.00 zł"},null,{"$f":"Wykaz_zapasów5[[#This Row],[Koszt za I przegląd\nbrutto]]+Wykaz_zapasów5[[#This Row],[Koszt za II przegląd\nbrutto]]","v":{"v":0,"d":"0.00 zł"}},"NIE"]
[null,1,"Jednostka wewnętrzna:\nLG MS12AH (AMNH12GD4LO)","Bud. Nr 1 / pom. 31",1,1,"NIE WYSTĘPUJĄ",0,0,"TAK",{"v":0,"d":"0.00 zł"},null,{"$f":"Wykaz_zapasów5[[#This Row],[Koszt za I przegląd\nbrutto]]+Wykaz_zapasów5[[#This Row],[Koszt za II przegląd\nbrutto]]","v":{"v":0,"d":"0.00 zł"}},"NIE"]
[null,2,"LG MS18AH\n(AMNH18GD5LO)","Bud. Nr 1 /pom. 29",1,1,"NIE WYSTĘPUJĄ",0,0,"TAK",{"v":0,"d":"0.00 zł"},null,{"$f":"Wykaz_zapasów5[[#This Row],[Koszt za I przegląd\nbrutto]]+Wykaz_zapasów5[[#This Row],[Koszt za II przegląd\nbrutto]]","v":{"v":0,"d":"0.00 zł"}},"NIE"]
[null,3,"LG MS09AH\n(AMNH09GD4LO)","Bud. Nr 1 /pom. 33",1,1,"NIE WYSTĘPUJĄ",0,0,"TAK",{"v":0,"d":"0.00 zł"},null,{"$f":"Wykaz_zapasów5[[#This Row],[Koszt za I przegląd\nbrutto]]+Wykaz_zapasów5[[#This Row],[Koszt za II przegląd\nbrutto]]","v":{"v":0,"d":"0.00 zł"}},"NIE"]
[null,4,"LG MS12AH\n(AMNH12GD4LO)","Bud. Nr 1 /pom. 32",1,1,"NIE WYSTĘPUJĄ",0,0,"TAK",{"v":0,"d":"0.00 zł"},null,{"$f":"Wykaz_zapasów5[[#This Row],[Koszt za I przegląd\nbrutto]]+Wykaz_zapasów5[[#This Row],[Koszt za II przegląd\nbrutto]]","v":{"v":0,"d":"0.00 zł"}},"NIE"]
[null,"Klimatyzator Multi Split K2","\nJednostka zewnętrzna:\nLG FM30AH (A5KW306FA3)\ns/n 904KAAE00256\n","Bud. Nr 1",1,1,"NIE WYSTĘPUJĄ",0,0,"TAK",{"v":0,"d":"0.00 zł"},null,{"$f":"Wykaz_zapasów5[[#This Row],[Koszt za I przegląd\nbrutto]]+Wykaz_zapasów5[[#This Row],[Koszt za II przegląd\nbrutto]]","v":{"v":0,"d":"0.00 zł"}},"NIE"]
[null,1,"Jednostka wewnetrzna:\nLG MS09AH (AMNH09GD4LO)","Bud. Nr 1 /pom. 143",1,1,"NIE WYSTĘPUJĄ",0,0,"TAK",{"v":0,"d":"0.00 zł"},null,{"$f":"Wykaz_zapasów5[[#This Row],[Koszt za I przegląd\nbrutto]]+Wykaz_zapasów5[[#This Row],[Koszt za II przegląd\nbrutto]]","v":{"v":0,"d":"0.00 zł"}},"NIE"]
[null,2,"LG MS12AH (AMNH12GD4LO)","Bud. Nr 1 /pom. 144",1,1,"NIE WYSTĘPUJĄ",0,0,"TAK",{"v":0,"d":"0.00 zł"},null,{"$f":"Wykaz_zapasów5[[#This Row],[Koszt za I przegląd\nbrutto]]+Wykaz_zapasów5[[#This Row],[Koszt za II przegląd\nbrutto]]","v":{"v":0,"d":"0.00 zł"}},"NIE"]
[null,3,"LG MSA09AH (AMNH09GD4LO)","Bud. Nr 1 /pom. 140",1,1,"NIE WYSTĘPUJĄ",0,0,"TAK",{"v":0,"d":"0.00 zł"},null,{"$f":"Wykaz_zapasów5[[#This Row],[Koszt za I przegląd\nbrutto]]+Wykaz_zapasów5[[#This Row],[Koszt za II przegląd\nbrutto]]","v":{"v":0,"d":"0.00 zł"}},"NIE"]
[null,4,"LG MSA12AH (AMNH12GD4LO)","Bud. Nr 1 /pom. 142",1,1,"NIE WYSTĘPUJĄ",0,0,"TAK",{"v":0,"d":"0.00 zł"},null,{"$f":"Wykaz_zapasów5[[#This Row],[Koszt za I przegląd\nbrutto]]+Wykaz_zapasów5[[#This Row],[Koszt za II przegląd\nbrutto]]","v":{"v":0,"d":"0.00 zł"}},"NIE"]
[null,"Klimatyzator Split K3","Jednostka zewnętrzna:\nSINCLAIR ASH-13BIF2\ns/n 4m52580025548","Bud. Nr 1",1,1,"NIE WYSTĘPUJĄ",0,0,"TAK",{"v":0,"d":"0.00 zł"},null,{"$f":"Wykaz_zapasów5[[#This Row],[Koszt za I przegląd\nbrutto]]+Wykaz_zapasów5[[#This Row],[Koszt za II przegląd\nbrutto]]","v":{"v":0,"d":"0.00 zł"}},"TAK"]
[null,null,"Jednostka wewnętrzna:\nSINCLAIR ASH-13BIF2\ns/n 4m94880001292","Bud. Nr 1",1,1,"NIE WYSTĘPUJĄ",0,0,"TAK",{"v":0,"d":"0.00 zł"},null,{"$f":"Wykaz_zapasów5[[#This Row],[Koszt za I przegląd\nbrutto]]+Wykaz_zapasów5[[#This Row],[Koszt za II przegląd\nbrutto]]","v":{"v":0,"d":"0.00 zł"}},"TAK"]
[null,"Klimatyzator Split K4","Jednostka zewnętrzna:\nSINCLAIR SOH-12 BIK2\ns/n 63249910332","Bud. Nr 1",1,1,"NIE WYSTĘPUJĄ",0,0,"TAK",{"v":0,"d":"0.00 zł"},null,{"$f":"Wykaz_zapasów5[[#This Row],[Koszt za I przegląd\nbrutto]]+Wykaz_zapasów5[[#This Row],[Koszt za II przegląd\nbrutto]]","v":{"v":0,"d":"0.00 zł"}},"NIE"]
[null,null,"Jednostka wewnętrzna:\nSINCLAIR SIH-12 BIK2\ns/n 4U77920010531","Bud. Nr 1 /pom. 148\nSERWEROWNIA",1,1,"NIE WYSTĘPUJĄ",0,0,"TAK",{"v":0,"d":"0.00 zł"},null,{"$f":"Wykaz_zapasów5[[#This Row],[Koszt za I przegląd\nbrutto]]+Wykaz_zapasów5[[#This Row],[Koszt za II przegląd\nbrutto]]","v":{"v":0,"d":"0.00 zł"}},"NIE"]
[null,"Klimatyzator Split K5","Jednostka zewnetrzna:\nLG K09AH (ESKH0964EA1)\ns/n 901TKRT000530","Bud. Nr 1",1,1,"NIE WYSTĘPUJĄ",0,0,"TAK",{"v":0,"d":"0.00 zł"},null,{"$f":"Wykaz_zapasów5[[#This Row],[Koszt za I przegląd\nbrutto]]+Wykaz_zapasów5[[#This Row],[Koszt za II przegląd\nbrutto]]","v":{"v":0,"d":"0.00 zł"}},"NIE"]
[null,null,"Jednostka wewnętrzna:\nLG K09AH (ESNH0964EA1)","Bud. Nr 1 /pom. 148\nSERWEROWNIA",1,1,"NIE WYSTĘPUJĄ",0,0,"TAK",{"v":0,"d":"0.00 zł"},null,{"$f":"Wykaz_zapasów5[[#This Row],[Koszt za I przegląd\nbrutto]]+Wykaz_zapasów5[[#This Row],[Koszt za II przegląd\nbrutto]]","v":{"v":0,"d":"0.00 zł"}},"NIE"]
[null,"Klimatyzator Split K6","Jednostka zewnętrzna:\nLG K12AH (ESNH126E3A0)\ns/n 903TKZ0001125","Bud. Nr 1",1,1,"NIE WYSTĘPUJĄ",0,0,"TAK",{"v":0,"d":"0.00 zł"},null,{"$f":"Wykaz_zapasów5[[#This Row],[Koszt za I przegląd\nbrutto]]+Wykaz_zapasów5[[#This Row],[Koszt za II przegląd\nbrutto]]","v":{"v":0,"d":"0.00 zł"}},"NIE"]
[null,null,"Jednostka wewnetrzna:\nLG K12AH (ESNH126E3A0)\ns/n 903TKWK011073","Bud. Nr 1 /pom. 51\nOficer Dyżurny",1,1,"NIE WYSTĘPUJĄ",0,0,"TAK",{"v":0,"d":"0.00 zł"},null,{"$f":"Wykaz_zapasów5[[#This Row],[Koszt za I przegląd\nbrutto]]+Wykaz_zapasów5[[#This Row],[Koszt za II przegląd\nbrutto]]","v":{"v":0,"d":"0.00 zł"}},"NIE"]
[null,"Klimatyzator Split K7","Jednostka zewnetrzna:\nHYUNDAI HRP518WH\ns/n KOB2342E081900768","Bud. Nr 1",1,1,"NIE WYSTĘPUJĄ",0,0,"TAK",{"v":0,"d":"0.00 zł"},null,{"$f":"Wykaz_zapasów5[[#This Row],[Koszt za I przegląd\nbrutto]]+Wykaz_zapasów5[[#This Row],[Koszt za II przegląd\nbrutto]]","v":{"v":0,"d":"0.00 zł"}},"TAK"]
[null,null,"Jednostka wewnętrzna:\nHYUNDAI HRP518WH\ns/n K1B1402E0819002954","Bud. Nr 1",1,1,"NIE WYSTĘPUJĄ",0,0,"TAK",{"v":0,"d":"0.00 zł"},null,{"$f":"Wykaz_zapasów5[[#This Row],[Koszt za I przegląd\nbrutto]]+Wykaz_zapasów5[[#This Row],[Koszt za II przegląd\nbrutto]]","v":{"v":0,"d":"0.00 zł"}},"TAK"]
[null,"Klimatyzator przenośny","CHIGO 3,5 Kw","Bud. Nr 1",3,1,"NIE WYSTĘPUJĄ",0,0,"TAK",{"v":0,"d":"0.00 zł"},null,{"$f":"Wykaz_zapasów5[[#This Row],[Koszt za I przegląd\nbrutto]]+Wykaz_zapasów5[[#This Row],[Koszt za II przegląd\nbrutto]]","v":{"v":0,"d":"0.00 zł"}},"NIE"]
[null,"Klimatyzator Split K8","Jednostka zewnętrzna:\nSINCLAIR ASH-13BIF2\ns/n 63229992862\n","Bud. Nr 1\nElewacja budynku (tył)",1,1,"NIE WYSTĘPUJĄ",0,0,"TAK",{"v":0,"d":"0.00 zł"},null,{"$f":"Wykaz_zapasów5[[#This Row],[Koszt za I przegląd\nbrutto]]+Wykaz_zapasów5[[#This Row],[Koszt za II przegląd\nbrutto]]","v":{"v":0,"d":"0.00 zł"}},"NIE"]
[null,null,"Jednostka wewnętrzna:\nSINCLAIR ASH-13BIF2\ns/n 4M94800004630","Bud. Nr 1 /pom. 138",1,1,"NIE WYSTĘPUJĄ",0,0,"TAK",{"v":0,"d":"0.00 zł"},null,{"$f":"Wykaz_zapasów5[[#This Row],[Koszt za I przegląd\nbrutto]]+Wykaz_zapasów5[[#This Row],[Koszt za II przegląd\nbrutto]]","v":{"v":0,"d":"0.00 zł"}},"NIE"]
["Klimatyzator","Klimatyzator Split","Jednostka zewnętrzna:\nSINCLAIR SOH-12 BIK-2\ns/n 63249922829","Bud. Nr 1/ dach",1,2,"NIE WYSTĘPUJĄ",0,0,"TAK",null,null,{"$f":"Wykaz_zapasów5[[#This Row],[Koszt za I przegląd\nbrutto]]+Wykaz_zapasów5[[#This Row],[Koszt za II przegląd\nbrutto]]","v":{"v":0,"d":"0.00 zł"}},"TAK"]
[null,null,"Jednostka wewnętrzna:\nSINCLAIR SIH-12 BIK\ns/n 63249910330","Bud. Nr 1/pom 113",1,2,"NIE WYSTĘPUJĄ",0,0,"TAK",null,null,{"$f":"Wykaz_zapasów5[[#This Row],[Koszt za I przegląd\nbrutto]]+Wykaz_zapasów5[[#This Row],[Koszt za II przegląd\nbrutto]]","v":{"v":0,"d":"0.00 zł"}},"TAK"]
[null,"Klimatyzator Split K1","Jednostka zewnętrzna:\nSINCLAIR ASH-13BIF2\ns/n 4m52580015009","Bud. Nr 2\nElewacja budynku (bok)",1,1,"NIE WYSTĘPUJĄ",0,0,"TAK",{"v":0,"d":"0.00 zł"},null,{"$f":"Wykaz_zapasów5[[#This Row],[Koszt za I przegląd\nbrutto]]+Wykaz_zapasów5[[#This Row],[Koszt za II przegląd\nbrutto]]","v":{"v":0,"d":"0.00 zł"}},"TAK"]
[null,null,"Jednostka wewnętrzna:\nSINCLAIR ASH-13BIF2\ns/n 4m94880001410","Bud. Nr 2 / pom.\nSerwerownia (parter)",1,1,"NIE WYSTĘPUJĄ",0,0,"TAK",{"v":0,"d":"0.00 zł"},null,{"$f":"Wykaz_zapasów5[[#This Row],[Koszt za I przegląd\nbrutto]]+Wykaz_zapasów5[[#This Row],[Koszt za II przegląd\nbrutto]]","v":{"v":0,"d":"0.00 zł"}},"TAK"]
[null,"Klimatyzator Split K2","Jednostka zewnętrzna:\nFONKO FO-E244LG 6,3 kW","Bud. Nr 2\nElewacja budynku ",1,1,"NIE WYSTĘPUJĄ",0,0,"TAK",{"v":0,"d":"0.00 zł"},null,{"$f":"Wykaz_zapasów5[[#This Row],[Koszt za I przegląd\nbrutto]]+Wykaz_zapasów5[[#This Row],[Koszt za II przegląd\nbrutto]]","v":{"v":0,"d":"0.00 zł"}},"NIE"]
[null,null,"Jednostka wewnętrzna:\nFONKO FO-E244LG 6,3 kW","Bud. Nr 2\nParter",1,1,"NIE WYSTĘPUJĄ",0,0,"TAK",{"v":0,"d":"0.00 zł"},null,{"$f":"Wykaz_zapasów5[[#This Row],[Koszt za I przegląd\nbrutto]]+Wykaz_zapasów5[[#This Row],[Koszt za II przegląd\nbrutto]]","v":{"v":0,"d":"0.00 zł"}},"NIE"]
[null,"Klimatyzator przenośny","CHIGO 3,5 Kw","Bud. Nr 2",1,1,"NIE WYSTĘPUJĄ",0,0,"TAK",{"v":0,"d":"0.00 zł"},null,{"$f":"Wykaz_zapasów5[[#This Row],[Koszt za I przegląd\nbrutto]]+Wykaz_zapasów5[[#This Row],[Koszt za II przegląd\nbrutto]]","v":{"v":0,"d":"0.00 zł"}},"NIE"]
[null,"Klimatyzator Split K3","Jednostka zewnętrzna:\nSAMSUNG AR 35\nAR18TXHQASINEU","Bud. Nr 2\nElewacja budynku (tył)",1,1,"NIE WYSTĘPUJĄ",0,0,"TAK",{"v":0,"d":"0.00 zł"},null,{"$f":"Wykaz_zapasów5[[#This Row],[Koszt za I przegląd\nbrutto]]+Wykaz_zapasów5[[#This Row],[Koszt za II przegląd\nbrutto]]","v":{"v":0,"d":"0.00 zł"}},"TAK"]
[null,null,"Jednostka wewnętrzna:\nSAMSUNG AR 35\nAR18TXHQASINEU\ns/n BDE2P8DRC04779F","Bud. Nr 2 / pom.\nParter sala odpraw",1,1,"NIE WYSTĘPUJĄ",0,0,"TAK",{"v":0,"d":"0.00 zł"},null,{"$f":"Wykaz_zapasów5[[#This Row],[Koszt za I przegląd\nbrutto]]+Wykaz_zapasów5[[#This Row],[Koszt za II przegląd\nbrutto]]","v":{"v":0,"d":"0.00 zł"}},"TAK"]
[null,"Klimatyzator Split K4","Jednostka zewnętrzna:\nSAMSUNG AR 35\nAR18TXHQASINEU","Bud. Nr 2\nElewacja budynku (tył)",1,1,"NIE WYSTĘPUJĄ",0,0,"TAK",{"v":0,"d":"0.00 zł"},null,{"$f":"Wykaz_zapasów5[[#This Row],[Koszt za I przegląd\nbrutto]]+Wykaz_zapasów5[[#This Row],[Koszt za II przegląd\nbrutto]]","v":{"v":0,"d":"0.00 zł"}},"TAK"]
[null,null,"Jednostka wewnętrzna:\nSAMSUNG AR 35\nAR18TXHQASINEU","Bud. Nr 2 / pom.\nParter sala odpraw (mała)",1,1,"NIE WYSTĘPUJĄ",0,0,"TAK",{"v":0,"d":"0.00 zł"},null,{"$f":"Wykaz_zapasów5[[#This Row],[Koszt za I przegląd\nbrutto]]+Wykaz_zapasów5[[#This Row],[Koszt za II przegląd\nbrutto]]","v":{"v":0,"d":"0.00 zł"}},"TAK"]
[null,"Centrala wentylacyjna","SWEGON Gold 04C","Bud. Nr 4 \nKuchnia",6,1,"F5 355/425/335",24,"2 razy w roku","NIE",{"v":0,"d":"0.00 zł"},null,{"$f":"Wykaz_zapasów5[[#This Row],[Koszt za I przegląd\nbrutto]]+Wykaz_zapasów5[[#This Row],[Koszt za II przegląd\nbrutto]]","v":{"v":0,"d":"0.00 zł"}},"NIE"]
[null,"Centrala wentylacyjna","SWEGON Gold 40C","Bud. Nr 4 \nKuchnia",2,1,"F5 592/592/620\n592/287/620","12\n4","2 razy w roku","NIE",{"v":0,"d":"0.00 zł"},null,{"$f":"Wykaz_zapasów5[[#This Row],[Koszt za I przegląd\nbrutto]]+Wykaz_zapasów5[[#This Row],[Koszt za II przegląd\nbrutto]]","v":{"v":0,"d":"0.00 zł"}},"NIE"]
[null,"Centrala wentylacyjna","SWEGON Gold 60C","Bud. Nr 4 \nKuchnia",2,1,"F7 592/592/620",24,"2 razy w roku","NIE",{"v":0,"d":"0.00 zł"},null,{"$f":"Wykaz_zapasów5[[#This Row],[Koszt za I przegląd\nbrutto]]+Wykaz_zapasów5[[#This Row],[Koszt za II przegląd\nbrutto]]","v":{"v":0,"d":"0.00 zł"}},"NIE"]
[null,"Agregat wody lodowej","BLUEBOX KAPPA\nEchos FC ST 1PS 38.1","Bud. Nr 4 \nKuchnia",1,1,"NIE WYSTĘPUJĄ",0,0,"NIE",{"v":0,"d":"0.00 zł"},null,{"$f":"Wykaz_zapasów5[[#This Row],[Koszt za I przegląd\nbrutto]]+Wykaz_zapasów5[[#This Row],[Koszt za II przegląd\nbrutto]]","v":{"v":0,"d":"0.00 zł"}},"NIE"]
[null,"Klimatyzator Split K5","Jednostka zewnętrzna:\nFUJITSU AOY14USBC","Bud. Nr 4 \nKuchnia/dach",1,1,"NIE WYSTĘPUJĄ",0,0,"TAK",{"v":0,"d":"0.00 zł"},null,{"$f":"Wykaz_zapasów5[[#This Row],[Koszt za I przegląd\nbrutto]]+Wykaz_zapasów5[[#This Row],[Koszt za II przegląd\nbrutto]]","v":{"v":0,"d":"0.00 zł"}},"NIE"]
[null,null,"Jednostka wewnętrzna:\nFUJITSU ASY14USBCW","Bud. Nr 4 \nSala Generalska",1,1,"NIE WYSTĘPUJĄ",0,0,"TAK",{"v":0,"d":"0.00 zł"},null,{"$f":"Wykaz_zapasów5[[#This Row],[Koszt za I przegląd\nbrutto]]+Wykaz_zapasów5[[#This Row],[Koszt za II przegląd\nbrutto]]","v":{"v":0,"d":"0.00 zł"}},"NIE"]
[null,"Klimatyzator Split ","Jednostka zewnętrzna:\nFUJITSU AOY14USBC","Bud. Nr 4 \nKuchnia/dach",1,1,"NIE WYSTĘPUJĄ",0,0,"TAK",{"v":0,"d":"0.00 zł"},null,{"v":0,"d":"0.00 zł"},"NIE"]
[null,null,"Jednostka wewnętrzna:\nFUJITSU ASY14USBCW","Bud. Nr 4 \nSala Generalska",1,1,"NIE WYSTĘPUJĄ",0,0,"TAK",{"v":0,"d":"0.00 zł"},null,{"v":0,"d":"0.00 zł"},"NIE"]
[null,"Klimatyzator Split","Jednostka zewnętrzna:\nSINCLAIR SOH-18 BIK\ns/n 4544740018907","Bud. Nr 4\npatio",1,2,"NIE WYSTĘPUJĄ",0,0,"TAK",null,null,{"$f":"Wykaz_zapasów5[[#This Row],[Koszt za I przegląd\nbrutto]]+Wykaz_zapasów5[[#This Row],[Koszt za II przegląd\nbrutto]]","v":{"v":0,"d":"0.00 zł"}},"TAK"]
[null,null,"Jednostka wewnętrzna:\nSINCLAIR SIH-18 BIK\ns/n 4381240005241","Bud. Nr 4 pom. 16",1,2,"NIE WYSTĘPUJĄ",0,0,"TAK",null,null,{"$f":"Wykaz_zapasów5[[#This Row],[Koszt za I przegląd\nbrutto]]+Wykaz_zapasów5[[#This Row],[Koszt za II przegląd\nbrutto]]","v":{"v":0,"d":"0.00 zł"}},"TAK"]
[null,"Wentylator kanałowy","DECOR 100","Bud. Nr 4 \npom.18 i 20",2,1,"NIE WYSTĘPUJĄ",0,0,"NIE",{"v":0,"d":"0.00 zł"},null,{"$f":"Wykaz_zapasów5[[#This Row],[Koszt za I przegląd\nbrutto]]+Wykaz_zapasów5[[#This Row],[Koszt za II przegląd\nbrutto]]","v":{"v":0,"d":"0.00 zł"}},"NIE"]
[null,"Wentylator kanałowy","TD 800/200","Bud. Nr 4\npom. 12 i zmywalni",2,1,"NIE WYSTĘPUJĄ",0,0,"NIE",{"v":0,"d":"0.00 zł"},null,{"$f":"Wykaz_zapasów5[[#This Row],[Koszt za I przegląd\nbrutto]]+Wykaz_zapasów5[[#This Row],[Koszt za II przegląd\nbrutto]]","v":{"v":0,"d":"0.00 zł"}},"NIE"]
[null,"Wentylator kanałowy","TD 1000/250","Bud. Nr 4\npom.22",1,1,"NIE WYSTĘPUJĄ",0,0,"NIE",{"v":0,"d":"0.00 zł"},null,{"$f":"Wykaz_zapasów5[[#This Row],[Koszt za I przegląd\nbrutto]]+Wykaz_zapasów5[[#This Row],[Koszt za II przegląd\nbrutto]]","v":{"v":0,"d":"0.00 zł"}},"NIE"]
[null,"Wentylator kanałowy","TD 160/100","Bud. Nr 4\npom. Łaźni parter",1,1,"NIE WYSTĘPUJĄ",0,0,"NIE",{"v":0,"d":"0.00 zł"},null,{"$f":"Wykaz_zapasów5[[#This Row],[Koszt za I przegląd\nbrutto]]+Wykaz_zapasów5[[#This Row],[Koszt za II przegląd\nbrutto]]","v":{"v":0,"d":"0.00 zł"}},"NIE"]
[null,"Wentylator kanałowy","EBB 250 N/VL  0,51kW","Bud. Nr 4\npom. 48",1,1,"NIE WYSTĘPUJĄ",0,0,"NIE",{"v":0,"d":"0.00 zł"},null,{"$f":"Wykaz_zapasów5[[#This Row],[Koszt za I przegląd\nbrutto]]+Wykaz_zapasów5[[#This Row],[Koszt za II przegląd\nbrutto]]","v":{"v":0,"d":"0.00 zł"}},"NIE"]
[null,"Wentylator kanałowy","TD 500","Bud. Nr 4\npom. 111 i 138",2,1,"NIE WYSTĘPUJĄ",0,0,"NIE",{"v":0,"d":"0.00 zł"},null,{"$f":"Wykaz_zapasów5[[#This Row],[Koszt za I przegląd\nbrutto]]+Wykaz_zapasów5[[#This Row],[Koszt za II przegląd\nbrutto]]","v":{"v":0,"d":"0.00 zł"}},"NIE"]
[null,"Wentylator kanałowy","HARDI","Bud. Nr 4\npom. 136",1,1,"NIE WYSTĘPUJĄ",0,0,"NIE",{"v":0,"d":"0.00 zł"},null,{"$f":"Wykaz_zapasów5[[#This Row],[Koszt za I przegląd\nbrutto]]+Wykaz_zapasów5[[#This Row],[Koszt za II przegląd\nbrutto]]","v":{"v":0,"d":"0.00 zł"}},"NIE"]
[null,"Wentylator kanałowy","TD","Bud. Nr 4\npom. 20, 109, 118 \ni zmywalnia pientro",4,1,"NIE WYSTĘPUJĄ",0,0,"NIE",{"v":0,"d":"0.00 zł"},null,{"$f":"Wykaz_zapasów5[[#This Row],[Koszt za I przegląd\nbrutto]]+Wykaz_zapasów5[[#This Row],[Koszt za II przegląd\nbrutto]]","v":{"v":0,"d":"0.00 zł"}},"NIE"]
[null,"Wentylator kanałowy","TD","Bud. Nr 4\npom. 135",1,1,"NIE WYSTĘPUJĄ",0,0,"NIE",{"v":0,"d":"0.00 zł"},null,{"$f":"Wykaz_zapasów5[[#This Row],[Koszt za I przegląd\nbrutto]]+Wykaz_zapasów5[[#This Row],[Koszt za II przegląd\nbrutto]]","v":{"v":0,"d":"0.00 zł"}},"NIE"]
[null,"Centrala wentylacyjna","TOPVEX SF02HWL\ns/n 39394/1005780714002/\n20201201","Bud. Nr 6\npom. WC męskie parter",1,1,"Epm1 60%\n443 x 214 x 280",1,"raz do roku","NIE",{"v":0,"d":"0.00 zł"},null,{"$f":"Wykaz_zapasów5[[#This Row],[Koszt za I przegląd\nbrutto]]+Wykaz_zapasów5[[#This Row],[Koszt za II przegląd\nbrutto]]","v":{"v":0,"d":"0.00 zł"}},"TAK"]
[null,"Centrala wentylacyjna","TOPVEX SF02HWL\ns/n 39394/1005780714003/\n20201201","Bud. Nr 6\npom. WC męskie pientro",1,1,"Epm1 60%\n443 x 214 x 280",1,"raz do roku","NIE",{"v":0,"d":"0.00 zł"},null,{"$f":"Wykaz_zapasów5[[#This Row],[Koszt za I przegląd\nbrutto]]+Wykaz_zapasów5[[#This Row],[Koszt za II przegląd\nbrutto]]","v":{"v":0,"d":"0.00 zł"}},"TAK"]
[null,"Wentylator kanałowy","\nSYSTEMAIR K160EC SILEO\ns/n 77521/1005735969-324/\n20201120\n","Bud. Nr 6\ndach",1,1,"NIE WYSTĘPUJĄ",0,0,"NIE",{"v":0,"d":"0.00 zł"},null,{"$f":"Wykaz_zapasów5[[#This Row],[Koszt za I przegląd\nbrutto]]+Wykaz_zapasów5[[#This Row],[Koszt za II przegląd\nbrutto]]","v":{"v":0,"d":"0.00 zł"}},"TAK"]
[null,"Wentylator kanałowy","\nSYSTEMAIR K160EC SILEO\ns/n 77521/1005735969-324/20201120","Bud. Nr 6\ndach",1,1,"NIE WYSTĘPUJĄ",0,0,"NIE",{"v":0,"d":"0.00 zł"},null,{"$f":"Wykaz_zapasów5[[#This Row],[Koszt za I przegląd\nbrutto]]+Wykaz_zapasów5[[#This Row],[Koszt za II przegląd\nbrutto]]","v":{"v":0,"d":"0.00 zł"}},"TAK"]
[null,"Wentylator kanałowy","VETNURE INDUTIRES\nTD 350/125\ns/n 1005535337","Bud. Nr 6\npom. WC męskie piętro",1,1,"NIE WYSTĘPUJĄ",0,0,"NIE",{"v":0,"d":"0.00 zł"},null,{"$f":"Wykaz_zapasów5[[#This Row],[Koszt za I przegląd\nbrutto]]+Wykaz_zapasów5[[#This Row],[Koszt za II przegląd\nbrutto]]","v":{"v":0,"d":"0.00 zł"}},"TAK"]
[null,"Wentylator dachowy","VETNURE INDUTIRES\nRFV/6-355T ZN\ns/n 0004\ns/n 0002","Bud. Nr 6\npom. 3 i 4",2,1,"NIE WYSTĘPUJĄ",0,0,"NIE",{"v":0,"d":"0.00 zł"},null,{"$f":"Wykaz_zapasów5[[#This Row],[Koszt za I przegląd\nbrutto]]+Wykaz_zapasów5[[#This Row],[Koszt za II przegląd\nbrutto]]","v":{"v":0,"d":"0.00 zł"}},"TAK"]
[null,"Wentylator dachowy","VETNURE INDUTIRES\nRFV/4-125 ZN\ns/n 0068","Bud. Nr 6\ndach",1,1,"NIE WYSTĘPUJĄ",0,0,"NIE",{"v":0,"d":"0.00 zł"},null,{"$f":"Wykaz_zapasów5[[#This Row],[Koszt za I przegląd\nbrutto]]+Wykaz_zapasów5[[#This Row],[Koszt za II przegląd\nbrutto]]","v":{"v":0,"d":"0.00 zł"}},"TAK"]
[null,"Turbowent hybrydowy","DARCO \nTUS150-CH-AL.-T-H","Bud. Nr 6\ndach",36,1,"NIE WYSTĘPUJĄ",0,0,"NIE",{"v":0,"d":"0.00 zł"},null,{"$f":"Wykaz_zapasów5[[#This Row],[Koszt za I przegląd\nbrutto]]+Wykaz_zapasów5[[#This Row],[Koszt za II przegląd\nbrutto]]","v":{"v":0,"d":"0.00 zł"}},"TAK"]
[null,"Nagrzewnica elektryczna kanałowa","VETNURE INDUTIRES\nDH-160/155\ns/n 0166","Bud. Nr 6\npom. WC męskie piętro",1,1,"NIE WYSTĘPUJĄ",0,0,"NIE",{"v":0,"d":"0.00 zł"},null,{"$f":"Wykaz_zapasów5[[#This Row],[Koszt za I przegląd\nbrutto]]+Wykaz_zapasów5[[#This Row],[Koszt za II przegląd\nbrutto]]","v":{"v":0,"d":"0.00 zł"}},"TAK"]
[null,"Aparat Grzewczo-Wentylacyjny","FLOWAIR LEO S2\ns/n OPL/03681/12/19\ns/n OPL/03686/12/19","Bud. Nr 6\npom. 3 i 4",2,1,"NIE WYSTĘPUJĄ",0,0,"NIE",{"v":0,"d":"0.00 zł"},null,{"$f":"Wykaz_zapasów5[[#This Row],[Koszt za I przegląd\nbrutto]]+Wykaz_zapasów5[[#This Row],[Koszt za II przegląd\nbrutto]]","v":{"v":0,"d":"0.00 zł"}},"TAK"]
[null,"Klimatyzator Multi Split K1","Jednostka zewnętrzna:\nLG DELUXE DC18RFQUL2\ns/n 011TKMH16723","Bud. Nr 6\ndach hala garażowa",1,1,"NIE WYSTĘPUJĄ",0,0,"TAK",{"v":0,"d":"0.00 zł"},null,{"$f":"Wykaz_zapasów5[[#This Row],[Koszt za I przegląd\nbrutto]]+Wykaz_zapasów5[[#This Row],[Koszt za II przegląd\nbrutto]]","v":{"v":0,"d":"0.00 zł"}},"TAK"]
[null,1,"Jednostka wewnętrzna:\nLG DELUXE DC18RHNSK\ns/n 102TKJC14796","Bud. Nr 6\npom. 6",1,1,"NIE WYSTĘPUJĄ",0,0,"TAK",{"v":0,"d":"0.00 zł"},null,{"$f":"Wykaz_zapasów5[[#This Row],[Koszt za I przegląd\nbrutto]]+Wykaz_zapasów5[[#This Row],[Koszt za II przegląd\nbrutto]]","v":{"v":0,"d":"0.00 zł"}},"TAK"]
[null,2,"LG DELUXE DC09RQNSJ\ns/n 101TKYU45994","Bud. Nr 6\npom. 7",1,1,"NIE WYSTĘPUJĄ",0,0,"TAK",{"v":0,"d":"0.00 zł"},null,{"$f":"Wykaz_zapasów5[[#This Row],[Koszt za I przegląd\nbrutto]]+Wykaz_zapasów5[[#This Row],[Koszt za II przegląd\nbrutto]]","v":{"v":0,"d":"0.00 zł"}},"TAK"]
[null,"Klimatyzator Multi Split K2","Jednostka zewnętrzna:\nLG DELUXE DC18RFQUL2\ns/n 011TKAJ16728","Bud. Nr 6\ndach hala garażowa",1,1,"NIE WYSTĘPUJĄ",0,0,"TAK",{"v":0,"d":"0.00 zł"},null,{"$f":"Wykaz_zapasów5[[#This Row],[Koszt za I przegląd\nbrutto]]+Wykaz_zapasów5[[#This Row],[Koszt za II przegląd\nbrutto]]","v":{"v":0,"d":"0.00 zł"}},"TAK"]
[null,1,"Jednostka wewnętrzna:\nLG DELUXE DC18RHNSK\ns/n 102TKPD14656","Bud. Nr 6\npom. 2",1,1,"NIE WYSTĘPUJĄ",0,0,"TAK",{"v":0,"d":"0.00 zł"},null,{"$f":"Wykaz_zapasów5[[#This Row],[Koszt za I przegląd\nbrutto]]+Wykaz_zapasów5[[#This Row],[Koszt za II przegląd\nbrutto]]","v":{"v":0,"d":"0.00 zł"}},"TAK"]
[null,2,"LG DELUXE DC18RHNSK\ns/n 101TKPD14666","Bud. Nr 6\npom. 2",1,1,"NIE WYSTĘPUJĄ",0,0,"TAK",{"v":0,"d":"0.00 zł"},null,{"$f":"Wykaz_zapasów5[[#This Row],[Koszt za I przegląd\nbrutto]]+Wykaz_zapasów5[[#This Row],[Koszt za II przegląd\nbrutto]]","v":{"v":0,"d":"0.00 zł"}},"TAK"]
[null,"Klimatyzator VRF","Jednostka zewnętrzna:\nLG VRF MULTI V5\nARUM 160LTE5\ns/n 009KCTB11N21","Bud. Nr 6\ndach część biurowa",1,1,"NIE WYSTĘPUJĄ",0,0,"TAK",{"v":0,"d":"0.00 zł"},null,{"$f":"Wykaz_zapasów5[[#This Row],[Koszt za I przegląd\nbrutto]]+Wykaz_zapasów5[[#This Row],[Koszt za II przegląd\nbrutto]]","v":{"v":0,"d":"0.00 zł"}},"TAK"]
[null,1,"Jednostka wewnętrzna:\nLG STANDARD \nARNU 07GSJC4\ns/n 011KCEA0X516","Bud. Nr 6\npom. 11",1,1,"NIE WYSTĘPUJĄ",0,0,"TAK",{"v":0,"d":"0.00 zł"},null,{"$f":"Wykaz_zapasów5[[#This Row],[Koszt za I przegląd\nbrutto]]+Wykaz_zapasów5[[#This Row],[Koszt za II przegląd\nbrutto]]","v":{"v":0,"d":"0.00 zł"}},"TAK"]
[null,2,"LG STANDARD\nARNU 07GSJC4\ns/n 011KCWC0X425","Bud. Nr 6\npom. 12",1,1,"NIE WYSTĘPUJĄ",0,0,"TAK",{"v":0,"d":"0.00 zł"},null,{"$f":"Wykaz_zapasów5[[#This Row],[Koszt za I przegląd\nbrutto]]+Wykaz_zapasów5[[#This Row],[Koszt za II przegląd\nbrutto]]","v":{"v":0,"d":"0.00 zł"}},"TAK"]
[null,3,"LG STANDARD\nARNU 07GSJC4\ns/n 011KCNL0X519","Bud. Nr 6\npom. 13",1,1,"NIE WYSTĘPUJĄ",0,0,"TAK",{"v":0,"d":"0.00 zł"},null,{"$f":"Wykaz_zapasów5[[#This Row],[Koszt za I przegląd\nbrutto]]+Wykaz_zapasów5[[#This Row],[Koszt za II przegląd\nbrutto]]","v":{"v":0,"d":"0.00 zł"}},"TAK"]
[null,4,"LG STANDARD\nARNU 07GSJC4\ns/n 011KCNL0X423","Bud. Nr 6\npom. 14",1,1,"NIE WYSTĘPUJĄ",0,0,"TAK",{"v":0,"d":"0.00 zł"},null,{"$f":"Wykaz_zapasów5[[#This Row],[Koszt za I przegląd\nbrutto]]+Wykaz_zapasów5[[#This Row],[Koszt za II przegląd\nbrutto]]","v":{"v":0,"d":"0.00 zł"}},"TAK"]
[null,5,"LG STANDARD\nARNU 07GSJC4\ns/n 011KCNL0X523","Bud. Nr 6\npom. 15",1,1,"NIE WYSTĘPUJĄ",0,0,"TAK",{"v":0,"d":"0.00 zł"},null,{"$f":"Wykaz_zapasów5[[#This Row],[Koszt za I przegląd\nbrutto]]+Wykaz_zapasów5[[#This Row],[Koszt za II przegląd\nbrutto]]","v":{"v":0,"d":"0.00 zł"}},"TAK"]
[null,6,"LG STANDARD\nARNU 12GSJC4\ns/n 011KCAS1EB56","Bud. Nr 6\npom. 16",1,1,"NIE WYSTĘPUJĄ",0,0,"TAK",{"v":0,"d":"0.00 zł"},null,{"$f":"Wykaz_zapasów5[[#This Row],[Koszt za I przegląd\nbrutto]]+Wykaz_zapasów5[[#This Row],[Koszt za II przegląd\nbrutto]]","v":{"v":0,"d":"0.00 zł"}},"TAK"]
[null,7,"LG STANDARD\nARNU 07GSJC4\ns/n 011KCAS0X424","Bud. Nr 6\npom. 17",1,1,"NIE WYSTĘPUJĄ",0,0,"TAK",{"v":0,"d":"0.00 zł"},null,{"$f":"Wykaz_zapasów5[[#This Row],[Koszt za I przegląd\nbrutto]]+Wykaz_zapasów5[[#This Row],[Koszt za II przegląd\nbrutto]]","v":{"v":0,"d":"0.00 zł"}},"TAK"]
[null,8,"LG STANDARD\nARNU 07GSJC4\ns/n 011KCXM0X522","Bud. Nr 6\npom. 20",1,1,"NIE WYSTĘPUJĄ",0,0,"TAK",{"v":0,"d":"0.00 zł"},null,{"$f":"Wykaz_zapasów5[[#This Row],[Koszt za I przegląd\nbrutto]]+Wykaz_zapasów5[[#This Row],[Koszt za II przegląd\nbrutto]]","v":{"v":0,"d":"0.00 zł"}},"TAK"]
[null,9,"LG STANDARD\nARNU 07GSJC4\ns/n 011KCJZ0X524","Bud. Nr 6\npom. 21",1,1,"NIE WYSTĘPUJĄ",0,0,"TAK",{"v":0,"d":"0.00 zł"},null,{"$f":"Wykaz_zapasów5[[#This Row],[Koszt za I przegląd\nbrutto]]+Wykaz_zapasów5[[#This Row],[Koszt za II przegląd\nbrutto]]","v":{"v":0,"d":"0.00 zł"}},"TAK"]
[null,10,"LG STANDARD\nARNU 15GSJC4\ns/n 011KCAS0X424","Bud. Nr 6\npom. 104",1,1,"NIE WYSTĘPUJĄ",0,0,"TAK",{"v":0,"d":"0.00 zł"},null,{"$f":"Wykaz_zapasów5[[#This Row],[Koszt za I przegląd\nbrutto]]+Wykaz_zapasów5[[#This Row],[Koszt za II przegląd\nbrutto]]","v":{"v":0,"d":"0.00 zł"}},"TAK"]
[null,11,"LG STANDARD\nARNU 09GSJC4\ns/n 011KCRN0A014","Bud. Nr 6\npom. 106",1,1,"NIE WYSTĘPUJĄ",0,0,"TAK",{"v":0,"d":"0.00 zł"},null,{"$f":"Wykaz_zapasów5[[#This Row],[Koszt za I przegląd\nbrutto]]+Wykaz_zapasów5[[#This Row],[Koszt za II przegląd\nbrutto]]","v":{"v":0,"d":"0.00 zł"}},"TAK"]
[null,12,"LG STANDARD\nARNU 07GSJC4\ns/n 011KCWC0X521","Bud. Nr 6\npom. 107",1,1,"NIE WYSTĘPUJĄ",0,0,"TAK",{"v":0,"d":"0.00 zł"},null,{"$f":"Wykaz_zapasów5[[#This Row],[Koszt za I przegląd\nbrutto]]+Wykaz_zapasów5[[#This Row],[Koszt za II przegląd\nbrutto]]","v":{"v":0,"d":"0.00 zł"}},"TAK"]
[null,13,"LG STANDARD\nARNU 07GSJC4\ns/n 011KCUK0X518","Bud. Nr 6\npom. 108",1,1,"NIE WYSTĘPUJĄ",0,0,"TAK",{"v":0,"d":"0.00 zł"},null,{"$f":"Wykaz_zapasów5[[#This Row],[Koszt za I przegląd\nbrutto]]+Wykaz_zapasów5[[#This Row],[Koszt za II przegląd\nbrutto]]","v":{"v":0,"d":"0.00 zł"}},"TAK"]
[null,14,"LG STANDARD\nARNU 07GSJC4\ns/n 011KCAS0X520","Bud. Nr 6\npom. 109",1,1,"NIE WYSTĘPUJĄ",0,0,"TAK",{"v":0,"d":"0.00 zł"},null,{"$f":"Wykaz_zapasów5[[#This Row],[Koszt za I przegląd\nbrutto]]+Wykaz_zapasów5[[#This Row],[Koszt za II przegląd\nbrutto]]","v":{"v":0,"d":"0.00 zł"}},"TAK"]
[null,15,"LG STANDARD\nARNU 07GSJC4\ns/n 011KCDG0X514","Bud. Nr 6\npom. 111",1,1,"NIE WYSTĘPUJĄ",0,0,"TAK",{"v":0,"d":"0.00 zł"},null,{"$f":"Wykaz_zapasów5[[#This Row],[Koszt za I przegląd\nbrutto]]+Wykaz_zapasów5[[#This Row],[Koszt za II przegląd\nbrutto]]","v":{"v":0,"d":"0.00 zł"}},"TAK"]
[null,16,"LG STANDARD\nARNU 09GSJC4\ns/n 011KCFT0A011","Bud. Nr 6\npom. 112",1,1,"NIE WYSTĘPUJĄ",0,0,"TAK",{"v":0,"d":"0.00 zł"},null,{"$f":"Wykaz_zapasów5[[#This Row],[Koszt za I przegląd\nbrutto]]+Wykaz_zapasów5[[#This Row],[Koszt za II przegląd\nbrutto]]","v":{"v":0,"d":"0.00 zł"}},"TAK"]
[null,17,"LG STANDARD\nARNU 12GSJC4\ns/n 011KCBD1EB59","Bud. Nr 6\npom. 113",1,1,"NIE WYSTĘPUJĄ",0,0,"TAK",{"v":0,"d":"0.00 zł"},null,{"$f":"Wykaz_zapasów5[[#This Row],[Koszt za I przegląd\nbrutto]]+Wykaz_zapasów5[[#This Row],[Koszt za II przegląd\nbrutto]]","v":{"v":0,"d":"0.00 zł"}},"TAK"]
[null,18,"LG STANDARD\nARNU 12GSJC4\ns/n 011KCBD1EB61","Bud. Nr 6\npom. 113",1,1,"NIE WYSTĘPUJĄ",0,0,"TAK",{"v":0,"d":"0.00 zł"},null,{"$f":"Wykaz_zapasów5[[#This Row],[Koszt za I przegląd\nbrutto]]+Wykaz_zapasów5[[#This Row],[Koszt za II przegląd\nbrutto]]","v":{"v":0,"d":"0.00 zł"}},"TAK"]
[null,"Klimatyzator Split","Jednostka zewnętrzna:\nLG LV B246HL\ns/n","Bud. Nr 11\nfront",1,1,"NIE WYSTĘPUJĄ",0,0,"TAK",{"v":0,"d":"0.00 zł"},null,{"$f":"Wykaz_zapasów5[[#This Row],[Koszt za I przegląd\nbrutto]]+Wykaz_zapasów5[[#This Row],[Koszt za II przegląd\nbrutto]]","v":{"v":0,"d":"0.00 zł"}},"NIE"]
[null,null,"Jednostka wewnętrzna:\n\ns/n","Bud. Nr 11/pom.",1,1,"NIE WYSTĘPUJĄ",0,0,"TAK",{"v":0,"d":"0.00 zł"},null,{"$f":"Wykaz_zapasów5[[#This Row],[Koszt za I przegląd\nbrutto]]+Wykaz_zapasów5[[#This Row],[Koszt za II przegląd\nbrutto]]","v":{"v":0,"d":"0.00 zł"}},"NIE"]
[null,"Klimatyzator Split","Jednostka zewnętrzna:\n\ns/n","Bud. Nr 11\nfront",1,1,"NIE WYSTĘPUJĄ",0,0,"TAK",{"v":0,"d":"0.00 zł"},null,{"$f":"Wykaz_zapasów5[[#This Row],[Koszt za I przegląd\nbrutto]]+Wykaz_zapasów5[[#This Row],[Koszt za II przegląd\nbrutto]]","v":{"v":0,"d":"0.00 zł"}},"NIE"]
[null,null,"Jednostka wewnętrzna:\n\ns/n","Bud. Nr 11/pom.",1,1,"NIE WYSTĘPUJĄ",0,0,"TAK",{"v":0,"d":"0.00 zł"},null,{"$f":"Wykaz_zapasów5[[#This Row],[Koszt za I przegląd\nbrutto]]+Wykaz_zapasów5[[#This Row],[Koszt za II przegląd\nbrutto]]","v":{"v":0,"d":"0.00 zł"}},"NIE"]
[null,"Klimatyzator Split K1","Jednostka zewnętrzna:\nFUJITSU AOY18UNBNL\ns/n E023653","Bud. Nr 16\ntył budynku",1,1,"NIE WYSTĘPUJĄ",0,0,"TAK",{"v":0,"d":"0.00 zł"},null,{"$f":"Wykaz_zapasów5[[#This Row],[Koszt za I przegląd\nbrutto]]+Wykaz_zapasów5[[#This Row],[Koszt za II przegląd\nbrutto]]","v":{"v":0,"d":"0.00 zł"}},"NIE"]
[null,null,"Jednostka wewnętrzna:\nFUJITSU ASY18UBBN\ns/n E020065","Bud. Nr 16/pom.",1,1,"NIE WYSTĘPUJĄ",0,0,"TAK",{"v":0,"d":"0.00 zł"},null,{"$f":"Wykaz_zapasów5[[#This Row],[Koszt za I przegląd\nbrutto]]+Wykaz_zapasów5[[#This Row],[Koszt za II przegląd\nbrutto]]","v":{"v":0,"d":"0.00 zł"}},"NIE"]
[null,"Klimatyzator Split K2","Jednostka zewnętrzna:\nFUJITSU AOY18UNBNL\ns/n E023696","Bud. Nr 16\ntył budynku",1,1,"NIE WYSTĘPUJĄ",0,0,"TAK",{"v":0,"d":"0.00 zł"},null,{"$f":"Wykaz_zapasów5[[#This Row],[Koszt za I przegląd\nbrutto]]+Wykaz_zapasów5[[#This Row],[Koszt za II przegląd\nbrutto]]","v":{"v":0,"d":"0.00 zł"}},"NIE"]
[null,null,"Jednostka wewnętrzna:\nFUJITSU ASY18UBBN\ns/n E020172","Bud. Nr 16/pom.",1,1,"NIE WYSTĘPUJĄ",0,0,"TAK",{"v":0,"d":"0.00 zł"},null,{"$f":"Wykaz_zapasów5[[#This Row],[Koszt za I przegląd\nbrutto]]+Wykaz_zapasów5[[#This Row],[Koszt za II przegląd\nbrutto]]","v":{"v":0,"d":"0.00 zł"}},"NIE"]
[null,"Klimatyzator Split K3","Jednostka zewnętrzna:\nSINCLAIR SIH-18 BIK\ns/n 540P898220446180120100","Bud. Nr 16\ntył budynku",1,1,"NIE WYSTĘPUJĄ",0,0,"TAK",{"v":0,"d":"0.00 zł"},null,{"$f":"Wykaz_zapasów5[[#This Row],[Koszt za I przegląd\nbrutto]]+Wykaz_zapasów5[[#This Row],[Koszt za II przegląd\nbrutto]]","v":{"v":0,"d":"0.00 zł"}},"NIE"]
[null,null,"Jednostka wewnętrzna:\nSINCLAIR SOH-18 BIK\ns/n 540P898220346200130323","Bud. Nr 16/pom. 11A",1,1,"NIE WYSTĘPUJĄ",0,0,"TAK",{"v":0,"d":"0.00 zł"},null,{"$f":"Wykaz_zapasów5[[#This Row],[Koszt za I przegląd\nbrutto]]+Wykaz_zapasów5[[#This Row],[Koszt za II przegląd\nbrutto]]","v":{"v":0,"d":"0.00 zł"}},"NIE"]
[null,"Klimatyzator Split K4","Jednostka zewnętrzna:\nFUJITSU AOY18UNBNL\ns/n E023649","Bud. Nr 16\ntył budynku",1,1,"NIE WYSTĘPUJĄ",0,0,"TAK",{"v":0,"d":"0.00 zł"},null,{"$f":"Wykaz_zapasów5[[#This Row],[Koszt za I przegląd\nbrutto]]+Wykaz_zapasów5[[#This Row],[Koszt za II przegląd\nbrutto]]","v":{"v":0,"d":"0.00 zł"}},"NIE"]
[null,null,"Jednostka wewnętrzna:\nFUJITSU ASY18UBBN\ns/n E020168","Bud. Nr 16/pom.",1,1,"NIE WYSTĘPUJĄ",0,0,"TAK",{"v":0,"d":"0.00 zł"},null,{"$f":"Wykaz_zapasów5[[#This Row],[Koszt za I przegląd\nbrutto]]+Wykaz_zapasów5[[#This Row],[Koszt za II przegląd\nbrutto]]","v":{"v":0,"d":"0.00 zł"}},"NIE"]
[null,"Centrala wentylacyjna","ATREA DUPLEX\n1600 FLEXI RD3","Bud. Nr 16",3,1,"F7, D7\n395x550x96",2,"raz do roku","NIE",{"v":0,"d":"0.00 zł"},null,{"$f":"Wykaz_zapasów5[[#This Row],[Koszt za I przegląd\nbrutto]]+Wykaz_zapasów5[[#This Row],[Koszt za II przegląd\nbrutto]]","v":{"v":0,"d":"0.00 zł"}},"TAK"]
[null,"KOMPLEKS 6015",{"$nulls":4},{"$f":"IFERROR(VLOOKUP(Wykaz_zapasów5[[#This Row],[Ilość przeglądów]],#REF!,3,FALSE),\"\")","v":""}]
[null,"Klimatyzator Split","Jednostka zewnętrzna:\nSINCLAIR SOH-12 BIK\ns/n 4U17840033131","Bud. Nr 81 \nKotłownia",1,2,"NIE WYSTĘPUJĄ",0,0,"TAK",null,null,{"$f":"Wykaz_zapasów5[[#This Row],[Koszt za I przegląd\nbrutto]]+Wykaz_zapasów5[[#This Row],[Koszt za II przegląd\nbrutto]]","v":{"v":0,"d":"0.00 zł"}},"TAK"]
[null,null,"Jednostka wewnętrzna:\nSINCLAIR SIH-12 BIK\ns/n 4U77940015046","Bud. Nr 81 pom. 012\nKotłownia",1,2,"NIE WYSTĘPUJĄ",0,0,"TAK",null,null,{"$f":"Wykaz_zapasów5[[#This Row],[Koszt za I przegląd\nbrutto]]+Wykaz_zapasów5[[#This Row],[Koszt za II przegląd\nbrutto]]","v":{"v":0,"d":"0.00 zł"}},"TAK"]
[null,"Klimatyzator Split K1","Jednostka zewnętrzna:\nGREE \nGWH18YE-S6DBA2A/O\ns/n 4J8990000657","Bud. Nr 85-LCN",1,1,"NIE WYSTĘPUJĄ",0,0,"TAK",{"v":0,"d":"0.00 zł"},null,{"$f":"Wykaz_zapasów5[[#This Row],[Koszt za I przegląd\nbrutto]]+Wykaz_zapasów5[[#This Row],[Koszt za II przegląd\nbrutto]]","v":{"v":0,"d":"0.00 zł"}},"TAK"]
[null,null,"Jednostka wewnętrzna:\nGREE\nGWH18YE-S6DBA2A/I\ns/n 4J98880000558","Bud. Nr 85-LCN\npom. ",1,1,"NIE WYSTĘPUJĄ",0,0,"TAK",{"v":0,"d":"0.00 zł"},null,{"$f":"Wykaz_zapasów5[[#This Row],[Koszt za I przegląd\nbrutto]]+Wykaz_zapasów5[[#This Row],[Koszt za II przegląd\nbrutto]]","v":{"v":0,"d":"0.00 zł"}},"TAK"]
[null,"Klimatyzator Split K2","Jednostka zewnętrzna:\nGREE \nGWH18YE-S6DBA2A/O\ns/n 4J98890000539","Bud. Nr 85-LCN",1,1,"NIE WYSTĘPUJĄ",0,0,"TAK",{"v":0,"d":"0.00 zł"},null,{"$f":"Wykaz_zapasów5[[#This Row],[Koszt za I przegląd\nbrutto]]+Wykaz_zapasów5[[#This Row],[Koszt za II przegląd\nbrutto]]","v":{"v":0,"d":"0.00 zł"}},"TAK"]
[null,null,"Jednostka wewnętrzna:\nGREE\nGWH18YE-S6DBA2A/I\ns/n 4J98890000539","Bud. Nr 85-LCN\npom. ",1,1,"NIE WYSTĘPUJĄ",0,0,"TAK",{"v":0,"d":"0.00 zł"},null,{"$f":"Wykaz_zapasów5[[#This Row],[Koszt za I przegląd\nbrutto]]+Wykaz_zapasów5[[#This Row],[Koszt za II przegląd\nbrutto]]","v":{"v":0,"d":"0.00 zł"}},"TAK"]
[null,"Klimatyzator Przenośny","ZIBRO P 125","Bud. Nr 85-LCN\npom. ",1,1,"NIE WYSTĘPUJĄ",0,0,"TAK",{"v":0,"d":"0.00 zł"},null,{"$f":"Wykaz_zapasów5[[#This Row],[Koszt za I przegląd\nbrutto]]+Wykaz_zapasów5[[#This Row],[Koszt za II przegląd\nbrutto]]","v":{"v":0,"d":"0.00 zł"}},"NIE"]
[null,"Centrala wentylacyjna","CLIMA PRODUKT HERMES\nAPN 1-L 1200/350","Bud. Nr 87-AKUMULATOROWNIA\n",1,1,"G4 450/335/150",1,"dwa razy w roku","NIE",{"v":0,"d":"0.00 zł"},null,{"$f":"Wykaz_zapasów5[[#This Row],[Koszt za I przegląd\nbrutto]]+Wykaz_zapasów5[[#This Row],[Koszt za II przegląd\nbrutto]]","v":{"v":0,"d":"0.00 zł"}},"NIE"]
[null,"Centrala wentylacyjna","CLIMA PRODUKT HERMES\nAPN 3-L 1400/350","Bud. Nr 87-AKUMULATOROWNIA",1,1,"G4 592/395/150",1,"dwa razy w roku","NIE",{"v":0,"d":"0.00 zł"},null,{"$f":"Wykaz_zapasów5[[#This Row],[Koszt za I przegląd\nbrutto]]+Wykaz_zapasów5[[#This Row],[Koszt za II przegląd\nbrutto]]","v":{"v":0,"d":"0.00 zł"}},"NIE"]
[null,"Wentylator dachowy","KLIMA WENT WP-SD\ns/n 408/2008\ns/n 407/2008\ns/n 411/2008","Bud. Nr 87-AKUMULATOROWNIA",3,1,"NIE WYSTĘPUJĄ",0,0,"NIE",{"v":0,"d":"0.00 zł"},null,{"$f":"Wykaz_zapasów5[[#This Row],[Koszt za I przegląd\nbrutto]]+Wykaz_zapasów5[[#This Row],[Koszt za II przegląd\nbrutto]]","v":{"v":0,"d":"0.00 zł"}},"NIE"]
[null,"Wentylator dachowy","UNIWERSAL DAK 200\ns/n 2117\ns/n 2116\ns/n 2118","Bud. Nr 87-AKUMULATOROWNIA",3,1,"NIE WYSTĘPUJĄ",0,0,"NIE",{"v":0,"d":"0.00 zł"},null,{"$f":"Wykaz_zapasów5[[#This Row],[Koszt za I przegląd\nbrutto]]+Wykaz_zapasów5[[#This Row],[Koszt za II przegląd\nbrutto]]","v":{"v":0,"d":"0.00 zł"}},"NIE"]
[null,"Wentylator dachowy","UNIWERSAL DAK 250\ns/n 13622","Bud. Nr 87-AKUMULATOROWNIA",1,1,"NIE WYSTĘPUJĄ",0,0,"NIE",{"v":0,"d":"0.00 zł"},null,{"$f":"Wykaz_zapasów5[[#This Row],[Koszt za I przegląd\nbrutto]]+Wykaz_zapasów5[[#This Row],[Koszt za II przegląd\nbrutto]]","v":{"v":0,"d":"0.00 zł"}},"NIE"]
[null,"Klimatyzator Multi Split K3","Jednostka zewnętrzna:\nFUJI","Bud. Nr 87-AKUMULATOROWNIA",1,1,"NIE WYSTĘPUJĄ",0,0,"TAK",{"v":0,"d":"0.00 zł"},null,{"$f":"Wykaz_zapasów5[[#This Row],[Koszt za I przegląd\nbrutto]]+Wykaz_zapasów5[[#This Row],[Koszt za II przegląd\nbrutto]]","v":{"v":0,"d":"0.00 zł"}},"NIE"]
[null,null,"Jednostka wewnętrzna:\nFUJI ELECTRIC RO-7UD\ns/n E003976","Bud. Nr 87-AKUMULATOROWNIA\npom. 213",1,1,"NIE WYSTĘPUJĄ",0,0,"TAK",{"v":0,"d":"0.00 zł"},null,{"$f":"Wykaz_zapasów5[[#This Row],[Koszt za I przegląd\nbrutto]]+Wykaz_zapasów5[[#This Row],[Koszt za II przegląd\nbrutto]]","v":{"v":0,"d":"0.00 zł"}},"NIE"]
[null,null,"Jednostka wewnętrzna:\nFUJI ELECTRIC RO-7UD\ns/n E003922","Bud. Nr 87-AKUMULATOROWNIA\npom. 208",1,1,"NIE WYSTĘPUJĄ",0,0,"TAK",{"v":0,"d":"0.00 zł"},null,{"$f":"Wykaz_zapasów5[[#This Row],[Koszt za I przegląd\nbrutto]]+Wykaz_zapasów5[[#This Row],[Koszt za II przegląd\nbrutto]]","v":{"v":0,"d":"0.00 zł"}},"NIE"]
[null,"Klimatyzator Multi Split K1","Jednostka zewnętrzna:\nDAIKIN VRV\nRXYQ10P9W1B","Bud. Nr 91 - GDL",1,1,"NIE WYSTĘPUJĄ",0,0,"TAK",{"v":0,"d":"0.00 zł"},null,{"$f":"Wykaz_zapasów5[[#This Row],[Koszt za I przegląd\nbrutto]]+Wykaz_zapasów5[[#This Row],[Koszt za II przegląd\nbrutto]]","v":{"v":0,"d":"0.00 zł"}},"NIE"]
[null,null,"Jednostka wewnętrzna:\nDAIKIN VRV\nFXAQ25 - 2 SZT.\nFXAQ20 - 10 SZT.\nFXAQ32 - 1 SZT.","Bud. Nr 91 - GDL",13,1,"NIE WYSTĘPUJĄ",0,0,"TAK",{"v":0,"d":"0.00 zł"},null,{"$f":"Wykaz_zapasów5[[#This Row],[Koszt za I przegląd\nbrutto]]+Wykaz_zapasów5[[#This Row],[Koszt za II przegląd\nbrutto]]","v":{"v":0,"d":"0.00 zł"}},"NIE"]
[null,"Klimatyzator Multi Split K2","Jednostka zewnętrzna:\nDAIKIN VRV\nRXYQ12P9W1B","Bud. Nr 91 - GDL",1,1,"NIE WYSTĘPUJĄ",0,0,"TAK",{"v":0,"d":"0.00 zł"},null,{"$f":"Wykaz_zapasów5[[#This Row],[Koszt za I przegląd\nbrutto]]+Wykaz_zapasów5[[#This Row],[Koszt za II przegląd\nbrutto]]","v":{"v":0,"d":"0.00 zł"}},"NIE"]
[null,null,"Jednostka wewnętrzna:\nDAIKIN VRV\nFXAQ25 - 1 SZT.\nFXAQ20 - 10 SZT.\nFXAQ32 - 2 SZT.\nFXAQ40 - 1 SZT.","Bud. Nr 91 - GDL",14,1,"NIE WYSTĘPUJĄ",0,0,"TAK",{"v":0,"d":"0.00 zł"},null,{"$f":"Wykaz_zapasów5[[#This Row],[Koszt za I przegląd\nbrutto]]+Wykaz_zapasów5[[#This Row],[Koszt za II przegląd\nbrutto]]","v":{"v":0,"d":"0.00 zł"}},"NIE"]
[null,"Klimatyzator Multi Split K3","Jednostka zewnętrzna:\nDAIKIN VRV\nRXYQ10P9W1B","Bud. Nr 91 - GDL",1,1,"NIE WYSTĘPUJĄ",0,0,"TAK",{"v":0,"d":"0.00 zł"},null,{"$f":"Wykaz_zapasów5[[#This Row],[Koszt za I przegląd\nbrutto]]+Wykaz_zapasów5[[#This Row],[Koszt za II przegląd\nbrutto]]","v":{"v":0,"d":"0.00 zł"}},"NIE"]
[null,null,"Jednostka wewnętrzna:\nDAIKIN VRV\nFXAQ25 - 1 SZT.\nFXAQ20 - 10 SZT.\nFXAQ40 - 2 SZT.","Bud. Nr 91 - GDL",13,1,"NIE WYSTĘPUJĄ",0,0,"TAK",{"v":0,"d":"0.00 zł"},null,{"$f":"Wykaz_zapasów5[[#This Row],[Koszt za I przegląd\nbrutto]]+Wykaz_zapasów5[[#This Row],[Koszt za II przegląd\nbrutto]]","v":{"v":0,"d":"0.00 zł"}},"NIE"]
[null,"Klimatyzator Multi Split K4","Jednostka zewnętrzna:\nDAIKIN VRV\nRXYQ10P9W1B","Bud. Nr 91 - GDL",1,1,"NIE WYSTĘPUJĄ",0,0,"TAK",{"v":0,"d":"0.00 zł"},null,{"$f":"Wykaz_zapasów5[[#This Row],[Koszt za I przegląd\nbrutto]]+Wykaz_zapasów5[[#This Row],[Koszt za II przegląd\nbrutto]]","v":{"v":0,"d":"0.00 zł"}},"NIE"]
[null,null,"Jednostka wewnętrzna:\nDAIKIN VRV\nFXAQ25 - 3 SZT.\nFXAQ20 - 9 SZT.\nFXAQ32 - 1 SZT.","Bud. Nr 91 - GDL",13,1,"NIE WYSTĘPUJĄ",0,0,"TAK",{"v":0,"d":"0.00 zł"},null,{"$f":"Wykaz_zapasów5[[#This Row],[Koszt za I przegląd\nbrutto]]+Wykaz_zapasów5[[#This Row],[Koszt za II przegląd\nbrutto]]","v":{"v":0,"d":"0.00 zł"}},"NIE"]
[null,"Klimatyzator  Split K5","Jednostka zewnętrzna:\nDAIKIN VRV RKS42J","Bud. Nr 91 - GDL",1,1,"NIE WYSTĘPUJĄ",0,0,"TAK",{"v":0,"d":"0.00 zł"},null,{"$f":"Wykaz_zapasów5[[#This Row],[Koszt za I przegląd\nbrutto]]+Wykaz_zapasów5[[#This Row],[Koszt za II przegląd\nbrutto]]","v":{"v":0,"d":"0.00 zł"}},"NIE"]
[null,null,"Jednostka wewnętrzna:\nDAIKIN VRV FTXS35J","Bud. Nr 91 - GDL",1,1,"NIE WYSTĘPUJĄ",0,0,"TAK",{"v":0,"d":"0.00 zł"},null,{"$f":"Wykaz_zapasów5[[#This Row],[Koszt za I przegląd\nbrutto]]+Wykaz_zapasów5[[#This Row],[Koszt za II przegląd\nbrutto]]","v":{"v":0,"d":"0.00 zł"}},"NIE"]
[null,"Klimatyzator  Split K6","Jednostka zewnętrzna:\nDAIKIN VRV RKS35J","Bud. Nr 91 - GDL",1,1,"NIE WYSTĘPUJĄ",0,0,"TAK",{"v":0,"d":"0.00 zł"},null,{"$f":"Wykaz_zapasów5[[#This Row],[Koszt za I przegląd\nbrutto]]+Wykaz_zapasów5[[#This Row],[Koszt za II przegląd\nbrutto]]","v":{"v":0,"d":"0.00 zł"}},"NIE"]
[null,null,"Jednostka wewnętrzna:\nDAIKIN VRV FTXS35J","Bud. Nr 91 - GDL",1,1,"NIE WYSTĘPUJĄ",0,0,"TAK",{"v":0,"d":"0.00 zł"},null,{"$f":"Wykaz_zapasów5[[#This Row],[Koszt za I przegląd\nbrutto]]+Wykaz_zapasów5[[#This Row],[Koszt za II przegląd\nbrutto]]","v":{"v":0,"d":"0.00 zł"}},"NIE"]
[null,"Klimatyzator  Split K7","Jednostka zewnętrzna:\nDAIKIN VRV RKS35J","Bud. Nr 91 - GDL",1,1,"NIE WYSTĘPUJĄ",0,0,"TAK",{"v":0,"d":"0.00 zł"},null,{"$f":"Wykaz_zapasów5[[#This Row],[Koszt za I przegląd\nbrutto]]+Wykaz_zapasów5[[#This Row],[Koszt za II przegląd\nbrutto]]","v":{"v":0,"d":"0.00 zł"}},"NIE"]
[null,null,"Jednostka wewnętrzna:\nDAIKIN VRV FTXS35J","Bud. Nr 91 - GDL",1,1,"NIE WYSTĘPUJĄ",0,0,"TAK",{"v":0,"d":"0.00 zł"},null,{"$f":"Wykaz_zapasów5[[#This Row],[Koszt za I przegląd\nbrutto]]+Wykaz_zapasów5[[#This Row],[Koszt za II przegląd\nbrutto]]","v":{"v":0,"d":"0.00 zł"}},"NIE"]
[null,"Klimatyzator  Split K8","Jednostka zewnętrzna:\nDAIKIN VRV RKS35J","Bud. Nr 91 - GDL",1,1,"NIE WYSTĘPUJĄ",0,0,"TAK",{"v":0,"d":"0.00 zł"},null,{"$f":"Wykaz_zapasów5[[#This Row],[Koszt za I przegląd\nbrutto]]+Wykaz_zapasów5[[#This Row],[Koszt za II przegląd\nbrutto]]","v":{"v":0,"d":"0.00 zł"}},"NIE"]
[null,null,"Jednostka wewnętrzna:\nDAIKIN VRV FTXS35J","Bud. Nr 91 - GDL",1,1,"NIE WYSTĘPUJĄ",0,0,"TAK",{"v":0,"d":"0.00 zł"},null,{"$f":"Wykaz_zapasów5[[#This Row],[Koszt za I przegląd\nbrutto]]+Wykaz_zapasów5[[#This Row],[Koszt za II przegląd\nbrutto]]","v":{"v":0,"d":"0.00 zł"}},"NIE"]
[null,"Klimatyzator  Split K9","Jednostka zewnętrzna:\nDAIKIN VRV RKS35J","Bud. Nr 91 - GDL",1,1,"NIE WYSTĘPUJĄ",0,0,"TAK",{"v":0,"d":"0.00 zł"},null,{"$f":"Wykaz_zapasów5[[#This Row],[Koszt za I przegląd\nbrutto]]+Wykaz_zapasów5[[#This Row],[Koszt za II przegląd\nbrutto]]","v":{"v":0,"d":"0.00 zł"}},"NIE"]
[null,null,"Jednostka wewnętrzna:\nDAIKIN VRV FTXS35J","Bud. Nr 91 - GDL",1,1,"NIE WYSTĘPUJĄ",0,0,"TAK",{"v":0,"d":"0.00 zł"},null,{"$f":"Wykaz_zapasów5[[#This Row],[Koszt za I przegląd\nbrutto]]+Wykaz_zapasów5[[#This Row],[Koszt za II przegląd\nbrutto]]","v":{"v":0,"d":"0.00 zł"}},"NIE"]
[null,"Klimatyzator K10","Jednostka zewnętrzna:\nDAIKIN VRV ERX100AV","Bud. Nr 91 - GDL",1,1,"NIE WYSTĘPUJĄ",0,0,"TAK",{"v":0,"d":"0.00 zł"},null,{"$f":"Wykaz_zapasów5[[#This Row],[Koszt za I przegląd\nbrutto]]+Wykaz_zapasów5[[#This Row],[Koszt za II przegląd\nbrutto]]","v":{"v":0,"d":"0.00 zł"}},"NIE"]
[null,null,"Cłodnica centrali\nwentylacyjnej - inst. N3","Bud. Nr 91 - GDL",1,1,"NIE WYSTĘPUJĄ",0,0,"TAK",{"v":0,"d":"0.00 zł"},null,{"$f":"Wykaz_zapasów5[[#This Row],[Koszt za I przegląd\nbrutto]]+Wykaz_zapasów5[[#This Row],[Koszt za II przegląd\nbrutto]]","v":{"v":0,"d":"0.00 zł"}},"NIE"]
[null,null,"Sterownik Centralny\nDSC601C51","Bud. Nr 91 - GDL",1,1,"NIE WYSTĘPUJĄ",0,0,"NIE",{"v":0,"d":"0.00 zł"},null,{"$f":"Wykaz_zapasów5[[#This Row],[Koszt za I przegląd\nbrutto]]+Wykaz_zapasów5[[#This Row],[Koszt za II przegląd\nbrutto]]","v":{"v":0,"d":"0.00 zł"}},"NIE"]
[null,"Instalacja wentylacyjna N1W1","N1-wentylator kanałowy\nW1-wentylator dachowy\nTH-800","Bud. Nr 91 - GDL\npom. Siłowni",1,1,"wkład filtracyjny EU3",1,"raz do roku","NIE",{"v":0,"d":"0.00 zł"},null,{"$f":"Wykaz_zapasów5[[#This Row],[Koszt za I przegląd\nbrutto]]+Wykaz_zapasów5[[#This Row],[Koszt za II przegląd\nbrutto]]","v":{"v":0,"d":"0.00 zł"}},"NIE"]
[null,"Instalacja wentylacyjna N2W2A i W2B","N 2 - centrala wentylacyjna\nHERMES-I-01\nCLIMA PRODUCT\n","Bud. Nr 91 - GDL\npom. Socjalne w piwnicy",1,1,"G4 450x335x150",1,"raz do roku","NIE",{"v":0,"d":"0.00 zł"},null,{"$f":"Wykaz_zapasów5[[#This Row],[Koszt za I przegląd\nbrutto]]+Wykaz_zapasów5[[#This Row],[Koszt za II przegląd\nbrutto]]","v":{"v":0,"d":"0.00 zł"}},"NIE"]
[null,null,"W2A I W2B - wentylator\ndachowy TH-1300","Bud. Nr 91 - GDL\npom. Socjalne w piwnicy",2,1,"NIE WYSTĘPUJĄ",0,0,"NIE",{"v":0,"d":"0.00 zł"},null,{"$f":"Wykaz_zapasów5[[#This Row],[Koszt za I przegląd\nbrutto]]+Wykaz_zapasów5[[#This Row],[Koszt za II przegląd\nbrutto]]","v":{"v":0,"d":"0.00 zł"}},"NIE"]
[null,"Instalacja wentylacyjna N3W3A i W3B","N3-centrala wentylacyjna\nHERMES-I-02\nCLIMA PRODUKT","Bud. Nr 91 - GDL\npom. Projekcyjne i miniklub",1,1,"G4 592x335x360",1,"raz do roku","NIE",{"v":0,"d":"0.00 zł"},null,{"$f":"Wykaz_zapasów5[[#This Row],[Koszt za I przegląd\nbrutto]]+Wykaz_zapasów5[[#This Row],[Koszt za II przegląd\nbrutto]]","v":{"v":0,"d":"0.00 zł"}},"NIE"]
[null,null,"W3A -wentylator dachowy\nTH-800\nW3B-wentylator dachowy\nRF/6-450","Bud. Nr 91 - GDL",2,1,"NIE WYSTĘPUJĄ",0,0,"NIE",{"v":0,"d":"0.00 zł"},null,{"$f":"Wykaz_zapasów5[[#This Row],[Koszt za I przegląd\nbrutto]]+Wykaz_zapasów5[[#This Row],[Koszt za II przegląd\nbrutto]]","v":{"v":0,"d":"0.00 zł"}},"NIE"]
[null,"Instalacja wentylacyjna N4W4A","N4-wentylator kanałowy\nTD-800/200 + nagrzewnica\nelektryczna DH-200-60\nW4-wentylator dachowy\nTH-800","Bud. Nr 91 - GDL\npom. Sala odpraw",2,1,"wkład filtracyjny EU3",2,"raz do roku","NIE",{"v":0,"d":"0.00 zł"},null,{"$f":"Wykaz_zapasów5[[#This Row],[Koszt za I przegląd\nbrutto]]+Wykaz_zapasów5[[#This Row],[Koszt za II przegląd\nbrutto]]","v":{"v":0,"d":"0.00 zł"}},"NIE"]
[null,"Wentylator łazienkowy\nSW1","EBB-170-N/VR","Bud. Nr 91 - GDL",2,1,"NIE WYSTĘPUJĄ",0,0,"NIE",{"v":0,"d":"0.00 zł"},null,{"$f":"Wykaz_zapasów5[[#This Row],[Koszt za I przegląd\nbrutto]]+Wykaz_zapasów5[[#This Row],[Koszt za II przegląd\nbrutto]]","v":{"v":0,"d":"0.00 zł"}},"NIE"]
[null,"Wentylator dachowy \nSW2","TH-800","Bud. Nr 91 - GDL",2,1,"NIE WYSTĘPUJĄ",0,0,"NIE",{"v":0,"d":"0.00 zł"},null,{"$f":"Wykaz_zapasów5[[#This Row],[Koszt za I przegląd\nbrutto]]+Wykaz_zapasów5[[#This Row],[Koszt za II przegląd\nbrutto]]","v":{"v":0,"d":"0.00 zł"}},"NIE"]
[null,"Wentylator dachowy \nSW3","TH-800","Bud. Nr 91 - GDL",1,1,"NIE WYSTĘPUJĄ",0,0,"NIE",{"v":0,"d":"0.00 zł"},null,{"$f":"Wykaz_zapasów5[[#This Row],[Koszt za I przegląd\nbrutto]]+Wykaz_zapasów5[[#This Row],[Koszt za II przegląd\nbrutto]]","v":{"v":0,"d":"0.00 zł"}},"NIE"]
[null,"Centrala wywiewna","VTS\nCV-P1-L/WS-0A/7-7","Bud. Nr 130 - WPL",3,1,"NIE WYSTĘPUJĄ",0,0,"NIE",{"v":0,"d":"0.00 zł"},null,{"$f":"Wykaz_zapasów5[[#This Row],[Koszt za I przegląd\nbrutto]]+Wykaz_zapasów5[[#This Row],[Koszt za II przegląd\nbrutto]]","v":{"v":0,"d":"0.00 zł"}},"NIE"]
[null,"Centrala wywiewna","VTS\nCV-P1-L/WS-0A/7-7","Bud. Nr 130 - WPL",3,1,"NIE WYSTĘPUJĄ",0,0,"NIE",{"v":0,"d":"0.00 zł"},null,{"$f":"Wykaz_zapasów5[[#This Row],[Koszt za I przegląd\nbrutto]]+Wykaz_zapasów5[[#This Row],[Koszt za II przegląd\nbrutto]]","v":{"v":0,"d":"0.00 zł"}},"NIE"]
[null,"Centrala nawiewna","VTS\nCV-P1-L/NS-42A/7-7","Bud. Nr 130 - WPL",2,1,"EU 4\n287x287x300",4,"dwa razy do roku","NIE",{"v":0,"d":"0.00 zł"},null,{"$f":"Wykaz_zapasów5[[#This Row],[Koszt za I przegląd\nbrutto]]+Wykaz_zapasów5[[#This Row],[Koszt za II przegląd\nbrutto]]","v":{"v":0,"d":"0.00 zł"}},"NIE"]
[null,"Centrala nawiewna","VTS\nCV-P1-L/NN-42A/7-7","Bud. Nr 130 - WPL",2,1,"EU 4\n287x592x300",4,"dwa razy do roku","NIE",{"v":0,"d":"0.00 zł"},null,{"$f":"Wykaz_zapasów5[[#This Row],[Koszt za I przegląd\nbrutto]]+Wykaz_zapasów5[[#This Row],[Koszt za II przegląd\nbrutto]]","v":{"v":0,"d":"0.00 zł"}},"NIE"]
[null,"Centrala nawiewna","VTS\nCV-P1-L/NS-42A/7-7","Bud. Nr 130 - WPL",1,1,"EU 4\n592x287x300",2,"dwa razy do roku","NIE",{"v":0,"d":"0.00 zł"},null,{"$f":"Wykaz_zapasów5[[#This Row],[Koszt za I przegląd\nbrutto]]+Wykaz_zapasów5[[#This Row],[Koszt za II przegląd\nbrutto]]","v":{"v":0,"d":"0.00 zł"}},"NIE"]
[null,"Centrala nawiewna","VTS\nCV-P1-L/NN-42A/7-7","Bud. Nr 130 - WPL",1,1,"EU 4\n592x592x300",2,"dwa razy do roku","NIE",{"v":0,"d":"0.00 zł"},null,{"$f":"Wykaz_zapasów5[[#This Row],[Koszt za I przegląd\nbrutto]]+Wykaz_zapasów5[[#This Row],[Koszt za II przegląd\nbrutto]]","v":{"v":0,"d":"0.00 zł"}},"NIE"]
[null,"Centrala nawiewna","VTS\nCV-P1-P/NS-106A/7-7","Bud. Nr 130 - WPL",2,1,"EU 4\n429x287x200",4,"dwa razy do roku","NIE",{"v":0,"d":"0.00 zł"},null,{"$f":"Wykaz_zapasów5[[#This Row],[Koszt za I przegląd\nbrutto]]+Wykaz_zapasów5[[#This Row],[Koszt za II przegląd\nbrutto]]","v":{"v":0,"d":"0.00 zł"}},"NIE"]
[null,"Centrala nawiewno-wywiewna","VTS\nCV-A-3/4RRAA2","Bud. Nr 130 - WPL",1,1,"EU 4\n592x287x200",6,"dwa razy do roku","NIE",{"v":0,"d":"0.00 zł"},null,{"$f":"Wykaz_zapasów5[[#This Row],[Koszt za I przegląd\nbrutto]]+Wykaz_zapasów5[[#This Row],[Koszt za II przegląd\nbrutto]]","v":{"v":0,"d":"0.00 zł"}},"NIE"]
[null,"Wentylator kanałowy","TD 350/125 HF","Bud. Nr 130 - WPL",1,1,"NIE WYSTĘPUJĄ",0,0,"NIE",{"v":0,"d":"0.00 zł"},null,{"$f":"Wykaz_zapasów5[[#This Row],[Koszt za I przegląd\nbrutto]]+Wykaz_zapasów5[[#This Row],[Koszt za II przegląd\nbrutto]]","v":{"v":0,"d":"0.00 zł"}},"NIE"]
[null,"Wentylator kanałowy","TD 800/200 NHF","Bud. Nr 130 - WPL",7,1,"NIE WYSTĘPUJĄ",0,0,"NIE",{"v":0,"d":"0.00 zł"},null,{"$f":"Wykaz_zapasów5[[#This Row],[Koszt za I przegląd\nbrutto]]+Wykaz_zapasów5[[#This Row],[Koszt za II przegląd\nbrutto]]","v":{"v":0,"d":"0.00 zł"}},"NIE"]
[null,"Wentylator kanałowy","TD 1000/250 LF","Bud. Nr 130 - WPL",1,1,"NIE WYSTĘPUJĄ",0,0,"NIE",{"v":0,"d":"0.00 zł"},null,{"$f":"Wykaz_zapasów5[[#This Row],[Koszt za I przegląd\nbrutto]]+Wykaz_zapasów5[[#This Row],[Koszt za II przegląd\nbrutto]]","v":{"v":0,"d":"0.00 zł"}},"NIE"]
[null,"Wentylator kanałowy","TD 800/200 LF","Bud. Nr 130 - WPL",1,1,"NIE WYSTĘPUJĄ",0,0,"NIE",{"v":0,"d":"0.00 zł"},null,{"$f":"Wykaz_zapasów5[[#This Row],[Koszt za I przegląd\nbrutto]]+Wykaz_zapasów5[[#This Row],[Koszt za II przegląd\nbrutto]]","v":{"v":0,"d":"0.00 zł"}},"NIE"]
[null,"Wentylator kanałowy","TD 1300/250 HF","Bud. Nr 130 - WPL",2,1,"NIE WYSTĘPUJĄ",0,0,"NIE",{"v":0,"d":"0.00 zł"},null,{"$f":"Wykaz_zapasów5[[#This Row],[Koszt za I przegląd\nbrutto]]+Wykaz_zapasów5[[#This Row],[Koszt za II przegląd\nbrutto]]","v":{"v":0,"d":"0.00 zł"}},"NIE"]
[null,"Wentylator kanałowy","TD 2000/315 HF","Bud. Nr 130 - WPL",1,1,"NIE WYSTĘPUJĄ",0,0,"NIE",{"v":0,"d":"0.00 zł"},null,{"$f":"Wykaz_zapasów5[[#This Row],[Koszt za I przegląd\nbrutto]]+Wykaz_zapasów5[[#This Row],[Koszt za II przegląd\nbrutto]]","v":{"v":0,"d":"0.00 zł"}},"NIE"]
[null,"Klimakonwektor przypodłogowy","AWC","Bud. Nr 130 - WPL",92,1,"NIE WYSTĘPUJĄ",0,0,"TAK",{"v":0,"d":"0.00 zł"},null,{"$f":"Wykaz_zapasów5[[#This Row],[Koszt za I przegląd\nbrutto]]+Wykaz_zapasów5[[#This Row],[Koszt za II przegląd\nbrutto]]","v":{"v":0,"d":"0.00 zł"}},"NIE"]
[null,"Klimakonwektor kasetowy","WKW","Bud. Nr 130 - WPL",4,1,"NIE WYSTĘPUJĄ",0,0,"TAK",{"v":0,"d":"0.00 zł"},null,{"$f":"Wykaz_zapasów5[[#This Row],[Koszt za I przegląd\nbrutto]]+Wykaz_zapasów5[[#This Row],[Koszt za II przegląd\nbrutto]]","v":{"v":0,"d":"0.00 zł"}},"NIE"]
[null,"Agregat Wody Lodowej","MC QUAY\nWZH041.2ME ST","Bud. Nr 130 - WPL",2,1,"NIE WYSTĘPUJĄ",0,0,"NIE",{"v":0,"d":"0.00 zł"},null,{"$f":"Wykaz_zapasów5[[#This Row],[Koszt za I przegląd\nbrutto]]+Wykaz_zapasów5[[#This Row],[Koszt za II przegląd\nbrutto]]","v":{"v":0,"d":"0.00 zł"}},"NIE"]
[null,"Agregat skraplający","MC QUAY\nSHVN228HWEN/V","Bud. Nr 130 - WPL",2,1,"NIE WYSTĘPUJĄ",0,0,"NIE",{"v":0,"d":"0.00 zł"},null,{"$f":"Wykaz_zapasów5[[#This Row],[Koszt za I przegląd\nbrutto]]+Wykaz_zapasów5[[#This Row],[Koszt za II przegląd\nbrutto]]","v":{"v":0,"d":"0.00 zł"}},"NIE"]
[null,"Klimatyzator kasetonowy","HITACHI 6015","Bud. Nr 130 - WPL",1,1,"NIE WYSTĘPUJĄ",0,0,"NIE",{"v":0,"d":"0.00 zł"},null,{"$f":"Wykaz_zapasów5[[#This Row],[Koszt za I przegląd\nbrutto]]+Wykaz_zapasów5[[#This Row],[Koszt za II przegląd\nbrutto]]","v":{"v":0,"d":"0.00 zł"}},"NIE"]
[null,"Klimatyzator Split","Jednostka zewnętrzna:\nSINCLAIR SOH-18 BIK\ns/n 62239915605","Bud. Nr 130 - WPL \nDach",1,2,"NIE WYSTĘPUJĄ",0,0,"TAK",null,null,{"$f":"Wykaz_zapasów5[[#This Row],[Koszt za I przegląd\nbrutto]]+Wykaz_zapasów5[[#This Row],[Koszt za II przegląd\nbrutto]]","v":{"v":0,"d":"0.00 zł"}},"TAK"]
[null,null,"Jednostka wewnętrzna:\nSINCLAIR SIH-18 BIK\ns/n","Bud. Nr 130 - WPL pom. 503\nRadio",1,2,"NIE WYSTĘPUJĄ",0,0,"TAK",null,null,{"$f":"Wykaz_zapasów5[[#This Row],[Koszt za I przegląd\nbrutto]]+Wykaz_zapasów5[[#This Row],[Koszt za II przegląd\nbrutto]]","v":{"v":0,"d":"0.00 zł"}},"TAK"]
[null,"Klimatyzator przenośny","CHIGO","Bud. Nr 323 - Domek\npilota",1,1,"NIE WYSTĘPUJĄ",0,0,"TAK",{"v":0,"d":"0.00 zł"},null,{"$f":"Wykaz_zapasów5[[#This Row],[Koszt za I przegląd\nbrutto]]+Wykaz_zapasów5[[#This Row],[Koszt za II przegląd\nbrutto]]","v":{"v":0,"d":"0.00 zł"}},"NIE"]
[null,"Klimatyzator Split K1","Jednostka zewnętrzna:\nROTENSO R35WOR11\ns/n 12672W722ZK71303751","Bud. Nr 324",1,1,"NIE WYSTĘPUJĄ",0,0,"TAK",{"v":0,"d":"0.00 zł"},null,{"$f":"Wykaz_zapasów5[[#This Row],[Koszt za I przegląd\nbrutto]]+Wykaz_zapasów5[[#This Row],[Koszt za II przegląd\nbrutto]]","v":{"v":0,"d":"0.00 zł"}},"NIE"]
[null,null,"Jednostka wewnętrzna:\nROTENSO R35WI/O_R11\ns/N11368nk498zk7150","Bud. Nr 324",1,1,"NIE WYSTĘPUJĄ",0,0,"TAK",{"v":0,"d":"0.00 zł"},null,{"$f":"Wykaz_zapasów5[[#This Row],[Koszt za I przegląd\nbrutto]]+Wykaz_zapasów5[[#This Row],[Koszt za II przegląd\nbrutto]]","v":{"v":0,"d":"0.00 zł"}},"NIE"]
[null,"Klimatyzator Split K2","Jednostka zewnętrzna:\nAUX FREEDOM \nPlus 09 - FH/O\ns/n A38039814403W00100","Bud. Nr 324",1,1,"NIE WYSTĘPUJĄ",0,0,"TAK",{"v":0,"d":"0.00 zł"},null,{"$f":"Wykaz_zapasów5[[#This Row],[Koszt za I przegląd\nbrutto]]+Wykaz_zapasów5[[#This Row],[Koszt za II przegląd\nbrutto]]","v":{"v":0,"d":"0.00 zł"}},"NIE"]
[null,null,"Jednostka wewnętrzna:\nAUX FREEDOM\nPlus 09 - FH/I\ns/n B369889114403N00374","Bud. Nr 324",1,1,"NIE WYSTĘPUJĄ",0,0,"TAK",{"v":0,"d":"0.00 zł"},null,{"$f":"Wykaz_zapasów5[[#This Row],[Koszt za I przegląd\nbrutto]]+Wykaz_zapasów5[[#This Row],[Koszt za II przegląd\nbrutto]]","v":{"v":0,"d":"0.00 zł"}},"NIE"]
[null,"Klimatyzator Split K3","Jednostka zewnętrzna:\nAUX FREEDOM \nPlus 09 - FH/O\ns/n A38039809503W00600","Bud. Nr 324",1,1,"NIE WYSTĘPUJĄ",0,0,"TAK",{"v":0,"d":"0.00 zł"},null,{"$f":"Wykaz_zapasów5[[#This Row],[Koszt za I przegląd\nbrutto]]+Wykaz_zapasów5[[#This Row],[Koszt za II przegląd\nbrutto]]","v":{"v":0,"d":"0.00 zł"}},"NIE"]
[null,null,"Jednostka wewnętrzna:\nAUX FREEDOM\nPlus 09 - FH/I\ns/n B36989809503N00790","Bud. Nr 324",1,1,"NIE WYSTĘPUJĄ",0,0,"TAK",{"v":0,"d":"0.00 zł"},null,{"$f":"Wykaz_zapasów5[[#This Row],[Koszt za I przegląd\nbrutto]]+Wykaz_zapasów5[[#This Row],[Koszt za II przegląd\nbrutto]]","v":{"v":0,"d":"0.00 zł"}},"NIE"]
[null,"Klimatyzator Split K4","Jednostka zewnętrzna:\nAUX FREEDOM\nPlus 09 - FH/O\ns/n A38039814403W00192","Bud. Nr 324",1,1,"NIE WYSTĘPUJĄ",0,0,"TAK",{"v":0,"d":"0.00 zł"},null,{"$f":"Wykaz_zapasów5[[#This Row],[Koszt za I przegląd\nbrutto]]+Wykaz_zapasów5[[#This Row],[Koszt za II przegląd\nbrutto]]","v":{"v":0,"d":"0.00 zł"}},"NIE"]
[null,null,"Jednostka wewnętrzna:\nAUX FREEDOM\nPlus 09 - FH/I\ns/n B26989814403N00378","Bud. Nr 324",1,1,"NIE WYSTĘPUJĄ",0,0,"TAK",{"v":0,"d":"0.00 zł"},null,{"$f":"Wykaz_zapasów5[[#This Row],[Koszt za I przegląd\nbrutto]]+Wykaz_zapasów5[[#This Row],[Koszt za II przegląd\nbrutto]]","v":{"v":0,"d":"0.00 zł"}},"NIE"]
[null,"Agregat Grzewczo Wentylacyjny","JUWENT\nUGW O - 6 - III - W","Bud. Nr 330 - Stary Hangar",4,1,"NIE WYSTĘPUJĄ",0,0,"NIE",{"v":0,"d":"0.00 zł"},null,{"$f":"Wykaz_zapasów5[[#This Row],[Koszt za I przegląd\nbrutto]]+Wykaz_zapasów5[[#This Row],[Koszt za II przegląd\nbrutto]]","v":{"v":0,"d":"0.00 zł"}},"NIE"]
[null,"Klimatyzator Split K1","Jednostka zewnętrzna:\nSHARP","Bud. Nr 339",1,1,"NIE WYSTĘPUJĄ",0,0,"TAK",{"v":0,"d":"0.00 zł"},null,{"$f":"Wykaz_zapasów5[[#This Row],[Koszt za I przegląd\nbrutto]]+Wykaz_zapasów5[[#This Row],[Koszt za II przegląd\nbrutto]]","v":{"v":0,"d":"0.00 zł"}},"NIE"]
[null,null,"Jednostka wewnętrzna:\nSHARP AE - A18GR\ns/n 7605510","Bud. Nr 339",1,1,"NIE WYSTĘPUJĄ",0,0,"TAK",{"v":0,"d":"0.00 zł"},null,{"$f":"Wykaz_zapasów5[[#This Row],[Koszt za I przegląd\nbrutto]]+Wykaz_zapasów5[[#This Row],[Koszt za II przegląd\nbrutto]]","v":{"v":0,"d":"0.00 zł"}},"NIE"]
[null,"Klimatyzator Split K2","Jednostka zewnętrzna:\nSHARP","Bud. Nr 339",1,1,"NIE WYSTĘPUJĄ",0,0,"TAK",{"v":0,"d":"0.00 zł"},null,{"$f":"Wykaz_zapasów5[[#This Row],[Koszt za I przegląd\nbrutto]]+Wykaz_zapasów5[[#This Row],[Koszt za II przegląd\nbrutto]]","v":{"v":0,"d":"0.00 zł"}},"NIE"]
[null,null,"Jednostka wewnętrzna:\nSHARP AE - A18GR\ns/n 7605705","Bud. Nr 339",1,1,"NIE WYSTĘPUJĄ",0,0,"TAK",{"v":0,"d":"0.00 zł"},null,{"$f":"Wykaz_zapasów5[[#This Row],[Koszt za I przegląd\nbrutto]]+Wykaz_zapasów5[[#This Row],[Koszt za II przegląd\nbrutto]]","v":{"v":0,"d":"0.00 zł"}},"NIE"]
[null,"Wentylator dachowy","UNIWERSAL\nDAS 160\ns/n 13331, 13365, 3217","Bud. Nr 392 - Nowy Hangar",3,1,"NIE WYSTĘPUJĄ",0,0,"NIE",{"v":0,"d":"0.00 zł"},null,{"$f":"Wykaz_zapasów5[[#This Row],[Koszt za I przegląd\nbrutto]]+Wykaz_zapasów5[[#This Row],[Koszt za II przegląd\nbrutto]]","v":{"v":0,"d":"0.00 zł"}},"NIE"]
[null,"Wentylator dachowy","UNIWERSAL\nDAS 200\ns/n 3083","Bud. Nr 392 - Nowy Hangar",1,1,"NIE WYSTĘPUJĄ",0,0,"NIE",{"v":0,"d":"0.00 zł"},null,{"$f":"Wykaz_zapasów5[[#This Row],[Koszt za I przegląd\nbrutto]]+Wykaz_zapasów5[[#This Row],[Koszt za II przegląd\nbrutto]]","v":{"v":0,"d":"0.00 zł"}},"NIE"]
[null,"Wentylator dachowy","UNIWERSAL\nDAS 250/900\ns/n 14824","Bud. Nr 392 - Nowy Hangar",1,1,"NIE WYSTĘPUJĄ",0,0,"NIE",{"v":0,"d":"0.00 zł"},null,{"$f":"Wykaz_zapasów5[[#This Row],[Koszt za I przegląd\nbrutto]]+Wykaz_zapasów5[[#This Row],[Koszt za II przegląd\nbrutto]]","v":{"v":0,"d":"0.00 zł"}},"NIE"]
[null,"Wentylator dachowy","UNIWERSAL\nDAExC 160\ns/n 3216, 3156","Bud. Nr 392 - Nowy Hangar",2,1,"NIE WYSTĘPUJĄ",0,0,"NIE",{"v":0,"d":"0.00 zł"},null,{"$f":"Wykaz_zapasów5[[#This Row],[Koszt za I przegląd\nbrutto]]+Wykaz_zapasów5[[#This Row],[Koszt za II przegląd\nbrutto]]","v":{"v":0,"d":"0.00 zł"}},"NIE"]
[null,"Wentylator dachowy","SILWENT\ns/n 1392, 1393","Bud. Nr 392 - Nowy Hangar",2,1,"NIE WYSTĘPUJĄ",0,0,"NIE",{"v":0,"d":"0.00 zł"},null,{"$f":"Wykaz_zapasów5[[#This Row],[Koszt za I przegląd\nbrutto]]+Wykaz_zapasów5[[#This Row],[Koszt za II przegląd\nbrutto]]","v":{"v":0,"d":"0.00 zł"}},"NIE"]
[null,"Wentylator dachowy","KLIMA WENT WP - 5 - D\ns/n 503, 504, 505, 506, 507,\n508, 509, 510, 511, 512, 513","Bud. Nr 392 - Nowy Hangar",11,1,"NIE WYSTĘPUJĄ",0,0,"NIE",{"v":0,"d":"0.00 zł"},null,{"$f":"Wykaz_zapasów5[[#This Row],[Koszt za I przegląd\nbrutto]]+Wykaz_zapasów5[[#This Row],[Koszt za II przegląd\nbrutto]]","v":{"v":0,"d":"0.00 zł"}},"NIE"]
[null,"Wentylator dachowy","KLIMA WENT\nWPW-04/D/Ex/1500\ns/n 569, 570, 571","Bud. Nr 392 - Nowy Hangar",3,1,"NIE WYSTĘPUJĄ",0,0,"NIE",{"v":0,"d":"0.00 zł"},null,{"$f":"Wykaz_zapasów5[[#This Row],[Koszt za I przegląd\nbrutto]]+Wykaz_zapasów5[[#This Row],[Koszt za II przegląd\nbrutto]]","v":{"v":0,"d":"0.00 zł"}},"NIE"]
[null,"Destryfikator","UNIWERSAL","Bud. Nr 392 - Nowy Hangar",12,1,"NIE WYSTĘPUJĄ",0,0,"NIE",{"v":0,"d":"0.00 zł"},null,{"$f":"Wykaz_zapasów5[[#This Row],[Koszt za I przegląd\nbrutto]]+Wykaz_zapasów5[[#This Row],[Koszt za II przegląd\nbrutto]]","v":{"v":0,"d":"0.00 zł"}},"NIE"]
[null,"Instalacja wyrzutowa W32","SYSTEMAIR\nKDRE 65","Bud. Nr 392 - Nowy Hangar",2,1,"NIE WYSTĘPUJĄ",0,0,"NIE",{"v":0,"d":"0.00 zł"},null,{"$f":"Wykaz_zapasów5[[#This Row],[Koszt za I przegląd\nbrutto]]+Wykaz_zapasów5[[#This Row],[Koszt za II przegląd\nbrutto]]","v":{"v":0,"d":"0.00 zł"}},"NIE"]
[null,"Wentylator osiowy kanałowy\n(dolny wyciąg awaryjny) ","VENTURE INDUSTRIES\nAFC/2-500-300","Bud. Nr 392 - Nowy Hangar",13,1,"NIE WYSTĘPUJĄ",0,0,"NIE",{"v":0,"d":"0.00 zł"},null,{"$f":"Wykaz_zapasów5[[#This Row],[Koszt za I przegląd\nbrutto]]+Wykaz_zapasów5[[#This Row],[Koszt za II przegląd\nbrutto]]","v":{"v":0,"d":"0.00 zł"}},"NIE"]
[null,"Wentylator dachowy\n(wentylacja awaryjna)","DAS 630 - 4 Kw\ns/n 154, 155, 156, 157, 158,\n159, 160, 161","Bud. Nr 392 - Nowy Hangar",8,1,"NIE WYSTĘPUJĄ",0,0,"NIE",{"v":0,"d":"0.00 zł"},null,{"$f":"Wykaz_zapasów5[[#This Row],[Koszt za I przegląd\nbrutto]]+Wykaz_zapasów5[[#This Row],[Koszt za II przegląd\nbrutto]]","v":{"v":0,"d":"0.00 zł"}},"NIE"]
[null,"Aparat grzewczo-wentylacyjny","JUWENT\nUGW/0A - 3 - L - T","Bud. Nr 392 - Nowy Hangar",30,1,"NIE WYSTĘPUJĄ",0,0,"NIE",{"v":0,"d":"0.00 zł"},null,{"$f":"Wykaz_zapasów5[[#This Row],[Koszt za I przegląd\nbrutto]]+Wykaz_zapasów5[[#This Row],[Koszt za II przegląd\nbrutto]]","v":{"v":0,"d":"0.00 zł"}},"NIE"]
[null,"Instalacja NW 24 Centrala klimatyzacyjna sekcyjna","VBW BS-2-(50)-P\ns/n C17969/08","Bud. Nr 392 - Nowy Hangar\npom. 223",1,1,"FD-G4 592x592x100\nFK-F5 592x592x500","1\n2","dwa razy do roku","TAK",{"v":0,"d":"0.00 zł"},null,{"$f":"Wykaz_zapasów5[[#This Row],[Koszt za I przegląd\nbrutto]]+Wykaz_zapasów5[[#This Row],[Koszt za II przegląd\nbrutto]]","v":{"v":0,"d":"0.00 zł"}},"NIE"]
[null,"Instalacja NW 25 Centrala klimatyzacyjna sekcyjna","VBW BS-2-(50)-L\ns/n C17970/08","Bud. Nr 392 - Nowy Hangar\npom. 223",1,1,"FD-G4 592x592x100\nFK-F5 592x592x500","1\n2","dwa razy do roku","TAK",{"v":0,"d":"0.00 zł"},null,{"$f":"Wykaz_zapasów5[[#This Row],[Koszt za I przegląd\nbrutto]]+Wykaz_zapasów5[[#This Row],[Koszt za II przegląd\nbrutto]]","v":{"v":0,"d":"0.00 zł"}},"NIE"]
[null,"Instalacja NW 23 Centrala klimatyzacyjna sekcyjna","VBW BS-2-(50)-L\ns/n C17968/08","Bud. Nr 392 - Nowy Hangar\npom. 208",1,1,"FD-G4 592x592x100\nFK-F5 592x592x500","1\n2","dwa razy do roku","TAK",{"v":0,"d":"0.00 zł"},null,{"$f":"Wykaz_zapasów5[[#This Row],[Koszt za I przegląd\nbrutto]]+Wykaz_zapasów5[[#This Row],[Koszt za II przegląd\nbrutto]]","v":{"v":0,"d":"0.00 zł"}},"NIE"]
[null,"Instalacja NW 18 Centrala klimatyzacyjna dachowa","VBW BD-2-(70)-P\ns/n C17964/08","Bud. Nr 392 - Nowy Hangar\nDach od strony akumulatorowni",1,1,"FD-G4 592x592x100\nFK-F5 592x592x500","1\n1","dwa razy do roku","TAK",{"v":0,"d":"0.00 zł"},null,{"$f":"Wykaz_zapasów5[[#This Row],[Koszt za I przegląd\nbrutto]]+Wykaz_zapasów5[[#This Row],[Koszt za II przegląd\nbrutto]]","v":{"v":0,"d":"0.00 zł"}},"NIE"]
[null,"Instalacja NW 14 Centrala klimatyzacyjna dachowa","VBW BD-3-(70)-P\ns/n C17963/08","Bud. Nr 392 - Nowy Hangar\nDach od strony akumulatorowni",1,1,"FD-F7 592x592x590\nFK-F7 287x592x590","1\n1","dwa razy do roku","TAK",{"v":0,"d":"0.00 zł"},null,{"$f":"Wykaz_zapasów5[[#This Row],[Koszt za I przegląd\nbrutto]]+Wykaz_zapasów5[[#This Row],[Koszt za II przegląd\nbrutto]]","v":{"v":0,"d":"0.00 zł"}},"NIE"]
[null,"Instalacja NW 5 Centrala klimatyzacyjna dachowa","VBW BD-3-(70)-P\ns/n C17958/08","Bud. Nr 392 - Nowy Hangar\nDach od strony BTO\n(niższa część)",1,1,"FD-G4 879x592x100\nFK-F7 490x592x590\nFK-F7 287x592x590","1\n2\n3","dwa razy do roku","TAK",{"v":0,"d":"0.00 zł"},null,{"$f":"Wykaz_zapasów5[[#This Row],[Koszt za I przegląd\nbrutto]]+Wykaz_zapasów5[[#This Row],[Koszt za II przegląd\nbrutto]]","v":{"v":0,"d":"0.00 zł"}},"NIE"]
[null,"Instalacja NW 4 Centrala klimatyzacyjna dachowa","VBW BD-1-(70)-P-S\ns/n C17967/08","Bud. Nr 392 - Nowy Hangar\nDach od strony BTO\n(niższa część)",1,1,"FK-F7 592x490x590\nFD-G4 592x490x100","1\n1","dwa razy do roku","TAK",{"v":0,"d":"0.00 zł"},null,{"$f":"Wykaz_zapasów5[[#This Row],[Koszt za I przegląd\nbrutto]]+Wykaz_zapasów5[[#This Row],[Koszt za II przegląd\nbrutto]]","v":{"v":0,"d":"0.00 zł"}},"NIE"]
[null,"Instalacja NW 1 Centrala klimatyzacyjna dachowa","VBW BD-8-(70)-L\ns/n C17955/08","Bud. Nr 392 - Nowy Hangar",1,1,"FD-G4 592x1225x100\nFD-G4 592x287x100\nFK-F5 592x592x500\nFK-F5 490x592x500\nFK-F5 287x592x500\nFK-F5 592x287x500\nFK-F5 490x287x500\nFK-F5 287x287x500\nFD-G4 490x1225x100\nFD-G4 287x1225x100\nFD-G4 592x287x100\nFD-G4 490x287x100\nFD-G4 287x287x100","6\n3\n6\n2\n2\n3\n1\n1\n1\n1\n3\n1\n1\n","dwa razy do roku","TAK",{"v":0,"d":"0.00 zł"},null,{"$f":"Wykaz_zapasów5[[#This Row],[Koszt za I przegląd\nbrutto]]+Wykaz_zapasów5[[#This Row],[Koszt za II przegląd\nbrutto]]","v":{"v":0,"d":"0.00 zł"}},"NIE"]
[null,"Instalacja NW 8 Centrala klimatyzacyjna dachowa","VBW BD-3-(70)-P\ns/n C17960/08","Bud. Nr 392 - Nowy Hangar",1,1,"FK-F7 592x592x590\nFK-F7 287x592x590\nFD-G4 879x592x100","1\n1\n1","dwa razy do roku","TAK",{"v":0,"d":"0.00 zł"},null,{"$f":"Wykaz_zapasów5[[#This Row],[Koszt za I przegląd\nbrutto]]+Wykaz_zapasów5[[#This Row],[Koszt za II przegląd\nbrutto]]","v":{"v":0,"d":"0.00 zł"}},"NIE"]
[null,"Instalacja NW 12 Centrala klimatyzacyjna sekcyjna","VBW BS-1-(50)-P/L\ns/n C17962/08","Bud. Nr 392 - Nowy Hangar\npom. 114",1,1,"FD-G4 490x490x590\nFK-F7 490x490x590","2\n2","dwa razy do roku","TAK",{"v":0,"d":"0.00 zł"},null,{"$f":"Wykaz_zapasów5[[#This Row],[Koszt za I przegląd\nbrutto]]+Wykaz_zapasów5[[#This Row],[Koszt za II przegląd\nbrutto]]","v":{"v":0,"d":"0.00 zł"}},"NIE"]
[null,"Instalacja NW 10 Centrala klimatyzacyjna sekcyjna","VBW BS-2-(50)-P/L-\"S\"\ns/n C17961/08","Bud. Nr 392 - Nowy Hangar\npom. 114",1,1,"FK-F7 592x592x590\nFD-G4 592x592x100 ","1\n1","dwa razy do roku","TAK",{"v":0,"d":"0.00 zł"},null,{"$f":"Wykaz_zapasów5[[#This Row],[Koszt za I przegląd\nbrutto]]+Wykaz_zapasów5[[#This Row],[Koszt za II przegląd\nbrutto]]","v":{"v":0,"d":"0.00 zł"}},"NIE"]
[null,"Instalacja NW 1/2 Centrala klimatyzacyjna dachowa","VBW BD-8-(70)-L\ns/n C17956/08","Bud. Nr 392 - Nowy Hangar",1,1,"FD-G4 592x1225x100\nFD-G4 592x287x100\nFD-G4 490x1225x100\nFD-G4 287x1225x100\nFD-G4 592x287x100\nFD-G4 490x287x100\nFD-G4 287x287x100","6\n3\n1\n1\n3\n1\n1","dwa razy do roku","TAK",{"v":0,"d":"0.00 zł"},null,{"$f":"Wykaz_zapasów5[[#This Row],[Koszt za I przegląd\nbrutto]]+Wykaz_zapasów5[[#This Row],[Koszt za II przegląd\nbrutto]]","v":{"v":0,"d":"0.00 zł"}},"NIE"]
[null,"Instalacja NW 22/1 Centrala klimatyzacyjna dachowa","VBW BD-3-(70)-P\ns/n C17966/08","Bud. Nr 392 - Nowy Hangar",1,1,"FK-F7 490x592x590\nFK-F7 287x592x590\nFD-G4 879x592x100","2\n1\n1","dwa razy do roku","TAK",{"v":0,"d":"0.00 zł"},null,{"$f":"Wykaz_zapasów5[[#This Row],[Koszt za I przegląd\nbrutto]]+Wykaz_zapasów5[[#This Row],[Koszt za II przegląd\nbrutto]]","v":{"v":0,"d":"0.00 zł"}},"NIE"]
[null,"Instalacja NW 22/2 Centrala klimatyzacyjna dachowa","VBW BD-3-(70)-L-S\ns/n C17957/08","Bud. Nr 392 - Nowy Hangar",1,1,"FD-G4 592x490x100\nFK-F7 592x490x590","1\n1","dwa razy do roku","TAK",{"v":0,"d":"0.00 zł"},null,{"$f":"Wykaz_zapasów5[[#This Row],[Koszt za I przegląd\nbrutto]]+Wykaz_zapasów5[[#This Row],[Koszt za II przegląd\nbrutto]]","v":{"v":0,"d":"0.00 zł"}},"NIE"]
[null,"Instalacja NW 7 Centrala klimatyzacyjna dachowa","VBW BD-3-(70)-P\ns/n C17959/08","Bud. Nr 392 - Nowy Hangar",1,1,"FK-F7 490x592x590\nFK-F7 287x592x590\nFD-G4 879x592x100","2\n1\n1","dwa razy do roku","TAK",{"v":0,"d":"0.00 zł"},null,{"$f":"Wykaz_zapasów5[[#This Row],[Koszt za I przegląd\nbrutto]]+Wykaz_zapasów5[[#This Row],[Koszt za II przegląd\nbrutto]]","v":{"v":0,"d":"0.00 zł"}},"NIE"]
[null,"Klimatyzator Multi Split K4M","Jednostka zewnętrzna:\nFUJI AOYA36LBTL\ns/n T001270","Bud. Nr 392 - Nowy Hangar",1,1,"NIE WYSTĘPUJĄ",0,0,"TAK",{"v":0,"d":"0.00 zł"},null,{"$f":"Wykaz_zapasów5[[#This Row],[Koszt za I przegląd\nbrutto]]+Wykaz_zapasów5[[#This Row],[Koszt za II przegląd\nbrutto]]","v":{"v":0,"d":"0.00 zł"}},"NIE"]
[null,1,"Jednostka wewnętrzna:\nFUJI AOYA36LB\ns/n T001270","Bud. Nr 392 - Nowy Hangar",1,1,"NIE WYSTĘPUJĄ",0,0,"TAK",{"v":0,"d":"0.00 zł"},null,{"$f":"Wykaz_zapasów5[[#This Row],[Koszt za I przegląd\nbrutto]]+Wykaz_zapasów5[[#This Row],[Koszt za II przegląd\nbrutto]]","v":{"v":0,"d":"0.00 zł"}},"NIE"]
[null,2,"FUJI AOYA36LB\ns/n T000140","Bud. Nr 392 - Nowy Hangar\npom. 228 - serwerownia",1,1,"NIE WYSTĘPUJĄ",0,0,"TAK",{"v":0,"d":"0.00 zł"},null,{"$f":"Wykaz_zapasów5[[#This Row],[Koszt za I przegląd\nbrutto]]+Wykaz_zapasów5[[#This Row],[Koszt za II przegląd\nbrutto]]","v":{"v":0,"d":"0.00 zł"}},"NIE"]
[null,"Klimatyzator Multi Split KWL","Jednostka zewnętrzna:\nCLINT CHA/4P18\ns/n 291406","Bud. Nr 392 - Nowy Hangar\nDach",1,1,"NIE WYSTĘPUJĄ",0,0,"TAK",{"v":0,"d":"0.00 zł"},null,{"$f":"Wykaz_zapasów5[[#This Row],[Koszt za I przegląd\nbrutto]]+Wykaz_zapasów5[[#This Row],[Koszt za II przegląd\nbrutto]]","v":{"v":0,"d":"0.00 zł"}},"NIE"]
[null,1,"Jednostka wewnetrzna:\nCLINT HWW/V 22","Bud. Nr 392 - Nowy Hangar\npom. 227",1,1,"NIE WYSTĘPUJĄ",0,0,"TAK",{"v":0,"d":"0.00 zł"},null,{"$f":"Wykaz_zapasów5[[#This Row],[Koszt za I przegląd\nbrutto]]+Wykaz_zapasów5[[#This Row],[Koszt za II przegląd\nbrutto]]","v":{"v":0,"d":"0.00 zł"}},"NIE"]
[null,2,"CLINT HWW/V 22","Bud. Nr 392 - Nowy Hangar\npom. 240A",1,1,"NIE WYSTĘPUJĄ",0,0,"TAK",{"v":0,"d":"0.00 zł"},null,{"$f":"Wykaz_zapasów5[[#This Row],[Koszt za I przegląd\nbrutto]]+Wykaz_zapasów5[[#This Row],[Koszt za II przegląd\nbrutto]]","v":{"v":0,"d":"0.00 zł"}},"NIE"]
[null,"Klimatyzator Multi Split K2M","Jednostka podrzędna:\nFUJITSU AJY126UBTF\ns/n 000172","Bud. Nr 392 - Nowy Hangar\nDach (część niższa)",1,1,"NIE WYSTĘPUJĄ",0,0,"TAK",{"v":0,"d":"0.00 zł"},null,{"$f":"Wykaz_zapasów5[[#This Row],[Koszt za I przegląd\nbrutto]]+Wykaz_zapasów5[[#This Row],[Koszt za II przegląd\nbrutto]]","v":{"v":0,"d":"0.00 zł"}},"NIE"]
[null,null,"Jednostka nadrzędna:\nFUJITSU AJY126LBTF\ns/n 000397","Bud. Nr 392 - Nowy Hangar",1,1,"NIE WYSTĘPUJĄ",0,0,"TAK",{"v":0,"d":"0.00 zł"},null,{"$f":"Wykaz_zapasów5[[#This Row],[Koszt za I przegląd\nbrutto]]+Wykaz_zapasów5[[#This Row],[Koszt za II przegląd\nbrutto]]","v":{"v":0,"d":"0.00 zł"}},"NIE"]
[null,1,"Jednostka wewnętrzna:\nFUJITSU ASYE09LACF\ns/n E002113","Bud. Nr 392 - Nowy Hangar\npom. 218",1,1,"NIE WYSTĘPUJĄ",0,0,"TAK",{"v":0,"d":"0.00 zł"},null,{"$f":"Wykaz_zapasów5[[#This Row],[Koszt za I przegląd\nbrutto]]+Wykaz_zapasów5[[#This Row],[Koszt za II przegląd\nbrutto]]","v":{"v":0,"d":"0.00 zł"}},"NIE"]
[null,2,"FUJITSU ASYE09LACF\ns/n E002023","Bud. Nr 392 - Nowy Hangar\npom. 219",1,1,"NIE WYSTĘPUJĄ",0,0,"TAK",{"v":0,"d":"0.00 zł"},null,{"$f":"Wykaz_zapasów5[[#This Row],[Koszt za I przegląd\nbrutto]]+Wykaz_zapasów5[[#This Row],[Koszt za II przegląd\nbrutto]]","v":{"v":0,"d":"0.00 zł"}},"NIE"]
[null,3,"FUJITSU ASYE12LACF\ns/n E001812","Bud. Nr 392 - Nowy Hangar\npom. 229",1,1,"NIE WYSTĘPUJĄ",0,0,"TAK",{"v":0,"d":"0.00 zł"},null,{"$f":"Wykaz_zapasów5[[#This Row],[Koszt za I przegląd\nbrutto]]+Wykaz_zapasów5[[#This Row],[Koszt za II przegląd\nbrutto]]","v":{"v":0,"d":"0.00 zł"}},"NIE"]
[null,4,"FUJITSU ASYE12LACF\ns/n E001863","Bud. Nr 392 - Nowy Hangar\npom. 230",1,1,"NIE WYSTĘPUJĄ",0,0,"TAK",{"v":0,"d":"0.00 zł"},null,{"$f":"Wykaz_zapasów5[[#This Row],[Koszt za I przegląd\nbrutto]]+Wykaz_zapasów5[[#This Row],[Koszt za II przegląd\nbrutto]]","v":{"v":0,"d":"0.00 zł"}},"NIE"]
[null,5,"FUJITSU ASYE12LACF\ns/n E001807","Bud. Nr 392 - Nowy Hangar\npom. 231",1,1,"NIE WYSTĘPUJĄ",0,0,"TAK",{"v":0,"d":"0.00 zł"},null,{"$f":"Wykaz_zapasów5[[#This Row],[Koszt za I przegląd\nbrutto]]+Wykaz_zapasów5[[#This Row],[Koszt za II przegląd\nbrutto]]","v":{"v":0,"d":"0.00 zł"}},"NIE"]
[null,6,"FUJITSU ASYE14LACF\ns/n E001580","Bud. Nr 392 - Nowy Hangar\npom. 213",1,1,"NIE WYSTĘPUJĄ",0,0,"TAK",{"v":0,"d":"0.00 zł"},null,{"$f":"Wykaz_zapasów5[[#This Row],[Koszt za I przegląd\nbrutto]]+Wykaz_zapasów5[[#This Row],[Koszt za II przegląd\nbrutto]]","v":{"v":0,"d":"0.00 zł"}}]
[null,7,"FUJITSU ASYE14LACF\ns/n E000816","Bud. Nr 392 - Nowy Hangar\npom. 217",1,1,"NIE WYSTĘPUJĄ",0,0,"TAK",{"v":0,"d":"0.00 zł"},null,{"$f":"Wykaz_zapasów5[[#This Row],[Koszt za I przegląd\nbrutto]]+Wykaz_zapasów5[[#This Row],[Koszt za II przegląd\nbrutto]]","v":{"v":0,"d":"0.00 zł"}},"NIE"]
[null,8,"FUJITSU ASYE14LACF\ns/n E000818","Bud. Nr 392 - Nowy Hangar\npom. 220",1,1,"NIE WYSTĘPUJĄ",0,0,"TAK",{"v":0,"d":"0.00 zł"},null,{"$f":"Wykaz_zapasów5[[#This Row],[Koszt za I przegląd\nbrutto]]+Wykaz_zapasów5[[#This Row],[Koszt za II przegląd\nbrutto]]","v":{"v":0,"d":"0.00 zł"}},"NIE"]
[null,9,"FUJITSU ASYE14LACF\ns/n E000833","Bud. Nr 392 - Nowy Hangar\npom. 221",1,1,"NIE WYSTĘPUJĄ",0,0,"TAK",{"v":0,"d":"0.00 zł"},null,{"$f":"Wykaz_zapasów5[[#This Row],[Koszt za I przegląd\nbrutto]]+Wykaz_zapasów5[[#This Row],[Koszt za II przegląd\nbrutto]]","v":{"v":0,"d":"0.00 zł"}},"NIE"]
[null,10,"FUJITSU ASYE14LACF\ns/n E000841","Bud. Nr 392 - Nowy Hangar\npom. 236",1,1,"NIE WYSTĘPUJĄ",0,0,"TAK",{"v":0,"d":"0.00 zł"},null,{"$f":"Wykaz_zapasów5[[#This Row],[Koszt za I przegląd\nbrutto]]+Wykaz_zapasów5[[#This Row],[Koszt za II przegląd\nbrutto]]","v":{"v":0,"d":"0.00 zł"}},"NIE"]
[null,11,"FUJITSU AUYA54LATF\ns/n T001993","Bud. Nr 392 - Nowy Hangar\npom. 225",1,1,"NIE WYSTĘPUJĄ",0,0,"TAK",{"v":0,"d":"0.00 zł"},null,{"$f":"Wykaz_zapasów5[[#This Row],[Koszt za I przegląd\nbrutto]]+Wykaz_zapasów5[[#This Row],[Koszt za II przegląd\nbrutto]]","v":{"v":0,"d":"0.00 zł"}},"NIE"]
[null,12,"FUJITSU AUYA54LATF\ns/n T001992","Bud. Nr 392 - Nowy Hangar\npom. 225",1,1,"NIE WYSTĘPUJĄ",0,0,"TAK",{"v":0,"d":"0.00 zł"},null,{"$f":"Wykaz_zapasów5[[#This Row],[Koszt za I przegląd\nbrutto]]+Wykaz_zapasów5[[#This Row],[Koszt za II przegląd\nbrutto]]","v":{"v":0,"d":"0.00 zł"}},"NIE"]
[null,"Klimatyzator Split K6","Jednostka zewnętrzna:\nFUJITSU AOYR12LGC\ns/n E072238","Bud. Nr 392 - Nowy Hangar\nDach (część niższa)",1,1,"NIE WYSTĘPUJĄ",0,0,"TAK",{"v":0,"d":"0.00 zł"},null,{"$f":"Wykaz_zapasów5[[#This Row],[Koszt za I przegląd\nbrutto]]+Wykaz_zapasów5[[#This Row],[Koszt za II przegląd\nbrutto]]","v":{"v":0,"d":"0.00 zł"}},"NIE"]
[null,null,"Jednostka wewnętrzna:\nFUJITSU ASYA12LGC\ns/n E072509","Bud. Nr 392 - Nowy Hangar",1,1,"NIE WYSTĘPUJĄ",0,0,"TAK",{"v":0,"d":"0.00 zł"},null,{"$f":"Wykaz_zapasów5[[#This Row],[Koszt za I przegląd\nbrutto]]+Wykaz_zapasów5[[#This Row],[Koszt za II przegląd\nbrutto]]","v":{"v":0,"d":"0.00 zł"}},"NIE"]
[null,"Klimatyzator Multi Split K1M","Jednostka zewnętrzna:\nFUJITSU A054UJBMR\ns/n T005069","Bud. Nr 392 - Nowy Hangar",1,1,"NIE WYSTĘPUJĄ",0,0,"TAK",{"v":0,"d":"0.00 zł"},null,{"$f":"Wykaz_zapasów5[[#This Row],[Koszt za I przegląd\nbrutto]]+Wykaz_zapasów5[[#This Row],[Koszt za II przegląd\nbrutto]]","v":{"v":0,"d":"0.00 zł"}},"NIE"]
[null,1,"Jednostka wewnętrzna:\nFUJITSU S30UFAJR\ns/n T0098","Bud. Nr 392 - Nowy Hangar",1,1,"NIE WYSTĘPUJĄ",0,0,"TAK",{"v":0,"d":"0.00 zł"},null,{"$f":"Wykaz_zapasów5[[#This Row],[Koszt za I przegląd\nbrutto]]+Wykaz_zapasów5[[#This Row],[Koszt za II przegląd\nbrutto]]","v":{"v":0,"d":"0.00 zł"}},"NIE"]
[null,2,"FUJITSU AS30UFAJR\ns/n T000100","Bud. Nr 392 - Nowy Hangar",1,1,"NIE WYSTĘPUJĄ",0,0,"TAK",{"v":0,"d":"0.00 zł"},null,{"$f":"Wykaz_zapasów5[[#This Row],[Koszt za I przegląd\nbrutto]]+Wykaz_zapasów5[[#This Row],[Koszt za II przegląd\nbrutto]]","v":{"v":0,"d":"0.00 zł"}},"NIE"]
[null,"Klimatyzator Split","Jednostka zewntrzna:\nFUJITSU\ns/n","Bud. Nr 392 - Nowy Hangar",1,1,"NIE WYSTĘPUJĄ",0,0,"TAK",{"v":0,"d":"0.00 zł"},null,{"$f":"Wykaz_zapasów5[[#This Row],[Koszt za I przegląd\nbrutto]]+Wykaz_zapasów5[[#This Row],[Koszt za II przegląd\nbrutto]]","v":{"v":0,"d":"0.00 zł"}},"NIE"]
[null,null,"Jednostka wewnętrzne:\nFUJITSU A0YA18LAU\ns/n E002096","Bud. Nr 392 - Nowy Hangar\npom.   - Służba Dyżurna",1,1,"NIE WYSTĘPUJĄ",0,0,"TAK",{"v":0,"d":"0.00 zł"},null,{"$f":"Wykaz_zapasów5[[#This Row],[Koszt za I przegląd\nbrutto]]+Wykaz_zapasów5[[#This Row],[Koszt za II przegląd\nbrutto]]","v":{"v":0,"d":"0.00 zł"}},"NIE"]
[null,"Klimatyzator Split","Jednostka zewnętrzna:\nLG E12EM.UA3USUW\n126H4A1\ns/n ","Bud. Nr 392 - Nowy Hangar\nDach",1,1,"NIE WYSTĘPUJĄ",0,0,"TAK",{"v":0,"d":"0.00 zł"},null,{"$f":"Wykaz_zapasów5[[#This Row],[Koszt za I przegląd\nbrutto]]+Wykaz_zapasów5[[#This Row],[Koszt za II przegląd\nbrutto]]","v":{"v":0,"d":"0.00 zł"}},"NIE"]
[null,null,"Jednostka wewnętrzne:\nLG E12EM.UA3USUW\n126H4A1\ns/n","Bud. Nr 392 - Nowy Hangar\npom. 214",1,1,"NIE WYSTĘPUJĄ",0,0,"TAK",{"v":0,"d":"0.00 zł"},null,{"$f":"Wykaz_zapasów5[[#This Row],[Koszt za I przegląd\nbrutto]]+Wykaz_zapasów5[[#This Row],[Koszt za II przegląd\nbrutto]]","v":{"v":0,"d":"0.00 zł"}},"NIE"]
[null,"Klimatyzator przenośny","CHIGO\nmoc 3,5 Kw","Bud. Nr 392 - Nowy Hangar",1,1,"NIE WYSTĘPUJĄ",0,0,"TAK",{"v":0,"d":"0.00 zł"},null,{"$f":"Wykaz_zapasów5[[#This Row],[Koszt za I przegląd\nbrutto]]+Wykaz_zapasów5[[#This Row],[Koszt za II przegląd\nbrutto]]","v":{"v":0,"d":"0.00 zł"}},"NIE"]
[null,"Instalacja NW 13 Centrala klimatyzacyjna dachowa","VBW BD - 1-(70)-L\ns/n C17972/08","Bud. Nr 393 - BTO",1,1,"FD-F5 EX 592x490x500",1,"dwa razy do roku","TAK",{"v":0,"d":"0.00 zł"},null,{"$f":"Wykaz_zapasów5[[#This Row],[Koszt za I przegląd\nbrutto]]+Wykaz_zapasów5[[#This Row],[Koszt za II przegląd\nbrutto]]","v":{"v":0,"d":"0.00 zł"}},"NIE"]
[null,"Wentylator dachowy","UNIWERSAL:\nDAExC 250/1400 3G BT3\ns/n 3489\ns/n 3488\ns/n 3487","Bud. Nr 393 - BTO",3,1,"NIE WYSTĘPUJĄ",0,0,"NIE",{"v":0,"d":"0.00 zł"},null,{"$f":"Wykaz_zapasów5[[#This Row],[Koszt za I przegląd\nbrutto]]+Wykaz_zapasów5[[#This Row],[Koszt za II przegląd\nbrutto]]","v":{"v":0,"d":"0.00 zł"}},"NIE"]
[null,"Wentylator dachowy","UNIWERSAL\nDAS-400\ns/n 1508","Bud. Nr 393 - BTO",1,1,"NIE WYSTĘPUJĄ",0,0,"NIE",{"v":0,"d":"0.00 zł"},null,{"$f":"Wykaz_zapasów5[[#This Row],[Koszt za I przegląd\nbrutto]]+Wykaz_zapasów5[[#This Row],[Koszt za II przegląd\nbrutto]]","v":{"v":0,"d":"0.00 zł"}},"NIE"]
[null,"Wentylator dachowy","UNIWERSAL\nDAS-160\ns/n 12947","Bud. Nr 393 - BTO",1,1,"NIE WYSTĘPUJĄ",0,0,"NIE",{"v":0,"d":"0.00 zł"},null,{"$f":"Wykaz_zapasów5[[#This Row],[Koszt za I przegląd\nbrutto]]+Wykaz_zapasów5[[#This Row],[Koszt za II przegląd\nbrutto]]","v":{"v":0,"d":"0.00 zł"}},"NIE"]
[null,"Wentylator dachowy","UNIWERSAL\nDAS-250\ns/n 14698\ns/n 14717","Bud. Nr 393 - BTO",2,1,"NIE WYSTĘPUJĄ",0,0,"NIE",{"v":0,"d":"0.00 zł"},null,{"$f":"Wykaz_zapasów5[[#This Row],[Koszt za I przegląd\nbrutto]]+Wykaz_zapasów5[[#This Row],[Koszt za II przegląd\nbrutto]]","v":{"v":0,"d":"0.00 zł"}},"NIE"]
[null,"Wentylator dachowy","UNIWERSAL\nDAExC 250/900 3G BT3\ns/n 3445","Bud. Nr 393 - BTO",1,1,"NIE WYSTĘPUJĄ",0,0,"NIE",{"v":0,"d":"0.00 zł"},null,{"$f":"Wykaz_zapasów5[[#This Row],[Koszt za I przegląd\nbrutto]]+Wykaz_zapasów5[[#This Row],[Koszt za II przegląd\nbrutto]]","v":{"v":0,"d":"0.00 zł"}},"NIE"]
[null,"Wentylator dachowy","KLIMA WENT\nWP-7D/ExII2GT3\ns/n 12/2009","Bud. Nr 393 - BTO",1,1,"NIE WYSTĘPUJĄ",0,0,"NIE",{"v":0,"d":"0.00 zł"},null,{"$f":"Wykaz_zapasów5[[#This Row],[Koszt za I przegląd\nbrutto]]+Wykaz_zapasów5[[#This Row],[Koszt za II przegląd\nbrutto]]","v":{"v":0,"d":"0.00 zł"}},"NIE"]
[null,"Wentylator dachowy","UNIWERSAL\nDAExC-160 3G BT3\ns/n 3131","Bud. Nr 393 - BTO",1,1,"NIE WYSTĘPUJĄ",0,0,"NIE",{"v":0,"d":"0.00 zł"},null,{"$f":"Wykaz_zapasów5[[#This Row],[Koszt za I przegląd\nbrutto]]+Wykaz_zapasów5[[#This Row],[Koszt za II przegląd\nbrutto]]","v":{"v":0,"d":"0.00 zł"}},"NIE"]
[null,"Wentylator kanałowy","WK \nDOSPEL","Bud. Nr 393 - BTO",1,1,"NIE WYSTĘPUJĄ",0,0,"NIE",{"v":0,"d":"0.00 zł"},null,{"$f":"Wykaz_zapasów5[[#This Row],[Koszt za I przegląd\nbrutto]]+Wykaz_zapasów5[[#This Row],[Koszt za II przegląd\nbrutto]]","v":{"v":0,"d":"0.00 zł"}},"NIE"]
[null,"Wentylator sufitowy","NV\nDOSPEL","Bud. Nr 393 - BTO",1,1,"NIE WYSTĘPUJĄ",0,0,"NIE",{"v":0,"d":"0.00 zł"},null,{"$f":"Wykaz_zapasów5[[#This Row],[Koszt za I przegląd\nbrutto]]+Wykaz_zapasów5[[#This Row],[Koszt za II przegląd\nbrutto]]","v":{"v":0,"d":"0.00 zł"}},"NIE"]
[null,"Klimatyzator N3","Jednostka zewnętrzna:\nMITSUBISHI SUZ-KA71VA2\ns/n 13PO4124","Bud. Nr 420 - WSP",1,1,"NIE WYSTĘPUJĄ",0,0,"TAK",{"v":0,"d":"0.00 zł"},null,{"$f":"Wykaz_zapasów5[[#This Row],[Koszt za I przegląd\nbrutto]]+Wykaz_zapasów5[[#This Row],[Koszt za II przegląd\nbrutto]]","v":{"v":0,"d":"0.00 zł"}},"NIE"]
[null,null,"Jednostka wewnętrzna:\nChłodnica freonowa\nTBKC-2-000-031-1-1 dla\ncentrali wentylacyjnej N3","Bud. Nr 420 - WSP",1,1,"NIE WYSTĘPUJĄ",0,0,"TAK",{"v":0,"d":"0.00 zł"},null,{"$f":"Wykaz_zapasów5[[#This Row],[Koszt za I przegląd\nbrutto]]+Wykaz_zapasów5[[#This Row],[Koszt za II przegląd\nbrutto]]","v":{"v":0,"d":"0.00 zł"}},"NIE"]
[null,"Klimatyzator N5","Jednostka zewnętrzna:\nMITSUBISHI SUZ-KA71VA2\ns/n OXPO8144","Bud. Nr 420 - WSP",1,1,"NIE WYSTĘPUJĄ",0,0,"TAK",{"v":0,"d":"0.00 zł"},null,{"$f":"Wykaz_zapasów5[[#This Row],[Koszt za I przegląd\nbrutto]]+Wykaz_zapasów5[[#This Row],[Koszt za II przegląd\nbrutto]]","v":{"v":0,"d":"0.00 zł"}},"NIE"]
[null,null,"Jednostka wewnętrzna:\nChłodnica freonowa\nTBKC-2-000-031-1-1 dla\ncentrali wentylacyjnej N5","Bud. Nr 420 - WSP",1,1,"NIE WYSTĘPUJĄ",0,0,"TAK",{"v":0,"d":"0.00 zł"},null,{"$f":"Wykaz_zapasów5[[#This Row],[Koszt za I przegląd\nbrutto]]+Wykaz_zapasów5[[#This Row],[Koszt za II przegląd\nbrutto]]","v":{"v":0,"d":"0.00 zł"}},"NIE"]
[null,"Klimatyzator Split K31 nr 1","Jednostka zewnętrzna:\nMITSUBISHI \nPUHZ-P100VHA3\ns/n 1002577","Bud. Nr 420 - WSP",1,1,"NIE WYSTĘPUJĄ",0,0,"TAK",{"v":0,"d":"0.00 zł"},null,{"$f":"Wykaz_zapasów5[[#This Row],[Koszt za I przegląd\nbrutto]]+Wykaz_zapasów5[[#This Row],[Koszt za II przegląd\nbrutto]]","v":{"v":0,"d":"0.00 zł"}},"NIE"]
[null,null,"Jednostka wewnętrzna:\nMITSUBISHI\nPLA-RP100BA-kasetowa","Bud. Nr 420 - WSP",1,1,"NIE WYSTĘPUJĄ",0,0,"TAK",{"v":0,"d":"0.00 zł"},null,{"$f":"Wykaz_zapasów5[[#This Row],[Koszt za I przegląd\nbrutto]]+Wykaz_zapasów5[[#This Row],[Koszt za II przegląd\nbrutto]]","v":{"v":0,"d":"0.00 zł"}},"NIE"]
[null,"Klimatyzator Split K31 nr 2","Jednostka zewnętrzna:\nMITSUBISHI \nPUHZ-P100VHA3\ns/n OM10104","Bud. Nr 420 - WSP",1,1,"NIE WYSTĘPUJĄ",0,0,"TAK",{"v":0,"d":"0.00 zł"},null,{"$f":"Wykaz_zapasów5[[#This Row],[Koszt za I przegląd\nbrutto]]+Wykaz_zapasów5[[#This Row],[Koszt za II przegląd\nbrutto]]","v":{"v":0,"d":"0.00 zł"}},"NIE"]
[null,null,"Jednostka wewnętrzna:\nMITSUBISHI\nPLA-RP100BA-kasetowa","Bud. Nr 420 - WSP",1,1,"NIE WYSTĘPUJĄ",0,0,"TAK",{"v":0,"d":"0.00 zł"},null,{"$f":"Wykaz_zapasów5[[#This Row],[Koszt za I przegląd\nbrutto]]+Wykaz_zapasów5[[#This Row],[Koszt za II przegląd\nbrutto]]","v":{"v":0,"d":"0.00 zł"}},"NIE"]
[null,"Klimatyzator Split K32","Jednostka zewnętrzna:\nMITSUBISHI \nPUHZ-P100VHA3\ns/n OM10103","Bud. Nr 420 - WSP",1,1,"NIE WYSTĘPUJĄ",0,0,"TAK",{"v":0,"d":"0.00 zł"},null,{"$f":"Wykaz_zapasów5[[#This Row],[Koszt za I przegląd\nbrutto]]+Wykaz_zapasów5[[#This Row],[Koszt za II przegląd\nbrutto]]","v":{"v":0,"d":"0.00 zł"}},"NIE"]
[null,null,"Jednostka wewnętrzna:\nMITSUBISHI\nPCA-RP-100GA - podstropowa","Bud. Nr 420 - WSP",1,1,"NIE WYSTĘPUJĄ",0,0,"TAK",{"v":0,"d":"0.00 zł"},null,{"$f":"Wykaz_zapasów5[[#This Row],[Koszt za I przegląd\nbrutto]]+Wykaz_zapasów5[[#This Row],[Koszt za II przegląd\nbrutto]]","v":{"v":0,"d":"0.00 zł"}},"NIE"]
[null,"Klimatyzator N19","Jednostka zewnętrzna:\nMITSUBISHI\nSUZ-KA71VA2\ns/n OXP10371","Bud. Nr 420 - WSP",1,1,"NIE WYSTĘPUJĄ",0,0,"TAK",{"v":0,"d":"0.00 zł"},null,{"$f":"Wykaz_zapasów5[[#This Row],[Koszt za I przegląd\nbrutto]]+Wykaz_zapasów5[[#This Row],[Koszt za II przegląd\nbrutto]]","v":{"v":0,"d":"0.00 zł"}},"NIE"]
[null,null,"Jednostka wewnętrzna:\nChłodnica freonowa\nTBKC-2-000-040-1-1\ndla centrali wentylacyjnej N19","Bud. Nr 420 - WSP",1,1,"NIE WYSTĘPUJĄ",0,0,"TAK",{"v":0,"d":"0.00 zł"},null,{"$f":"Wykaz_zapasów5[[#This Row],[Koszt za I przegląd\nbrutto]]+Wykaz_zapasów5[[#This Row],[Koszt za II przegląd\nbrutto]]","v":{"v":0,"d":"0.00 zł"}},"NIE"]
[null,"Klimatyzator K34","Jednostka zewnętrzna:\nMITSUBISHI\nPUHZ-P250YHA3\ns/n OZU00364","Bud. Nr 420 - WSP",1,1,"NIE WYSTĘPUJĄ",0,0,"TAK",{"v":0,"d":"0.00 zł"},null,{"$f":"Wykaz_zapasów5[[#This Row],[Koszt za I przegląd\nbrutto]]+Wykaz_zapasów5[[#This Row],[Koszt za II przegląd\nbrutto]]","v":{"v":0,"d":"0.00 zł"}},"NIE"]
[null,null,"Jednostka wewnętrzna:\nMITSUBISHI PEA-RP 250GA\nKanałowa","Bud. Nr 420 - WSP",1,1,"NIE WYSTĘPUJĄ",0,0,"TAK",{"v":0,"d":"0.00 zł"},null,{"$f":"Wykaz_zapasów5[[#This Row],[Koszt za I przegląd\nbrutto]]+Wykaz_zapasów5[[#This Row],[Koszt za II przegląd\nbrutto]]","v":{"v":0,"d":"0.00 zł"}},"NIE"]
[null,"Klimatyzator N26","Jednostka zewnętrzna:\nMITSUBISHI \nPUHZ-P125VHA3\ns/n OA00193","Bud. Nr 420 - WSP",1,1,"NIE WYSTĘPUJĄ",0,0,"TAK",{"v":0,"d":"0.00 zł"},null,{"$f":"Wykaz_zapasów5[[#This Row],[Koszt za I przegląd\nbrutto]]+Wykaz_zapasów5[[#This Row],[Koszt za II przegląd\nbrutto]]","v":{"v":0,"d":"0.00 zł"}},"NIE"]
[null,null,"Jednostka wewnętrzna:\nChłodnica freonowa\nTBKC-2-000-050-1-1\ndla centrali wentylacyjnej N26","Bud. Nr 420 - WSP",1,1,"NIE WYSTĘPUJĄ",0,0,"TAK",{"v":0,"d":"0.00 zł"},null,{"$f":"Wykaz_zapasów5[[#This Row],[Koszt za I przegląd\nbrutto]]+Wykaz_zapasów5[[#This Row],[Koszt za II przegląd\nbrutto]]","v":{"v":0,"d":"0.00 zł"}},"NIE"]
[null,"Wentylator dachowy W29","DYNAIR FC314M\ns/n 1FC3249","Bud. Nr 420 - WSP",1,1,"NIE WYSTĘPUJĄ",0,0,"NIE",{"v":0,"d":"0.00 zł"},null,{"$f":"Wykaz_zapasów5[[#This Row],[Koszt za I przegląd\nbrutto]]+Wykaz_zapasów5[[#This Row],[Koszt za II przegląd\nbrutto]]","v":{"v":0,"d":"0.00 zł"}},"NIE"]
[null,"Wentylator dachowy W23","DYNAIR FC314M\ns/n 1FC3249","Bud. Nr 420 - WSP",1,1,"NIE WYSTĘPUJĄ",0,0,"NIE",{"v":0,"d":"0.00 zł"},null,{"$f":"Wykaz_zapasów5[[#This Row],[Koszt za I przegląd\nbrutto]]+Wykaz_zapasów5[[#This Row],[Koszt za II przegląd\nbrutto]]","v":{"v":0,"d":"0.00 zł"}},"NIE"]
[null,"Wentylator dachowy W21","DAS - 160\ns/n 14850","Bud. Nr 420 - WSP",1,1,"NIE WYSTĘPUJĄ",0,0,"NIE",{"v":0,"d":"0.00 zł"},null,{"$f":"Wykaz_zapasów5[[#This Row],[Koszt za I przegląd\nbrutto]]+Wykaz_zapasów5[[#This Row],[Koszt za II przegląd\nbrutto]]","v":{"v":0,"d":"0.00 zł"}},"NIE"]
[null,"Wentylator dachowy W25","DYNAIR FC314M\ns/n 1FC3249","Bud. Nr 420 - WSP",1,1,"NIE WYSTĘPUJĄ",0,0,"NIE",{"v":0,"d":"0.00 zł"},null,{"$f":"Wykaz_zapasów5[[#This Row],[Koszt za I przegląd\nbrutto]]+Wykaz_zapasów5[[#This Row],[Koszt za II przegląd\nbrutto]]","v":{"v":0,"d":"0.00 zł"}},"NIE"]
[null,"Centrala wentylacyjna N1W1","SWEGON\nGOLD 40DRX\ns/n 3039","Bud. Nr 420 - WSP\nhala główna - garaż",1,1,"592x592x620\n592x287x620","6\n6","dwa razy do roku","NIE",{"v":0,"d":"0.00 zł"},null,{"$f":"Wykaz_zapasów5[[#This Row],[Koszt za I przegląd\nbrutto]]+Wykaz_zapasów5[[#This Row],[Koszt za II przegląd\nbrutto]]","v":{"v":0,"d":"0.00 zł"}},"NIE"]
[null,"Centrala wentylacyjna N3W4","SWEGON\nGOLD 04DSD\ns/n 0511\ns/n 0508","Bud. Nr 420 - WSP\nsala sportowa",2,1,"710x350x130",2,"dwa razy do roku","NIE",{"v":0,"d":"0.00 zł"},null,{"$f":"Wykaz_zapasów5[[#This Row],[Koszt za I przegląd\nbrutto]]+Wykaz_zapasów5[[#This Row],[Koszt za II przegląd\nbrutto]]","v":{"v":0,"d":"0.00 zł"}},"NIE"]
[null,"Centrala wentylacyjna N5W6","SWEGON\nGOLD 04DSD\ns/n 0504\ns/n 0509","Bud. Nr 420 - WSP\nsiłownia",2,1,"710x350x130",2,"dwa razy do roku","NIE",{"v":0,"d":"0.00 zł"},null,{"$f":"Wykaz_zapasów5[[#This Row],[Koszt za I przegląd\nbrutto]]+Wykaz_zapasów5[[#This Row],[Koszt za II przegląd\nbrutto]]","v":{"v":0,"d":"0.00 zł"}},"NIE"]
[null,"Centrala wentylacyjna N7","SWEGON\nGOLD 04DSD\ns/n 0505","Bud. Nr 420 - WSP\nsuszarnia",1,1,"710x350x130",1,"dwa razy do roku","NIE",{"v":0,"d":"0.00 zł"},null,{"$f":"Wykaz_zapasów5[[#This Row],[Koszt za I przegląd\nbrutto]]+Wykaz_zapasów5[[#This Row],[Koszt za II przegląd\nbrutto]]","v":{"v":0,"d":"0.00 zł"}},"NIE"]
[null,"Centrala wentylacyjna N8W9","SWEGON\nGOLD 05DSD\ns/n 0263\ns/n 0295","Bud. Nr 420 - WSP\npom. 4, 7, 8, 9, 10",2,1,"710x350x130",2,"dwa razy do roku","NIE",{"v":0,"d":"0.00 zł"},null,{"$f":"Wykaz_zapasów5[[#This Row],[Koszt za I przegląd\nbrutto]]+Wykaz_zapasów5[[#This Row],[Koszt za II przegląd\nbrutto]]","v":{"v":0,"d":"0.00 zł"}},"NIE"]
[null,"Centrala wentylacyjna N28","SWEGON\nGOLD 04DSD\ns/n 0513","Bud. Nr 420 - WSP\npom. 60 - jadalnia",1,1,"710x350x130",1,"dwa razy do roku","NIE",{"v":0,"d":"0.00 zł"},null,{"$f":"Wykaz_zapasów5[[#This Row],[Koszt za I przegląd\nbrutto]]+Wykaz_zapasów5[[#This Row],[Koszt za II przegląd\nbrutto]]","v":{"v":0,"d":"0.00 zł"}},"NIE"]
[null,"Centrala wentylacyjna N19","SWEGON\nGOLD 04DSD\ns/n 0499","Bud. Nr 420 - WSP\npom. 30 - socjalne",1,1,"710x350x130",1,"dwa razy do roku","NIE",{"v":0,"d":"0.00 zł"},null,{"$f":"Wykaz_zapasów5[[#This Row],[Koszt za I przegląd\nbrutto]]+Wykaz_zapasów5[[#This Row],[Koszt za II przegląd\nbrutto]]","v":{"v":0,"d":"0.00 zł"}},"NIE"]
[null,"Centrala wentylacyjna N11W12","SWEGON\nGOLD 04DSD\ns/n 0495\ns/n 0510","Bud. Nr 420 - WSP\npom. 18 - pralnia, suszarnia",2,1,"710x350x130",2,"dwa razy do roku","NIE",{"v":0,"d":"0.00 zł"},null,{"$f":"Wykaz_zapasów5[[#This Row],[Koszt za I przegląd\nbrutto]]+Wykaz_zapasów5[[#This Row],[Koszt za II przegląd\nbrutto]]","v":{"v":0,"d":"0.00 zł"}},"NIE"]
[null,"Centrala wentylacyjna N15","SWEGON\nGOLD 05DSD\ns/n 0265","Bud. Nr 420 - WSP\npom. 11 - garaż- kanał rewizyjny nawiew.",1,1,"710x350x130",1,"dwa razy do roku","NIE",{"v":0,"d":"0.00 zł"},null,{"$f":"Wykaz_zapasów5[[#This Row],[Koszt za I przegląd\nbrutto]]+Wykaz_zapasów5[[#This Row],[Koszt za II przegląd\nbrutto]]","v":{"v":0,"d":"0.00 zł"}},"NIE"]
[null,"Centrala wentylacyjna N22","SWEGON\nGOLD 04DSD\ns/n 0491","Bud. Nr 420 - WSP\npom. 37, 38, 41, 42",1,1,"710x350x130",1,"dwa razy do roku","NIE",{"v":0,"d":"0.00 zł"},null,{"$f":"Wykaz_zapasów5[[#This Row],[Koszt za I przegląd\nbrutto]]+Wykaz_zapasów5[[#This Row],[Koszt za II przegląd\nbrutto]]","v":{"v":0,"d":"0.00 zł"}},"NIE"]
[null,"Centrala wentylacyjna N24","SWEGON\nGOLD 04DSD\ns/n 0512","Bud. Nr 420 - WSP\npom. 48, 49, 50, 51",1,1,"710x350x130",1,"dwa razy do roku","NIE",{"v":0,"d":"0.00 zł"},null,{"$f":"Wykaz_zapasów5[[#This Row],[Koszt za I przegląd\nbrutto]]+Wykaz_zapasów5[[#This Row],[Koszt za II przegląd\nbrutto]]","v":{"v":0,"d":"0.00 zł"}},"NIE"]
[null,"Centrala wentylacyjna N26W27","SWEGON\nGOLD 05DSD\ns/n 0262\ns/n 0286","Bud. Nr 420 - WSP\npom. 52-58",2,1,"710x350x130",1,"dwa razy do roku","NIE",{"v":0,"d":"0.00 zł"},null,{"$f":"Wykaz_zapasów5[[#This Row],[Koszt za I przegląd\nbrutto]]+Wykaz_zapasów5[[#This Row],[Koszt za II przegląd\nbrutto]]","v":{"v":0,"d":"0.00 zł"}},"NIE"]
[null,"Odciagi spalin NORFI","Wentylator promieniowy\n\nWózek odciągowy, szyny jezdne, ssawki dla rur wydechowych","Bud. Nr 420 - WSP","3\n\n\n6",1,"NIE WYSTĘPUJĄ",0,0,"NIE",{"v":0,"d":"0.00 zł"},null,{"$f":"Wykaz_zapasów5[[#This Row],[Koszt za I przegląd\nbrutto]]+Wykaz_zapasów5[[#This Row],[Koszt za II przegląd\nbrutto]]","v":{"v":0,"d":"0.00 zł"}},"NIE"]
[null,"Aparat grzewczo-wentylacyjny","AGW JUWENT\nZS-1/1","Bud. Nr 420 - WSP",4,1,"NIE WYSTĘPUJĄ",0,0,"NIE",{"v":0,"d":"0.00 zł"},null,{"$f":"Wykaz_zapasów5[[#This Row],[Koszt za I przegląd\nbrutto]]+Wykaz_zapasów5[[#This Row],[Koszt za II przegląd\nbrutto]]","v":{"v":0,"d":"0.00 zł"}},"NIE"]
[null,"Wentylator kanałowy","AXA 150A\nZEŚLIZG","Bud. Nr 420 - WSP",1,1,"NIE WYSTĘPUJĄ",0,0,"NIE",{"v":0,"d":"0.00 zł"},null,{"$f":"Wykaz_zapasów5[[#This Row],[Koszt za I przegląd\nbrutto]]+Wykaz_zapasów5[[#This Row],[Koszt za II przegląd\nbrutto]]","v":{"v":0,"d":"0.00 zł"}},"NIE"]
[null,"Centrala wentylacyjna NW1","VTS\nVS-120-R-PH\n8-110-11-2120-00048","Bud. Nr 449 - Magazyn Wielofunkcyjny",1,1,"588x884x50\n588x884x50","3\n3","dwa razy do roku","NIE",{"v":0,"d":"0.00 zł"},null,{"$f":"Wykaz_zapasów5[[#This Row],[Koszt za I przegląd\nbrutto]]+Wykaz_zapasów5[[#This Row],[Koszt za II przegląd\nbrutto]]","v":{"v":0,"d":"0.00 zł"}},"NIE"]
[null,"Centrala wentylacyjna NW2","VTS\nVS-120-R-PH\n8-110-11-2120-00047","Bud. Nr 449 - Magazyn Wielofunkcyjny",1,1,"588x884x50\n588x884x50","3\n3","dwa razy do roku","NIE",{"v":0,"d":"0.00 zł"},null,{"$f":"Wykaz_zapasów5[[#This Row],[Koszt za I przegląd\nbrutto]]+Wykaz_zapasów5[[#This Row],[Koszt za II przegląd\nbrutto]]","v":{"v":0,"d":"0.00 zł"}},"NIE"]
[null,"Centrala wentylacyjna NW3","VTS\nVS-120-R-PH\n8-110-11-2120-00035","Bud. Nr 449 - Magazyn Wielofunkcyjny",1,1,"663x985x50\n663x985x50","3\n3","dwa razy do roku","NIE",{"v":0,"d":"0.00 zł"},null,{"$f":"Wykaz_zapasów5[[#This Row],[Koszt za I przegląd\nbrutto]]+Wykaz_zapasów5[[#This Row],[Koszt za II przegląd\nbrutto]]","v":{"v":0,"d":"0.00 zł"}},"NIE"]
[null,"Klimatyzator Split K5","Jednostka zewnętrzna:\nSINCLAIR ASH-09AIN","Bud. Nr 449 - Magazyn Wielofunkcyjny",1,1,"NIE WYSTĘPUJĄ",0,0,"TAK",{"v":0,"d":"0.00 zł"},null,{"$f":"Wykaz_zapasów5[[#This Row],[Koszt za I przegląd\nbrutto]]+Wykaz_zapasów5[[#This Row],[Koszt za II przegląd\nbrutto]]","v":{"v":0,"d":"0.00 zł"}},"NIE"]
[null,null,"Jednostka wewnętrzna:\nSINCLAIR","Bud. Nr 449 - Magazyn Wielofunkcyjny",1,1,"NIE WYSTĘPUJĄ",0,0,"TAK",{"v":0,"d":"0.00 zł"},null,{"$f":"Wykaz_zapasów5[[#This Row],[Koszt za I przegląd\nbrutto]]+Wykaz_zapasów5[[#This Row],[Koszt za II przegląd\nbrutto]]","v":{"v":0,"d":"0.00 zł"}},"NIE"]
[null,"Klimatyzator Split","Jednostka zewnętrzna:\nGREE\nGWM18AAD-K6DNA1B/0\ns/n 4M08890044210","Bud. Nr 449 - Magazyn Wielofunkcyjny",1,1,"NIE WYSTĘPUJĄ",0,0,"TAK",{"v":0,"d":"0.00 zł"},null,{"$f":"Wykaz_zapasów5[[#This Row],[Koszt za I przegląd\nbrutto]]+Wykaz_zapasów5[[#This Row],[Koszt za II przegląd\nbrutto]]","v":{"v":0,"d":"0.00 zł"}},"NIE"]
[null,null,"Jednostka wewnętrzna:\nGREE\nGWM18QD-K6NA5B/I\ns/n 4M83990002050","Bud. Nr 449 - Magazyn Wielofunkcyjny",1,1,"NIE WYSTĘPUJĄ",0,0,"TAK",{"v":0,"d":"0.00 zł"},null,{"$f":"Wykaz_zapasów5[[#This Row],[Koszt za I przegląd\nbrutto]]+Wykaz_zapasów5[[#This Row],[Koszt za II przegląd\nbrutto]]","v":{"v":0,"d":"0.00 zł"}},"NIE"]
[null,"Klimatyzator Split","Jednostka zewnętrzna:\nGREE\nGWM18AAD-K6DNA1B/0\ns/n 4M08890044204","Bud. Nr 449 - Magazyn Wielofunkcyjny",1,1,"NIE WYSTĘPUJĄ",0,0,"TAK",{"v":0,"d":"0.00 zł"},null,{"$f":"Wykaz_zapasów5[[#This Row],[Koszt za I przegląd\nbrutto]]+Wykaz_zapasów5[[#This Row],[Koszt za II przegląd\nbrutto]]","v":{"v":0,"d":"0.00 zł"}},"NIE"]
[null,null,"Jednostka wewnętrzna:\nGREE\nGWM18QD-KNA5B/I\ns/n 4M8399001843","Bud. Nr 449 - Magazyn Wielofunkcyjny",1,1,"NIE WYSTĘPUJĄ",0,0,"TAK",{"v":0,"d":"0.00 zł"},null,{"$f":"Wykaz_zapasów5[[#This Row],[Koszt za I przegląd\nbrutto]]+Wykaz_zapasów5[[#This Row],[Koszt za II przegląd\nbrutto]]","v":{"v":0,"d":"0.00 zł"}},"NIE"]
[null,"Klimatyzator Split","Jednostka zewnętrzna:\nGREE\nKWH24AAD-K6DNA1A/0\ns/n 4K74790002039","Bud. Nr 449 - Magazyn Wielofunkcyjny",1,1,"NIE WYSTĘPUJĄ",0,0,"TAK",{"v":0,"d":"0.00 zł"},null,{"$f":"Wykaz_zapasów5[[#This Row],[Koszt za I przegląd\nbrutto]]+Wykaz_zapasów5[[#This Row],[Koszt za II przegląd\nbrutto]]","v":{"v":0,"d":"0.00 zł"}},"NIE"]
[null,null,"Jednostka wewnętrzna:\nGREE\nGWM24QD-KDNA5A/I\ns/n 4M84080001669","Bud. Nr 449 - Magazyn Wielofunkcyjny",1,1,"NIE WYSTĘPUJĄ",0,0,"TAK",{"v":0,"d":"0.00 zł"},null,{"$f":"Wykaz_zapasów5[[#This Row],[Koszt za I przegląd\nbrutto]]+Wykaz_zapasów5[[#This Row],[Koszt za II przegląd\nbrutto]]","v":{"v":0,"d":"0.00 zł"}},"NIE"]
[null,"Klimatyzator Split","Jednostka zewnętrzna:\nGREE\nKWH14AAD-K6DNA1A/0\ns/n 4K74780018898","Bud. Nr 449 - Magazyn Wielofunkcyjny",1,1,"NIE WYSTĘPUJĄ",0,0,"TAK",{"v":0,"d":"0.00 zł"},null,{"$f":"Wykaz_zapasów5[[#This Row],[Koszt za I przegląd\nbrutto]]+Wykaz_zapasów5[[#This Row],[Koszt za II przegląd\nbrutto]]","v":{"v":0,"d":"0.00 zł"}},"NIE"]
[null,null,"Jednostka wewnętrzna:\nGREE\nGWM24QD-K6DNA5A/I\ns/n 4M84080001669","Bud. Nr 449 - Magazyn Wielofunkcyjny",1,1,"NIE WYSTĘPUJĄ",0,0,"TAK",{"v":0,"d":"0.00 zł"},null,{"$f":"Wykaz_zapasów5[[#This Row],[Koszt za I przegląd\nbrutto]]+Wykaz_zapasów5[[#This Row],[Koszt za II przegląd\nbrutto]]","v":{"v":0,"d":"0.00 zł"}},"NIE"]
[null,"Klimatyzator Split","Jednostka zewnętrzna:\nGREE\nKWH24AAD-K6DNA1A/0\ns/n 4K74780017518","Bud. Nr 449 - Magazyn Wielofunkcyjny",1,1,"NIE WYSTĘPUJĄ",0,0,"TAK",{"v":0,"d":"0.00 zł"},null,{"$f":"Wykaz_zapasów5[[#This Row],[Koszt za I przegląd\nbrutto]]+Wykaz_zapasów5[[#This Row],[Koszt za II przegląd\nbrutto]]","v":{"v":0,"d":"0.00 zł"}},"NIE"]
[null,null,"Jednostka wewnętrzna:\nGREE\nGWM24QD-K6DNA5A/I\ns/n 4M84080001075","Bud. Nr 449 - Magazyn Wielofunkcyjny",1,1,"NIE WYSTĘPUJĄ",0,0,"TAK",{"v":0,"d":"0.00 zł"},null,{"$f":"Wykaz_zapasów5[[#This Row],[Koszt za I przegląd\nbrutto]]+Wykaz_zapasów5[[#This Row],[Koszt za II przegląd\nbrutto]]","v":{"v":0,"d":"0.00 zł"}},"NIE"]
[null,"Klimatyzator Split","Jednostka zewnętrzna:\nGREE\nKWH24AAD-K6FNA1A/0\ns/n 4K74780018957          ","Bud. Nr 449 - Magazyn Wielofunkcyjny",1,1,"NIE WYSTĘPUJĄ",0,0,"TAK",{"v":0,"d":"0.00 zł"},null,{"$f":"Wykaz_zapasów5[[#This Row],[Koszt za I przegląd\nbrutto]]+Wykaz_zapasów5[[#This Row],[Koszt za II przegląd\nbrutto]]","v":{"v":0,"d":"0.00 zł"}},"NIE"]
[null,null,"Jednostka wewnętrzna:\nGREE\nGWM24QD-K6DNA5A/I\ns/n 4M84080001188            ","Bud. Nr 449 - Magazyn Wielofunkcyjny",1,1,"NIE WYSTĘPUJĄ",0,0,"TAK",{"v":0,"d":"0.00 zł"},null,{"$f":"Wykaz_zapasów5[[#This Row],[Koszt za I przegląd\nbrutto]]+Wykaz_zapasów5[[#This Row],[Koszt za II przegląd\nbrutto]]","v":{"v":0,"d":"0.00 zł"}},"NIE"]
[null,"Klimatyzator Split","Jednostka zewnętrzna:\nGREE\nGWH12QB-K6DNB8I/0\ns/n 4L44490111335        ","Bud. Nr 449 - Magazyn Wielofunkcyjny",1,1,"NIE WYSTĘPUJĄ",0,0,"TAK",{"v":0,"d":"0.00 zł"},null,{"$f":"Wykaz_zapasów5[[#This Row],[Koszt za I przegląd\nbrutto]]+Wykaz_zapasów5[[#This Row],[Koszt za II przegląd\nbrutto]]","v":{"v":0,"d":"0.00 zł"}},"NIE"]
[null,null,"Jednostka wewnętrzna:\nGREE\nGWH12QB-K6DNA5I/I\ns/n 4M66590009966           ","Bud. Nr 449 - Magazyn Wielofunkcyjny",1,1,"NIE WYSTĘPUJĄ",0,0,"TAK",{"v":0,"d":"0.00 zł"},null,{"$f":"Wykaz_zapasów5[[#This Row],[Koszt za I przegląd\nbrutto]]+Wykaz_zapasów5[[#This Row],[Koszt za II przegląd\nbrutto]]","v":{"v":0,"d":"0.00 zł"}},"NIE"]
[null,"Klimatyzator Split","Jednostka zewnętrzna:\nGREE\nGWH12QB-K6DNB8I/0\ns/n 4L44490110271         ","Bud. Nr 449 - Magazyn Wielofunkcyjny",1,1,"NIE WYSTĘPUJĄ",0,0,"TAK",{"v":0,"d":"0.00 zł"},null,{"$f":"Wykaz_zapasów5[[#This Row],[Koszt za I przegląd\nbrutto]]+Wykaz_zapasów5[[#This Row],[Koszt za II przegląd\nbrutto]]","v":{"v":0,"d":"0.00 zł"}},"NIE"]
[null,null,"Jednostka wewnętrzna:\nGREE\nGWH12QB-K6DNA5I/I\ns/n 4M66590009981          ","Bud. Nr 449 - Magazyn Wielofunkcyjny",1,1,"NIE WYSTĘPUJĄ",0,0,"TAK",{"v":0,"d":"0.00 zł"},null,{"$f":"Wykaz_zapasów5[[#This Row],[Koszt za I przegląd\nbrutto]]+Wykaz_zapasów5[[#This Row],[Koszt za II przegląd\nbrutto]]","v":{"v":0,"d":"0.00 zł"}},"NIE"]
[null,"Wentylator dachowy","W1, W2, W3, W4\nAERECO\nTyp C. VEC 100RH","Bud. Nr 449 - Magazyn Wielofunkcyjny",4,1,"NIE WYSTĘPUJĄ",0,0,"NIE",{"v":0,"d":"0.00 zł"},null,{"$f":"Wykaz_zapasów5[[#This Row],[Koszt za I przegląd\nbrutto]]+Wykaz_zapasów5[[#This Row],[Koszt za II przegląd\nbrutto]]","v":{"v":0,"d":"0.00 zł"}},"NIE"]
[null,"Agregat Wody Lodowej","AEREC ANL100A\ns/n 1207005127190001","Bud. Nr 449 - Magazyn Wielofunkcyjny",1,1,"NIE WYSTĘPUJĄ",0,0,"NIE",{"v":0,"d":"0.00 zł"},null,{"$f":"Wykaz_zapasów5[[#This Row],[Koszt za I przegląd\nbrutto]]+Wykaz_zapasów5[[#This Row],[Koszt za II przegląd\nbrutto]]","v":{"v":0,"d":"0.00 zł"}},"NIE"]
[null,"Klimakonwektor","AERMEC","Bud. Nr 449 - Magazyn Wielofunkcyjny",11,1,"NIE WYSTĘPUJĄ",0,0,"TAK",{"v":0,"d":"0.00 zł"},null,{"$f":"Wykaz_zapasów5[[#This Row],[Koszt za I przegląd\nbrutto]]+Wykaz_zapasów5[[#This Row],[Koszt za II przegląd\nbrutto]]","v":{"v":0,"d":"0.00 zł"}},"NIE"]
[null,"Centrala klimatyzacyjna dachowa","VBW BD-11-(50)-L","Bud. Nr 490 - CARGO\n(magazyn)",1,1,"KASETONOWY\nG4 FD 490x1225x100\nFD 592x1225x100","\n2\n6","dwa razy do roku","NIE",{"v":0,"d":"0.00 zł"},null,{"$f":"Wykaz_zapasów5[[#This Row],[Koszt za I przegląd\nbrutto]]+Wykaz_zapasów5[[#This Row],[Koszt za II przegląd\nbrutto]]","v":{"v":0,"d":"0.00 zł"}},"NIE"]
[null,"Centrala klimatyzacyjna dachowa","VBW BD-11(50)-P","Bud. Nr 490 - CARGO\n(magazyn)",1,1,"KASETONOWY\nG4 FD 490x1225x100\nFD 592x1225x100","\n2\n6","dwa razy do roku","NIE",{"v":0,"d":"0.00 zł"},null,{"$f":"Wykaz_zapasów5[[#This Row],[Koszt za I przegląd\nbrutto]]+Wykaz_zapasów5[[#This Row],[Koszt za II przegląd\nbrutto]]","v":{"v":0,"d":"0.00 zł"}},"NIE"]
[null,"Centrala klimatyzacyjna kompaktowa","VBW \nBO-VESTA-H-1 P-BA-NE   ","Bud. Nr 490 - CARGO\n(chłodnia ciał)",1,1,"M5 KF 645x180x360",2,"dwa razy do roku","NIE",{"v":0,"d":"0.00 zł"},null,{"$f":"Wykaz_zapasów5[[#This Row],[Koszt za I przegląd\nbrutto]]+Wykaz_zapasów5[[#This Row],[Koszt za II przegląd\nbrutto]]","v":{"v":0,"d":"0.00 zł"}},"NIE"]
[null,"Centrala klimatyzacyjna sekcyjna ","VBW BS-1 BIS(50)-P ","Bud. Nr 490 - CARGO\n(wentylatorownia-biura)",1,1,"KASETONOWY\nG4 FD 1049x490x100",2,"dwa razy do roku","NIE",{"v":0,"d":"0.00 zł"},null,{"$f":"Wykaz_zapasów5[[#This Row],[Koszt za I przegląd\nbrutto]]+Wykaz_zapasów5[[#This Row],[Koszt za II przegląd\nbrutto]]","v":{"v":0,"d":"0.00 zł"}},"NIE"]
[null,"Centrala klimatyzacyjna sekcyjna ","VBW BS-2(50)-P","Bud. Nr 490 - CARGO\n(wentylatorownia-szatnie)",1,1,"KIESZENIOWY\nF7 FK 592x592x300\nF5 FK 592x592x360","\n1\n1","dwa razy do roku","NIE",{"v":0,"d":"0.00 zł"},null,{"$f":"Wykaz_zapasów5[[#This Row],[Koszt za I przegląd\nbrutto]]+Wykaz_zapasów5[[#This Row],[Koszt za II przegląd\nbrutto]]","v":{"v":0,"d":"0.00 zł"}},"NIE"]
[null,"Centrala klimatyzacyjna sekcyjna ","VBW BS-4(50)-P","Bud. Nr 490 - CARGO\n(pomieszczenie wózków)",1,1,"KASETONOWY\nG4 FD 592x905x100\nFD 287x905x100","\n1\n1","dwa razy do roku","NIE",{"v":0,"d":"0.00 zł"},null,{"$f":"Wykaz_zapasów5[[#This Row],[Koszt za I przegląd\nbrutto]]+Wykaz_zapasów5[[#This Row],[Koszt za II przegląd\nbrutto]]","v":{"v":0,"d":"0.00 zł"}},"NIE"]
[null,"Centrala klimatyzacyjna sekcyjna ","VBW BS-4(50)-L ","Bud. Nr 490 - CARGO\n(pomieszczenie wózków)",1,1,"KASETONOWY\nG4 FD 592x905x100\nFD 287x905x100","\n1\n1","dwa razy do roku","NIE",{"v":0,"d":"0.00 zł"},null,{"$f":"Wykaz_zapasów5[[#This Row],[Koszt za I przegląd\nbrutto]]+Wykaz_zapasów5[[#This Row],[Koszt za II przegląd\nbrutto]]","v":{"v":0,"d":"0.00 zł"}},"NIE"]
[null,"Centrala klimatyzacyjna podwieszana ","VBW SPS-MINI/50-L  ","Bud. Nr 490 - CARGO\n(skład materiałow niebezpiecznych)",1,1,"KASETONOWY\nG4 FD 375x330x50",1,"dwa razy do roku","NIE",{"v":0,"d":"0.00 zł"},null,{"$f":"Wykaz_zapasów5[[#This Row],[Koszt za I przegląd\nbrutto]]+Wykaz_zapasów5[[#This Row],[Koszt za II przegląd\nbrutto]]","v":{"v":0,"d":"0.00 zł"}},"NIE"]
[null,"Aparat grzewczo - wentylacyjny","VBW \nSWO-4/42D-P-H-80/60-T","Bud. Nr 490 - CARGO",4,1,"NIE WYSTĘPUJĄ",0,0,"NIE",{"v":0,"d":"0.00 zł"},null,{"$f":"Wykaz_zapasów5[[#This Row],[Koszt za I przegląd\nbrutto]]+Wykaz_zapasów5[[#This Row],[Koszt za II przegląd\nbrutto]]","v":{"v":0,"d":"0.00 zł"}},"NIE"]
[null,"Aparat grzewczo - wentylacyjny","VBW                                    SWO-3/40E-P-H-80/60-J","Bud. Nr 490 - CARGO",4,1,"NIE WYSTĘPUJĄ",0,0,"NIE",{"v":0,"d":"0.00 zł"},null,{"$f":"Wykaz_zapasów5[[#This Row],[Koszt za I przegląd\nbrutto]]+Wykaz_zapasów5[[#This Row],[Koszt za II przegląd\nbrutto]]","v":{"v":0,"d":"0.00 zł"}},"NIE"]
[null,"Aparat grzewczo - wentylacyjny","VBW                                      SWO-2/35E-P-H-80/60-J","Bud. Nr 490 - CARGO",1,1,"NIE WYSTĘPUJĄ",0,0,"NIE",{"v":0,"d":"0.00 zł"},null,{"$f":"Wykaz_zapasów5[[#This Row],[Koszt za I przegląd\nbrutto]]+Wykaz_zapasów5[[#This Row],[Koszt za II przegląd\nbrutto]]","v":{"v":0,"d":"0.00 zł"}},"NIE"]
[null,"Nagrzewnica elektryczna ","DH 200/45T","Bud. Nr 490 - CARGO",2,1,"NIE WYSTĘPUJĄ",0,0,"NIE",{"v":0,"d":"0.00 zł"},null,{"$f":"Wykaz_zapasów5[[#This Row],[Koszt za I przegląd\nbrutto]]+Wykaz_zapasów5[[#This Row],[Koszt za II przegląd\nbrutto]]","v":{"v":0,"d":"0.00 zł"}},"NIE"]
[null,"Wentylator Kanałowy ","TD 500/160HS","Bud. Nr 490 - CARGO",4,1,"NIE WYSTĘPUJĄ",0,0,"NIE",{"v":0,"d":"0.00 zł"},null,{"$f":"Wykaz_zapasów5[[#This Row],[Koszt za I przegląd\nbrutto]]+Wykaz_zapasów5[[#This Row],[Koszt za II przegląd\nbrutto]]","v":{"v":0,"d":"0.00 zł"}},"NIE"]
[null,"Wentylator Kanałowy ","TD 800/200HS","Bud. Nr 490 - CARGO",6,1,"NIE WYSTĘPUJĄ",0,0,"NIE",{"v":0,"d":"0.00 zł"},null,{"$f":"Wykaz_zapasów5[[#This Row],[Koszt za I przegląd\nbrutto]]+Wykaz_zapasów5[[#This Row],[Koszt za II przegląd\nbrutto]]","v":{"v":0,"d":"0.00 zł"}},"NIE"]
[null,"Wentylator Kanałowy ","TD 1000/250HS","Bud. Nr 490 - CARGO",1,1,"NIE WYSTĘPUJĄ",0,0,"NIE",{"v":0,"d":"0.00 zł"},null,{"$f":"Wykaz_zapasów5[[#This Row],[Koszt za I przegląd\nbrutto]]+Wykaz_zapasów5[[#This Row],[Koszt za II przegląd\nbrutto]]","v":{"v":0,"d":"0.00 zł"}},"NIE"]
[null,"Wentylator Kanałowy ","TD 350/125HS SILENT","Bud. Nr 490 - CARGO",1,1,"NIE WYSTĘPUJĄ",0,0,"NIE",{"v":0,"d":"0.00 zł"},null,{"$f":"Wykaz_zapasów5[[#This Row],[Koszt za I przegląd\nbrutto]]+Wykaz_zapasów5[[#This Row],[Koszt za II przegląd\nbrutto]]","v":{"v":0,"d":"0.00 zł"}},"NIE"]
[null,"Wentylator Kanałowy ","TD 5500/150 SILENT","Bud. Nr 490 - CARGO",1,1,"NIE WYSTĘPUJĄ",0,0,"NIE",{"v":0,"d":"0.00 zł"},null,{"$f":"Wykaz_zapasów5[[#This Row],[Koszt za I przegląd\nbrutto]]+Wykaz_zapasów5[[#This Row],[Koszt za II przegląd\nbrutto]]","v":{"v":0,"d":"0.00 zł"}},"NIE"]
[null,"Wentylator Kanałowy ","SILENT 300 CRZ ","Bud. Nr 490 - CARGO",3,1,"NIE WYSTĘPUJĄ",0,0,"NIE",{"v":0,"d":"0.00 zł"},null,{"$f":"Wykaz_zapasów5[[#This Row],[Koszt za I przegląd\nbrutto]]+Wykaz_zapasów5[[#This Row],[Koszt za II przegląd\nbrutto]]","v":{"v":0,"d":"0.00 zł"}},"NIE"]
[null,"Destryfikator","Juvent DSp-2  ","Bud. Nr 490 - CARGO",10,1,"NIE WYSTĘPUJĄ",0,0,"NIE",{"v":0,"d":"0.00 zł"},null,{"$f":"Wykaz_zapasów5[[#This Row],[Koszt za I przegląd\nbrutto]]+Wykaz_zapasów5[[#This Row],[Koszt za II przegląd\nbrutto]]","v":{"v":0,"d":"0.00 zł"}},"NIE"]
[null,"Klimatyzacja VRF","Jednostka zewnętrzna:\nFUJITSU AJY090LALBH \n(dla układu NW2)","Bud. Nr 490 - CARGO",1,1,"NIE WYSTĘPUJĄ",0,0,"TAK",{"v":0,"d":"0.00 zł"},null,{"$f":"Wykaz_zapasów5[[#This Row],[Koszt za I przegląd\nbrutto]]+Wykaz_zapasów5[[#This Row],[Koszt za II przegląd\nbrutto]]","v":{"v":0,"d":"0.00 zł"}},"NIE"]
[null,"Klimatyzacja VRF","Jednostka zewnętrzna:\nFUJITSU AJYY072LALBH","Bud. Nr 490 - CARGO",1,1,"NIE WYSTĘPUJĄ",0,0,"TAK",{"v":0,"d":"0.00 zł"},null,{"$f":"Wykaz_zapasów5[[#This Row],[Koszt za I przegląd\nbrutto]]+Wykaz_zapasów5[[#This Row],[Koszt za II przegląd\nbrutto]]","v":{"v":0,"d":"0.00 zł"}},"NIE"]
[null,null,"Jednostki wenwnętrzne: \nFUJITSU ASYA007GTAH","Bud. Nr 490 - CARGO\n(pom. 22, 101)",3,1,"NIE WYSTĘPUJĄ",0,0,"TAK",{"v":0,"d":"0.00 zł"},null,{"$f":"Wykaz_zapasów5[[#This Row],[Koszt za I przegląd\nbrutto]]+Wykaz_zapasów5[[#This Row],[Koszt za II przegląd\nbrutto]]","v":{"v":0,"d":"0.00 zł"}},"NIE"]
[null,null,"Jednostki wenwnętrzne: \nFUJITSU ASY009GTAH ","Bud. Nr 490 - CARGO\n(pom. 104-106, 108,14,18)",6,1,"NIE WYSTĘPUJĄ",0,0,"TAK",{"v":0,"d":"0.00 zł"},null,{"$f":"Wykaz_zapasów5[[#This Row],[Koszt za I przegląd\nbrutto]]+Wykaz_zapasów5[[#This Row],[Koszt za II przegląd\nbrutto]]","v":{"v":0,"d":"0.00 zł"}},"NIE"]
[null,"Klimatyzator  K4","Jednostka zewnętrzna: \nFUJITSU AOYG30LFT","Bud. Nr 490 - CARGO\n(dach)",2,1,"NIE WYSTĘPUJĄ",0,0,"TAK",{"v":0,"d":"0.00 zł"},null,{"$f":"Wykaz_zapasów5[[#This Row],[Koszt za I przegląd\nbrutto]]+Wykaz_zapasów5[[#This Row],[Koszt za II przegląd\nbrutto]]","v":{"v":0,"d":"0.00 zł"}},"NIE"]
[null,null,"Jednostka wewnętrzna:\nFUJITSU ASYG30LFCA","Bud. Nr 490 - CARGO\n(pom. 102)",2,1,"NIE WYSTĘPUJĄ",0,0,"TAK",{"v":0,"d":"0.00 zł"},null,{"$f":"Wykaz_zapasów5[[#This Row],[Koszt za I przegląd\nbrutto]]+Wykaz_zapasów5[[#This Row],[Koszt za II przegląd\nbrutto]]","v":{"v":0,"d":"0.00 zł"}},"NIE"]
[null,"Klimatyzator  K5","Jednostka zewnętrzna: \nFUJITSU AOYG30LFT","Bud. Nr 490 - CARGO\n(dach)",2,1,"NIE WYSTĘPUJĄ",0,0,"TAK",{"v":0,"d":"0.00 zł"},null,{"$f":"Wykaz_zapasów5[[#This Row],[Koszt za I przegląd\nbrutto]]+Wykaz_zapasów5[[#This Row],[Koszt za II przegląd\nbrutto]]","v":{"v":0,"d":"0.00 zł"}},"NIE"]
[null,null,"Jednostka wewnętrzna:\nFUJITSU ASYG30LFCA","Bud. Nr 490 - CARGO\n(pom. 9)",2,1,"NIE WYSTĘPUJĄ",0,0,"TAK",{"v":0,"d":"0.00 zł"},null,{"$f":"Wykaz_zapasów5[[#This Row],[Koszt za I przegląd\nbrutto]]+Wykaz_zapasów5[[#This Row],[Koszt za II przegląd\nbrutto]]","v":{"v":0,"d":"0.00 zł"}},"NIE"]
[null,"Klimatyzator  K10","Jednostka zewnętrzna:\nFUJITSU AOYG12LMCE","Bud. Nr 490 - CARGO\n(dach)",1,1,"NIE WYSTĘPUJĄ",0,0,"TAK",{"v":0,"d":"0.00 zł"},null,{"$f":"Wykaz_zapasów5[[#This Row],[Koszt za I przegląd\nbrutto]]+Wykaz_zapasów5[[#This Row],[Koszt za II przegląd\nbrutto]]","v":{"v":0,"d":"0.00 zł"}},"NIE"]
[null,null,"Jednostka wewnętrzna:\nFUJITSU ASYG12LMCE","Bud. Nr 490 - CARGO\n(pom.36)",1,1,"NIE WYSTĘPUJĄ",0,0,"TAK",{"v":0,"d":"0.00 zł"},null,{"$f":"Wykaz_zapasów5[[#This Row],[Koszt za I przegląd\nbrutto]]+Wykaz_zapasów5[[#This Row],[Koszt za II przegląd\nbrutto]]","v":{"v":0,"d":"0.00 zł"}},"NIE"]
[null,"Klimatyzator  K11","Jednostka zewnętrzna:\nFUJITSU AOYG12LMCE","Bud. Nr 490 - CARGO\n(dach)",1,1,"NIE WYSTĘPUJĄ",0,0,"TAK",{"v":0,"d":"0.00 zł"},null,{"$f":"Wykaz_zapasów5[[#This Row],[Koszt za I przegląd\nbrutto]]+Wykaz_zapasów5[[#This Row],[Koszt za II przegląd\nbrutto]]","v":{"v":0,"d":"0.00 zł"}},"NIE"]
[null,null,"Jednostka wewnętrzna:\nFUJITSU ASYG12LMCE","Bud. Nr 490 - CARGO\n(pom.37)",1,1,"NIE WYSTĘPUJĄ",0,0,"TAK",{"v":0,"d":"0.00 zł"},null,{"$f":"Wykaz_zapasów5[[#This Row],[Koszt za I przegląd\nbrutto]]+Wykaz_zapasów5[[#This Row],[Koszt za II przegląd\nbrutto]]","v":{"v":0,"d":"0.00 zł"}},"NIE"]
[null,"Agregat chłodniczy ","CLINT MHA/K 524\n(dla układu NW6)","Bud. Nr 490 - CARGO",2,1,"NIE WYSTĘPUJĄ",0,0,"TAK",{"v":0,"d":"0.00 zł"},null,{"$f":"Wykaz_zapasów5[[#This Row],[Koszt za I przegląd\nbrutto]]+Wykaz_zapasów5[[#This Row],[Koszt za II przegląd\nbrutto]]","v":{"v":0,"d":"0.00 zł"}},"NIE"]
[null,"Agregat chłodniczy z chłodnicą ","Technocold \nBITY2502","Bud. Nr 490 - CARGO",4,1,"NIE WYSTĘPUJĄ",0,0,"TAK",{"v":0,"d":"0.00 zł"},null,{"$f":"Wykaz_zapasów5[[#This Row],[Koszt za I przegląd\nbrutto]]+Wykaz_zapasów5[[#This Row],[Koszt za II przegląd\nbrutto]]","v":{"v":0,"d":"0.00 zł"}},"NIE"]
[null,"Kurtyna powietrza","SHCP-211-4-AXI ","Bud. Nr 490 - CARGO",1,1,"NIE WYSTĘPUJĄ",0,0,"TAK",{"v":0,"d":"0.00 zł"},null,{"$f":"Wykaz_zapasów5[[#This Row],[Koszt za I przegląd\nbrutto]]+Wykaz_zapasów5[[#This Row],[Koszt za II przegląd\nbrutto]]","v":{"v":0,"d":"0.00 zł"}},"NIE"]
[null,"Kurtyna powietrza","SHCP-181-4-AXI  ","Bud. Nr 490 - CARGO",2,1,"NIE WYSTĘPUJĄ",0,0,"TAK",{"v":0,"d":"0.00 zł"},null,{"$f":"Wykaz_zapasów5[[#This Row],[Koszt za I przegląd\nbrutto]]+Wykaz_zapasów5[[#This Row],[Koszt za II przegląd\nbrutto]]","v":{"v":0,"d":"0.00 zł"}},"NIE"]
[null,"Kurtyna powietrza","THI-300-N4-K                     ","Bud. Nr 490 - CARGO",24,1,"NIE WYSTĘPUJĄ",0,0,"TAK",{"v":0,"d":"0.00 zł"},null,{"$f":"Wykaz_zapasów5[[#This Row],[Koszt za I przegląd\nbrutto]]+Wykaz_zapasów5[[#This Row],[Koszt za II przegląd\nbrutto]]","v":{"v":0,"d":"0.00 zł"}},"NIE"]
[null,"Nagrzewnica kanałowa","Venture\nDH-200","Bud. Nr 490 - CARGO",3,1,"Kanalowy DF",1,"dwa razy do roku","TAK",{"v":0,"d":"0.00 zł"},null,{"$f":"Wykaz_zapasów5[[#This Row],[Koszt za I przegląd\nbrutto]]+Wykaz_zapasów5[[#This Row],[Koszt za II przegląd\nbrutto]]","v":{"v":0,"d":"0.00 zł"}},"NIE"]
[null,"Wentylator dachowy przeciwwybuchowy ","DAExC-160/1400 \nII 3G II C T3  0,12 kW","Bud. Nr 491 - MPS 1",1,1,"NIE WYSTĘPUJĄ",0,0,"NIE",{"v":0,"d":"0.00 zł"},null,{"$f":"Wykaz_zapasów5[[#This Row],[Koszt za I przegląd\nbrutto]]+Wykaz_zapasów5[[#This Row],[Koszt za II przegląd\nbrutto]]","v":{"v":0,"d":"0.00 zł"}},"TAK"]
[null,"Wentylator dachowy przeciwwybuchowy ","DAExC-250/MW/900\nII 3G  II C T3  0,18 kW","Bud. Nr 491 - MPS 1",1,1,"NIE WYSTĘPUJĄ",0,0,"NIE",{"v":0,"d":"0.00 zł"},null,{"$f":"Wykaz_zapasów5[[#This Row],[Koszt za I przegląd\nbrutto]]+Wykaz_zapasów5[[#This Row],[Koszt za II przegląd\nbrutto]]","v":{"v":0,"d":"0.00 zł"}},"TAK"]
[null,"Wentylator dachowy przeciwwybuchowy ","DAExC-160/1400 \nII 3G II C T30  0,12 kW","Bud. Nr 492 - MPS 1",1,1,"NIE WYSTĘPUJĄ",0,0,"NIE",{"v":0,"d":"0.00 zł"},null,{"$f":"Wykaz_zapasów5[[#This Row],[Koszt za I przegląd\nbrutto]]+Wykaz_zapasów5[[#This Row],[Koszt za II przegląd\nbrutto]]","v":{"v":0,"d":"0.00 zł"}},"TAK"]
[null,"Wentylator dachowy przeciwwybuchowy ","DAExC-250/MW/900\nII 3G  II C T3  0,18 kW","Bud. Nr 492 - MPS 1",1,1,"NIE WYSTĘPUJĄ",0,0,"NIE",{"v":0,"d":"0.00 zł"},null,{"$f":"Wykaz_zapasów5[[#This Row],[Koszt za I przegląd\nbrutto]]+Wykaz_zapasów5[[#This Row],[Koszt za II przegląd\nbrutto]]","v":{"v":0,"d":"0.00 zł"}},"TAK"]
[null,"Wentylator dachowy wywiewny ","WVPOV-250\n1592","Bud. Nr 493 - MPS 1",1,1,"NIE WYSTĘPUJĄ",0,0,"NIE",{"v":0,"d":"0.00 zł"},null,{"$f":"Wykaz_zapasów5[[#This Row],[Koszt za I przegląd\nbrutto]]+Wykaz_zapasów5[[#This Row],[Koszt za II przegląd\nbrutto]]","v":{"v":0,"d":"0.00 zł"}},"TAK"]
[null,"Wentylator dachowy wywiewny ","WVPOV-250\n1266","Bud. Nr 493 - MPS 1",1,1,"NIE WYSTĘPUJĄ",0,0,"NIE",{"v":0,"d":"0.00 zł"},null,{"$f":"Wykaz_zapasów5[[#This Row],[Koszt za I przegląd\nbrutto]]+Wykaz_zapasów5[[#This Row],[Koszt za II przegląd\nbrutto]]","v":{"v":0,"d":"0.00 zł"}},"TAK"]
[null,"Wentylator łazienkowy ","WBB 175\n04I50327","Bud. Nr 493 - MPS 1",1,1,"NIE WYSTĘPUJĄ",0,0,"NIE",{"v":0,"d":"0.00 zł"},null,{"$f":"Wykaz_zapasów5[[#This Row],[Koszt za I przegląd\nbrutto]]+Wykaz_zapasów5[[#This Row],[Koszt za II przegląd\nbrutto]]","v":{"v":0,"d":"0.00 zł"}},"TAK"]
[null,"Klimatyzator split","Jednostka zewnętrzna: \nLXA IHM18N 2403663350577110150035","Bud. Nr 493 - MPS 1",1,1,"NIE WYSTĘPUJĄ",0,0,"TAK",{"v":0,"d":"0.00 zł"},null,{"$f":"Wykaz_zapasów5[[#This Row],[Koszt za I przegląd\nbrutto]]+Wykaz_zapasów5[[#This Row],[Koszt za II przegląd\nbrutto]]","v":{"v":0,"d":"0.00 zł"}},"TAK"]
[null,null,"Jednostka wewnętrzna: \nLXA IHM18N \n2403663350677090130054","Bud. Nr 493 - MPS 1",1,1,"NIE WYSTĘPUJĄ",0,0,"TAK",{"v":0,"d":"0.00 zł"},null,{"$f":"Wykaz_zapasów5[[#This Row],[Koszt za I przegląd\nbrutto]]+Wykaz_zapasów5[[#This Row],[Koszt za II przegląd\nbrutto]]","v":{"v":0,"d":"0.00 zł"}},"TAK"]
[null,"Klimatyzacja VRV","Jednostka zewnętrzna:\nLV-MO140-I4M \nC70510316021805400004","Bud. Nr 493 - MPS 1",1,1,"NIE WYSTĘPUJĄ",0,0,"TAK",{"v":0,"d":"0.00 zł"},null,{"$f":"Wykaz_zapasów5[[#This Row],[Koszt za I przegląd\nbrutto]]+Wykaz_zapasów5[[#This Row],[Koszt za II przegląd\nbrutto]]","v":{"v":0,"d":"0.00 zł"}},"TAK"]
[null,null,"Jednostki wewnętrzne:\nLV-UC4A28-I4T \nC70412272101781640017\nLV-UC4A22-I4T\nC704122720617816400016\nC704122720617816400022\nC704122720617816400027\nC704122720617816400030 \nC704122720617816400037\n","Bud. Nr 493 - MPS 1",7,1,"NIE WYSTĘPUJĄ",0,0,"TAK",{"v":0,"d":"0.00 zł"},null,{"$f":"Wykaz_zapasów5[[#This Row],[Koszt za I przegląd\nbrutto]]+Wykaz_zapasów5[[#This Row],[Koszt za II przegląd\nbrutto]]","v":{"v":0,"d":"0.00 zł"}},"TAK"]
[null,"Centrala wentylacyjna N1W1","VBW BS-1(50)P\nC46129/18","Bud. Nr 493 - MPS 1",1,1,"FK 592x490x360-F5\nFD 592x490x100-G4","1\n1","raz do roku","TAK",{"v":0,"d":"0.00 zł"},null,{"$f":"Wykaz_zapasów5[[#This Row],[Koszt za I przegląd\nbrutto]]+Wykaz_zapasów5[[#This Row],[Koszt za II przegląd\nbrutto]]","v":{"v":0,"d":"0.00 zł"}},"TAK"]
[null,"Nagrzewnica elektryczna ","CV31,5-15-1MQUL\n1274151","Bud. Nr 493 - MPS 1",1,1,"NIE WYSTĘPUJĄ",0,0,"NIE",{"v":0,"d":"0.00 zł"},null,{"$f":"Wykaz_zapasów5[[#This Row],[Koszt za I przegląd\nbrutto]]+Wykaz_zapasów5[[#This Row],[Koszt za II przegląd\nbrutto]]","v":{"v":0,"d":"0.00 zł"}},"TAK"]
[null,"Aparat grzewczo-wentylacyjny ","VTS VOLCANO VR MINI EC\nVR MINI -18/09041\nVR MINI -18/09042","Bud. Nr 493 - MPS 1",2,1,"NIE WYSTĘPUJĄ",0,0,"NIE",{"v":0,"d":"0.00 zł"},null,{"$f":"Wykaz_zapasów5[[#This Row],[Koszt za I przegląd\nbrutto]]+Wykaz_zapasów5[[#This Row],[Koszt za II przegląd\nbrutto]]","v":{"v":0,"d":"0.00 zł"}},"TAK"]
[null,"Wentylator kanałowy","TD 800/200\n 03U53856","Bud. Nr 494 - MPS 1",1,1,"NIE WYSTĘPUJĄ",0,0,"NIE",{"v":0,"d":"0.00 zł"},null,{"$f":"Wykaz_zapasów5[[#This Row],[Koszt za I przegląd\nbrutto]]+Wykaz_zapasów5[[#This Row],[Koszt za II przegląd\nbrutto]]","v":{"v":0,"d":"0.00 zł"}},"TAK"]
[null,"Nagrzewnica wodna kanałowa","TG-K3/PT100\n172","Bud. Nr 494 - MPS 1",1,1,"NIE WYSTĘPUJĄ",0,0,"NIE",{"v":0,"d":"0.00 zł"},null,{"$f":"Wykaz_zapasów5[[#This Row],[Koszt za I przegląd\nbrutto]]+Wykaz_zapasów5[[#This Row],[Koszt za II przegląd\nbrutto]]","v":{"v":0,"d":"0.00 zł"}},"TAK"]
[null,"Wentylator kanałowy ","WVPOV-160\n0497","Bud. Nr 494 - MPS 1",1,1,"NIE WYSTĘPUJĄ",0,0,"NIE",{"v":0,"d":"0.00 zł"},null,{"$f":"Wykaz_zapasów5[[#This Row],[Koszt za I przegląd\nbrutto]]+Wykaz_zapasów5[[#This Row],[Koszt za II przegląd\nbrutto]]","v":{"v":0,"d":"0.00 zł"}},"TAK"]
[null,"Wentylator kanałowy ","WVPOV-250\n1590, 1591, 1593","Bud. Nr 494 - MPS 1",4,1,"NIE WYSTĘPUJĄ",0,0,"NIE",{"v":0,"d":"0.00 zł"},null,{"$f":"Wykaz_zapasów5[[#This Row],[Koszt za I przegląd\nbrutto]]+Wykaz_zapasów5[[#This Row],[Koszt za II przegląd\nbrutto]]","v":{"v":0,"d":"0.00 zł"}},"TAK"]
[null,"Centrala wentylacyjna N1W1","VBW BD-1\ns/n C46130/18","Bud. Nr 495 -  MPS 1",1,1,"FD 639x592x100-F5\nFK 592x592x360-F5","1\n1","raz do roku","TAK",{"v":0,"d":"0.00 zł"},null,{"$f":"Wykaz_zapasów5[[#This Row],[Koszt za I przegląd\nbrutto]]+Wykaz_zapasów5[[#This Row],[Koszt za II przegląd\nbrutto]]","v":{"v":0,"d":"0.00 zł"}},"TAK"]
[null,"Wentylator","WVPV 630 Ex\ns/n 0568","Bud. Nr 495 -  MPS 1",1,1,"NIE WYSTĘPUJĄ",0,0,"NIE",{"v":0,"d":"0.00 zł"},null,{"$f":"Wykaz_zapasów5[[#This Row],[Koszt za I przegląd\nbrutto]]+Wykaz_zapasów5[[#This Row],[Koszt za II przegląd\nbrutto]]","v":{"v":0,"d":"0.00 zł"}},"TAK"]
[null,"Klimatyzator","Jednostka zewnetrzna:\nLXA IHM09N \ns/n 2403492590276200130055","Bud. Nr 495 -  MPS 1",1,1,"NIE WYSTĘPUJĄ",0,0,"TAK",{"v":0,"d":"0.00 zł"},null,{"$f":"Wykaz_zapasów5[[#This Row],[Koszt za I przegląd\nbrutto]]+Wykaz_zapasów5[[#This Row],[Koszt za II przegląd\nbrutto]]","v":{"v":0,"d":"0.00 zł"}},"TAK"]
[null,null,"Jednostka wewnętrzna:\nLXA IHM09N\ns/n 24036603351277120120096 ","Bud. Nr 495 -  MPS 1",1,1,"NIE WYSTĘPUJĄ",0,0,"TAK",{"v":0,"d":"0.00 zł"},null,{"$f":"Wykaz_zapasów5[[#This Row],[Koszt za I przegląd\nbrutto]]+Wykaz_zapasów5[[#This Row],[Koszt za II przegląd\nbrutto]]","v":{"v":0,"d":"0.00 zł"}},"TAK"]
[null,"Wentylator dachowy wywiewny w wykonaniu przeciwwybuchowym Ex ","WVPOV 315 PW\ns/n 0499","Bud. Nr 500 -  MPS 1",1,1,"NIE WYSTĘPUJĄ",0,0,"NIE",{"v":0,"d":"0.00 zł"},null,{"$f":"Wykaz_zapasów5[[#This Row],[Koszt za I przegląd\nbrutto]]+Wykaz_zapasów5[[#This Row],[Koszt za II przegląd\nbrutto]]","v":{"v":0,"d":"0.00 zł"}},"TAK"]
[null,"Centala Wentylacyjna ","SALDA RIS 1900 \nHE EKO 3.0","Bud. Nr 223 - PST+INFR",1,1,"M 569x520x46\nF7 692x520x46","1\n1","dwa razy do roku","NIE",{"v":0,"d":"0.00 zł"},null,{"$f":"Wykaz_zapasów5[[#This Row],[Koszt za I przegląd\nbrutto]]+Wykaz_zapasów5[[#This Row],[Koszt za II przegląd\nbrutto]]","v":{"v":0,"d":"0.00 zł"}},"TAK"]
[null,"Klimatyzator split\nKONTENER","Jednostka zewnętrzna:     \nGREE \nGWH09AGAXB-K6DNA1B/O ","Bud. Nr 223 - PST+INFR\n(przy budynku)",4,1,"NIE WYSTĘPUJĄ",0,0,"TAK",{"v":0,"d":"0.00 zł"},null,{"$f":"Wykaz_zapasów5[[#This Row],[Koszt za I przegląd\nbrutto]]+Wykaz_zapasów5[[#This Row],[Koszt za II przegląd\nbrutto]]","v":{"v":0,"d":"0.00 zł"}},"NIE"]
[null,null,"Jednostka wewnętrzna:  \nGREE                                   \nGWH09AGAXB-K6DNA1B/O ","Bud. Nr 223 - PST+INFR",4,1,"NIE WYSTĘPUJĄ",0,0,"TAK",{"v":0,"d":"0.00 zł"},null,{"$f":"Wykaz_zapasów5[[#This Row],[Koszt za I przegląd\nbrutto]]+Wykaz_zapasów5[[#This Row],[Koszt za II przegląd\nbrutto]]","v":{"v":0,"d":"0.00 zł"}},"NIE"]
[null,"Klimatyzator Split","Jednostka zewnętrzna:\nSINCLAIR SOH-12 BIK\ns/n 63249910332","Bud. 232 Pst+INFR\nKotłownia",1,2,"NIE WYSTĘPUJĄ",0,0,"TAK",null,null,{"$f":"Wykaz_zapasów5[[#This Row],[Koszt za I przegląd\nbrutto]]+Wykaz_zapasów5[[#This Row],[Koszt za II przegląd\nbrutto]]","v":{"v":0,"d":"0.00 zł"}},"TAK"]
[null,null,"Jednostka wewnętrzna:\nSINCLAIR SIH-12 BIK\ns/n 4U77920000073","Bud. 232 Pst+INFR\nKotłownia",1,2,"NIE WYSTĘPUJĄ",0,0,"TAK",null,null,{"$f":"Wykaz_zapasów5[[#This Row],[Koszt za I przegląd\nbrutto]]+Wykaz_zapasów5[[#This Row],[Koszt za II przegląd\nbrutto]]","v":{"v":0,"d":"0.00 zł"}},"TAK"]
[null,"Centrala wentlacyjna","VTS  \nVS-40-L-PMH","Bud. Nr 240 - PST+INFR",1,1,"490x490x250",4,"dwa razy do roku","NIE",{"v":0,"d":"0.00 zł"},null,{"$f":"Wykaz_zapasów5[[#This Row],[Koszt za I przegląd\nbrutto]]+Wykaz_zapasów5[[#This Row],[Koszt za II przegląd\nbrutto]]","v":{"v":0,"d":"0.00 zł"}},"NIE"]
[null,"Centrala wentlacyjna","VTS\nVS-100-R-PMH","Bud. Nr 240 - PST+INFR",2,1,"490x490x250\n428x287x200","16\n8","dwa razy do roku","NIE",{"v":0,"d":"0.00 zł"},null,{"$f":"Wykaz_zapasów5[[#This Row],[Koszt za I przegląd\nbrutto]]+Wykaz_zapasów5[[#This Row],[Koszt za II przegląd\nbrutto]]","v":{"v":0,"d":"0.00 zł"}},"NIE"]
[null,"Centrala wentylacyjna","VTS\nVS-30-R-PMH","Bud. Nr 240 - PST+INFR",1,1,"428x428x250",4,"dwa razy do roku","NIE",{"v":0,"d":"0.00 zł"},null,{"$f":"Wykaz_zapasów5[[#This Row],[Koszt za I przegląd\nbrutto]]+Wykaz_zapasów5[[#This Row],[Koszt za II przegląd\nbrutto]]","v":{"v":0,"d":"0.00 zł"}},"NIE"]
[null,"Centrala wentylacyjna","VTS\nVS-180-R-PMH","Bud. Nr 240 - PST+INFR",1,1,"490x592x250",16,"dwa razy do roku","NIE",{"v":0,"d":"0.00 zł"},null,{"$f":"Wykaz_zapasów5[[#This Row],[Koszt za I przegląd\nbrutto]]+Wykaz_zapasów5[[#This Row],[Koszt za II przegląd\nbrutto]]","v":{"v":0,"d":"0.00 zł"}},"NIE"]
[null,"Wentylator dachowy","W1 do W5","Bud. Nr 240 - PST+INFR",5,1,"NIE WYSTĘPUJĄ",0,0,"NIE",{"v":0,"d":"0.00 zł"},null,{"$f":"Wykaz_zapasów5[[#This Row],[Koszt za I przegląd\nbrutto]]+Wykaz_zapasów5[[#This Row],[Koszt za II przegląd\nbrutto]]","v":{"v":0,"d":"0.00 zł"}},"NIE"]
[null,"Wentylator dachowy","W1 do W3","Bud. Nr 240 - PST+INFR",3,1,"NIE WYSTĘPUJĄ",0,0,"NIE",{"v":0,"d":"0.00 zł"},null,{"$f":"Wykaz_zapasów5[[#This Row],[Koszt za I przegląd\nbrutto]]+Wykaz_zapasów5[[#This Row],[Koszt za II przegląd\nbrutto]]","v":{"v":0,"d":"0.00 zł"}},"NIE"]
[null,"Klimatyzator Multi Split","Jednostka zewnętnrzna:\nSINCLAIR MS-E36AI                ","Bud. Nr 240 - PST+INFR\n(dach)",1,1,"NIE WYSTĘPUJĄ",0,0,"TAK",{"v":0,"d":"0.00 zł"},null,{"$f":"Wykaz_zapasów5[[#This Row],[Koszt za I przegląd\nbrutto]]+Wykaz_zapasów5[[#This Row],[Koszt za II przegląd\nbrutto]]","v":{"v":0,"d":"0.00 zł"}},"NIE"]
[null,null,"Jednostka wewnętrzna:\nSINCLAIR MSH-12AIC NPT ","Bud. Nr 240 - PST+INFR\n(sala odpraw)",3,1,"NIE WYSTĘPUJĄ",0,0,"TAK",{"v":0,"d":"0.00 zł"},null,{"$f":"Wykaz_zapasów5[[#This Row],[Koszt za I przegląd\nbrutto]]+Wykaz_zapasów5[[#This Row],[Koszt za II przegląd\nbrutto]]","v":{"v":0,"d":"0.00 zł"}},"NIE"]
[null,"Klimatyzator  Split ","Jednostki zewnętrzne: \nSINCLAIR ASH-24AIM PT","Bud. Nr 240 - PST+INFR\n(dach)",3,1,"NIE WYSTĘPUJĄ",0,0,"TAK",{"v":0,"d":"0.00 zł"},null,{"$f":"Wykaz_zapasów5[[#This Row],[Koszt za I przegląd\nbrutto]]+Wykaz_zapasów5[[#This Row],[Koszt za II przegląd\nbrutto]]","v":{"v":0,"d":"0.00 zł"}},"NIE"]
[null,null,"Jednostki wewnętrzne:\nSINCLAIR MSH-24AIM PT ","Bud. Nr 240 - PST+INFR\n(sprężarkowania)",3,1,"NIE WYSTĘPUJĄ",0,0,"TAK",{"v":0,"d":"0.00 zł"},null,{"$f":"Wykaz_zapasów5[[#This Row],[Koszt za I przegląd\nbrutto]]+Wykaz_zapasów5[[#This Row],[Koszt za II przegląd\nbrutto]]","v":{"v":0,"d":"0.00 zł"}},"NIE"]
[null,"Aparat grzewczo wentylacyjny","VBW ","Bud. Nr 240 - PST+INFR",4,1,"NIE WYSTĘPUJĄ",0,0,"NIE",{"v":0,"d":"0.00 zł"},null,{"$f":"Wykaz_zapasów5[[#This Row],[Koszt za I przegląd\nbrutto]]+Wykaz_zapasów5[[#This Row],[Koszt za II przegląd\nbrutto]]","v":{"v":0,"d":"0.00 zł"}},"NIE"]
[null,"Centrala Wentylacyjna nawiew - wywiew ","SYSTEM AIR\nDV40 A/S Denmark","Bud. Nr 386 - PST+INFR",1,1,"F4 490x745x534",6,"raz do roku","NIE",{"v":0,"d":"0.00 zł"},null,{"$f":"Wykaz_zapasów5[[#This Row],[Koszt za I przegląd\nbrutto]]+Wykaz_zapasów5[[#This Row],[Koszt za II przegląd\nbrutto]]","v":{"v":0,"d":"0.00 zł"}},"NIE"]
[null,"Szynowy wyciąg spalin","NEDERMAN typ 920/1500","Bud. Nr 386 - PST+INFR",2,1,"NIE WYSTĘPUJĄ",0,0,"NIE",{"v":0,"d":"0.00 zł"},null,{"$f":"Wykaz_zapasów5[[#This Row],[Koszt za I przegląd\nbrutto]]+Wykaz_zapasów5[[#This Row],[Koszt za II przegląd\nbrutto]]","v":{"v":0,"d":"0.00 zł"}},"NIE"]
[null,"Klimatyzator przenośny","CHIGO\nmodel CS51U3A-PB152AEQ","Bud. Nr 447 - PST+INFR",1,1,"NIE WYSTĘPUJĄ",0,0,"TAK",{"v":0,"d":"0.00 zł"},null,{"$f":"Wykaz_zapasów5[[#This Row],[Koszt za I przegląd\nbrutto]]+Wykaz_zapasów5[[#This Row],[Koszt za II przegląd\nbrutto]]","v":{"v":0,"d":"0.00 zł"}},"NIE"]
[null,"Wentylator dachowy","W1 do W2","Bud. Nr 447 - PST+INFR",2,1,"NIE WYSTĘPUJĄ",0,0,"NIE",{"v":0,"d":"0.00 zł"},null,{"$f":"Wykaz_zapasów5[[#This Row],[Koszt za I przegląd\nbrutto]]+Wykaz_zapasów5[[#This Row],[Koszt za II przegląd\nbrutto]]","v":{"v":0,"d":"0.00 zł"}},"NIE"]
[null,"Klimatyzator  Split ","Jednostka zewnętrzna:\nGREE GWH12QB-K6DNDND8I/0\ns/n 4L44490111334            ","Bud. Nr 447 - PST+INFR",1,1,"NIE WYSTĘPUJĄ",0,0,"TAK",{"v":0,"d":"0.00 zł"},null,{"$f":"Wykaz_zapasów5[[#This Row],[Koszt za I przegląd\nbrutto]]+Wykaz_zapasów5[[#This Row],[Koszt za II przegląd\nbrutto]]","v":{"v":0,"d":"0.00 zł"}},"TAK"]
[null,null,"Jednostka wewnętrzna:\nGREE GWH12QB-K6DNA5I/I\ns/n 41166590009971        ","Bud. Nr 447 - PST+INFR",1,1,"NIE WYSTĘPUJĄ",0,0,"TAK",{"v":0,"d":"0.00 zł"},null,{"$f":"Wykaz_zapasów5[[#This Row],[Koszt za I przegląd\nbrutto]]+Wykaz_zapasów5[[#This Row],[Koszt za II przegląd\nbrutto]]","v":{"v":0,"d":"0.00 zł"}},"TAK"]
[null,"Klimatyzator  Split ","Jednostka zewnętrzna:\nGREE GWH12QB-K6DNDND8I/0\ns/n            ","Bud. Nr 447 - PST+INFR",1,1,"NIE WYSTĘPUJĄ",0,0,"TAK",{"v":0,"d":"0.00 zł"},null,{"$f":"Wykaz_zapasów5[[#This Row],[Koszt za I przegląd\nbrutto]]+Wykaz_zapasów5[[#This Row],[Koszt za II przegląd\nbrutto]]","v":{"v":0,"d":"0.00 zł"}},"TAK"]
[null,null,"Jednostka wewnętrzna:\nGREE GWH12QB-K6DNA5I/I\ns/n 41166590009535           ","Bud. Nr 447 - PST+INFR",1,1,"NIE WYSTĘPUJĄ",0,0,"TAK",{"v":0,"d":"0.00 zł"},null,{"$f":"Wykaz_zapasów5[[#This Row],[Koszt za I przegląd\nbrutto]]+Wykaz_zapasów5[[#This Row],[Koszt za II przegląd\nbrutto]]","v":{"v":0,"d":"0.00 zł"}},"TAK"]
[null,"Klimatyzator  Split ","Jednostka zewnętrzna:\nGREE GWH09QB-K6DNBI/0\ns/n 4L44690048371     ","Bud. Nr 447 - PST+INFR",1,1,"NIE WYSTĘPUJĄ",0,0,"TAK",{"v":0,"d":"0.00 zł"},null,{"$f":"Wykaz_zapasów5[[#This Row],[Koszt za I przegląd\nbrutto]]+Wykaz_zapasów5[[#This Row],[Koszt za II przegląd\nbrutto]]","v":{"v":0,"d":"0.00 zł"}},"TAK"]
[null,null,"Jednostka wewnętrzna:\nGREE GWH09QB-K6DNA5I/I \ns/n 41166490006564        ","Bud. Nr 447 - PST+INFR",1,1,"NIE WYSTĘPUJĄ",0,0,"TAK",{"v":0,"d":"0.00 zł"},null,{"$f":"Wykaz_zapasów5[[#This Row],[Koszt za I przegląd\nbrutto]]+Wykaz_zapasów5[[#This Row],[Koszt za II przegląd\nbrutto]]","v":{"v":0,"d":"0.00 zł"}},"TAK"]
[null,"Klimatyzator  Split ","Jednostka zewnętrzna:\nSINCLAIR\nFocus Plus ASH 13 BIF2\ns/n 63229992866","Bud. Nr 447 - PST+INFR",1,1,"NIE WYSTĘPUJĄ",0,0,"TAK",{"v":0,"d":"0.00 zł"},null,{"$f":"Wykaz_zapasów5[[#This Row],[Koszt za I przegląd\nbrutto]]+Wykaz_zapasów5[[#This Row],[Koszt za II przegląd\nbrutto]]","v":{"v":0,"d":"0.00 zł"}},"TAK"]
[null,null,"Jednostka wewnętrzna:\nSINCLAIR\nFocus Plus ASH 13 BIF2\ns/n 4M94800004624","Bud. Nr 447 - PST+INFR\n(pom. 106)",1,1,"NIE WYSTĘPUJĄ",0,0,"TAK",{"v":0,"d":"0.00 zł"},null,{"$f":"Wykaz_zapasów5[[#This Row],[Koszt za I przegląd\nbrutto]]+Wykaz_zapasów5[[#This Row],[Koszt za II przegląd\nbrutto]]","v":{"v":0,"d":"0.00 zł"}},"TAK"]
[null,"Klimatyzator  Split ","Jednostka zewnętrzna:\nSINCLAIR\nFocus Plus ASH 13 BIF2\ns/n 63229992868","Bud. Nr 447 - PST+INFR",1,1,"NIE WYSTĘPUJĄ",0,0,"TAK",{"v":0,"d":"0.00 zł"},null,{"$f":"Wykaz_zapasów5[[#This Row],[Koszt za I przegląd\nbrutto]]+Wykaz_zapasów5[[#This Row],[Koszt za II przegląd\nbrutto]]","v":{"v":0,"d":"0.00 zł"}},"TAK"]
[null,null,"Jednostka wewnętrzna:\nSINCLAIR\nFocus Plus ASH 13 BIF2\ns/n 4M94800001781","Bud. Nr 447 - PST+INFR\n(pom. 107)",1,1,"NIE WYSTĘPUJĄ",0,0,"TAK",{"v":0,"d":"0.00 zł"},null,{"$f":"Wykaz_zapasów5[[#This Row],[Koszt za I przegląd\nbrutto]]+Wykaz_zapasów5[[#This Row],[Koszt za II przegląd\nbrutto]]","v":{"v":0,"d":"0.00 zł"}},"TAK"]
[null,"Klimatyzator  Split ","Jednostka zewnętrzna:\nSINCLAIR\nFocus Plus ASH 13 BIF2\ns/n 63229992860","Bud. Nr 447 - PST+INFR",1,1,"NIE WYSTĘPUJĄ",0,0,"TAK",{"v":0,"d":"0.00 zł"},null,{"$f":"Wykaz_zapasów5[[#This Row],[Koszt za I przegląd\nbrutto]]+Wykaz_zapasów5[[#This Row],[Koszt za II przegląd\nbrutto]]","v":{"v":0,"d":"0.00 zł"}},"TAK"]
[null,null,"Jednostka wewnętrzna:\nSINCLAIR\nFocus Plus ASH 13 BIF2\ns/n 4M94800004627","Bud. Nr 447 - PST+INFR\n(pom. 112)",1,1,"NIE WYSTĘPUJĄ",0,0,"TAK",{"v":0,"d":"0.00 zł"},null,{"$f":"Wykaz_zapasów5[[#This Row],[Koszt za I przegląd\nbrutto]]+Wykaz_zapasów5[[#This Row],[Koszt za II przegląd\nbrutto]]","v":{"v":0,"d":"0.00 zł"}},"TAK"]
[null,"Wentylator Dachowy","ROOF JETT \nGEARJVL.6371.6B20","Bud. Nr 450 - Strzelnica",2,1,"NIE WYSTĘPUJĄ",0,0,"NIE",{"v":0,"d":"0.00 zł"},null,{"$f":"Wykaz_zapasów5[[#This Row],[Koszt za I przegląd\nbrutto]]+Wykaz_zapasów5[[#This Row],[Koszt za II przegląd\nbrutto]]","v":{"v":0,"d":"0.00 zł"}},"TAK"]
[null,"Wentylator Dachowy","ROSENBERG\nDV 190-2E","Bud. Nr 450 - Strzelnica",2,1,"NIE WYSTĘPUJĄ",0,0,"NIE",{"v":0,"d":"0.00 zł"},null,{"$f":"Wykaz_zapasów5[[#This Row],[Koszt za I przegląd\nbrutto]]+Wykaz_zapasów5[[#This Row],[Koszt za II przegląd\nbrutto]]","v":{"v":0,"d":"0.00 zł"}},"NIE"]
[null,"Instalacja NW01 Centrala wentylacyjna","GEA KLIMA\nCAIR plus 064.064. AVBV","Bud. Nr 450 - Strzelnica",1,1,"G4 592x592x300",2,"dwa razy do roku","NIE",{"v":0,"d":"0.00 zł"},null,{"$f":"Wykaz_zapasów5[[#This Row],[Koszt za I przegląd\nbrutto]]+Wykaz_zapasów5[[#This Row],[Koszt za II przegląd\nbrutto]]","v":{"v":0,"d":"0.00 zł"}},"NIE"]
[null,"Instalacja NW04 Centrala wentylacyjna","GEA KLIMA\nCAIR plus 160.160 AVBV                                                                 ","Bud. Nr 450 - Strzelnica",1,1,"592x592x300 \n592x287x300  ","12\n6","dwa razy do roku","NIE",{"v":0,"d":"0.00 zł"},null,{"$f":"Wykaz_zapasów5[[#This Row],[Koszt za I przegląd\nbrutto]]+Wykaz_zapasów5[[#This Row],[Koszt za II przegląd\nbrutto]]","v":{"v":0,"d":"0.00 zł"}},"NIE"]
[null,"Instalacja N06 Centrala wentylacyjna","GEA KLIMA\nCAIR plus 096.064 AVBV","Bud. Nr 450 - Strzelnica",4,1,"592x592x500 \n592x287x500","4\n4","dwa razy do roku","NIE",{"v":0,"d":"0.00 zł"},null,{"$f":"Wykaz_zapasów5[[#This Row],[Koszt za I przegląd\nbrutto]]+Wykaz_zapasów5[[#This Row],[Koszt za II przegląd\nbrutto]]","v":{"v":0,"d":"0.00 zł"}},"NIE"]
[null,"Instalacja NW02 Centrala wentylacyjna","GEA KLIMA\nAT picco 10.05 IVBV","Bud. Nr 450 - Strzelnica",1,1,"G4 592x287x360",2,"dwa razy do roku","NIE",{"v":0,"d":"0.00 zł"},null,{"$f":"Wykaz_zapasów5[[#This Row],[Koszt za I przegląd\nbrutto]]+Wykaz_zapasów5[[#This Row],[Koszt za II przegląd\nbrutto]]","v":{"v":0,"d":"0.00 zł"}},"NIE"]
[null,"Instalacja NW05 Centrala wentylacyjna","VTS                                                 VS-150-R-SS/PH/SF","Bud. Nr 450 - Strzelnica",2,1,"490x490x300 \n490x490x600 EU9","32\n16","dwa razy do roku","NIE",{"v":0,"d":"0.00 zł"},null,{"$f":"Wykaz_zapasów5[[#This Row],[Koszt za I przegląd\nbrutto]]+Wykaz_zapasów5[[#This Row],[Koszt za II przegląd\nbrutto]]","v":{"v":0,"d":"0.00 zł"}},"NIE"]
[null,"Instalacja NW03 Centrala wentylacyjna","PRO VENT                             Mistral P 1100 Pro-Vent","Bud. Nr 450 - Strzelnica",1,1,"mata filtracyjna G4","6m2","dwa razy do roku","NIE",{"v":0,"d":"0.00 zł"},null,{"$f":"Wykaz_zapasów5[[#This Row],[Koszt za I przegląd\nbrutto]]+Wykaz_zapasów5[[#This Row],[Koszt za II przegląd\nbrutto]]","v":{"v":0,"d":"0.00 zł"}},"NIE"]
[null,"Centrala Wentylacyjna ","VTS                                                 VS-75-R-PMH","Bud. Nr 451",1,1,"428X428X250 \n428x287x250 ","6\n6","raz do roku","NIE",{"v":0,"d":"0.00 zł"},null,{"$f":"Wykaz_zapasów5[[#This Row],[Koszt za I przegląd\nbrutto]]+Wykaz_zapasów5[[#This Row],[Koszt za II przegląd\nbrutto]]","v":{"v":0,"d":"0.00 zł"}},"NIE"]
[null,"Centrala Wentylacyjna ","VTS                                                 VS-55-L-PMH","Bud. Nr 451",1,1,"592x592x250",4,"raz do roku","NIE",{"v":0,"d":"0.00 zł"},null,{"$f":"Wykaz_zapasów5[[#This Row],[Koszt za I przegląd\nbrutto]]+Wykaz_zapasów5[[#This Row],[Koszt za II przegląd\nbrutto]]","v":{"v":0,"d":"0.00 zł"}},"NIE"]
[null,"Wentylator dachowy ","W1-W10","Bud. Nr 451",10,1,"NIE WYSTĘPUJĄ",0,0,"NIE",{"v":0,"d":"0.00 zł"},null,{"$f":"Wykaz_zapasów5[[#This Row],[Koszt za I przegląd\nbrutto]]+Wykaz_zapasów5[[#This Row],[Koszt za II przegląd\nbrutto]]","v":{"v":0,"d":"0.00 zł"}},"NIE"]
[null,"Aparat Grzewczo Wentylacyjny","VBW","Bud. Nr 451",3,1,"NIE WYSTĘPUJĄ",0,0,"NIE",{"v":0,"d":"0.00 zł"},null,{"$f":"Wykaz_zapasów5[[#This Row],[Koszt za I przegląd\nbrutto]]+Wykaz_zapasów5[[#This Row],[Koszt za II przegląd\nbrutto]]","v":{"v":0,"d":"0.00 zł"}},"NIE"]
[null,"Centrala Wentylacyjna ","VTS\nVS-15-R-PH-T","Bud. Nr 452",1,1,"710x300x50",2,"raz do roku","NIE",{"v":0,"d":"0.00 zł"},null,{"$f":"Wykaz_zapasów5[[#This Row],[Koszt za I przegląd\nbrutto]]+Wykaz_zapasów5[[#This Row],[Koszt za II przegląd\nbrutto]]","v":{"v":0,"d":"0.00 zł"}},"NIE"]
[null,"Centrala Wentylacyjna ","VTS\nVS-100-R-PMH","Bud. Nr 452",1,1,"490x490x250 \n428x287x250 ","6\n6","raz do roku","NIE",{"v":0,"d":"0.00 zł"},null,{"$f":"Wykaz_zapasów5[[#This Row],[Koszt za I przegląd\nbrutto]]+Wykaz_zapasów5[[#This Row],[Koszt za II przegląd\nbrutto]]","v":{"v":0,"d":"0.00 zł"}},"NIE"]
[null,"Wentylator dachowy","W1-W10","Bud. Nr 452",3,1,"NIE WYSTĘPUJĄ",0,0,"NIE",{"v":0,"d":"0.00 zł"},null,{"$f":"Wykaz_zapasów5[[#This Row],[Koszt za I przegląd\nbrutto]]+Wykaz_zapasów5[[#This Row],[Koszt za II przegląd\nbrutto]]","v":{"v":0,"d":"0.00 zł"}},"NIE"]
[null,"Aparat Grzewczo Wentylacyjny","VBW","Bud. Nr 452",4,1,"NIE WYSTĘPUJĄ",0,0,"NIE",{"v":0,"d":"0.00 zł"},null,{"$f":"Wykaz_zapasów5[[#This Row],[Koszt za I przegląd\nbrutto]]+Wykaz_zapasów5[[#This Row],[Koszt za II przegląd\nbrutto]]","v":{"v":0,"d":"0.00 zł"}},"NIE"]
[null,"Centrala Wentylacyjna ","VTS\nVS-10-R-PH-T","Bud. Nr 454",1,1,"572x275x50",2,"raz do roku","NIE",{"v":0,"d":"0.00 zł"},null,{"$f":"Wykaz_zapasów5[[#This Row],[Koszt za I przegląd\nbrutto]]+Wykaz_zapasów5[[#This Row],[Koszt za II przegląd\nbrutto]]","v":{"v":0,"d":"0.00 zł"}},"NIE"]
[null,"Centrala Wentylacyjna ","VTS\nVS-30-R-PMH","Bud. Nr 461",1,1,"428x428x250 ",4,"raz do roku","NIE",{"v":0,"d":"0.00 zł"},null,{"$f":"Wykaz_zapasów5[[#This Row],[Koszt za I przegląd\nbrutto]]+Wykaz_zapasów5[[#This Row],[Koszt za II przegląd\nbrutto]]","v":{"v":0,"d":"0.00 zł"}},"NIE"]
[null,"Wentylator dachowy","W1 do W8","Bud. Nr 463",8,1,"NIE WYSTĘPUJĄ",0,0,"NIE",{"v":0,"d":"0.00 zł"},null,{"$f":"Wykaz_zapasów5[[#This Row],[Koszt za I przegląd\nbrutto]]+Wykaz_zapasów5[[#This Row],[Koszt za II przegląd\nbrutto]]","v":{"v":0,"d":"0.00 zł"}},"NIE"]
[null,"Wentylator dachowy","W1 do W8","Bud. Nr 464",8,1,"NIE WYSTĘPUJĄ",0,0,"NIE",{"v":0,"d":"0.00 zł"},null,{"$f":"Wykaz_zapasów5[[#This Row],[Koszt za I przegląd\nbrutto]]+Wykaz_zapasów5[[#This Row],[Koszt za II przegląd\nbrutto]]","v":{"v":0,"d":"0.00 zł"}},"NIE"]
[null,"Wentylator dachowy","W1 do W8","Bud. Nr 465",8,1,"NIE WYSTĘPUJĄ",0,0,"NIE",{"v":0,"d":"0.00 zł"},null,{"$f":"Wykaz_zapasów5[[#This Row],[Koszt za I przegląd\nbrutto]]+Wykaz_zapasów5[[#This Row],[Koszt za II przegląd\nbrutto]]","v":{"v":0,"d":"0.00 zł"}},"NIE"]
[null,"Centrala Wentylacyjna ","VTS\nVS-120-R-PMH","Bud. Nr 466",2,1,"592x287x250 \n592x592x250 ","12\n12","raz do roku","NIE",{"v":0,"d":"0.00 zł"},null,{"$f":"Wykaz_zapasów5[[#This Row],[Koszt za I przegląd\nbrutto]]+Wykaz_zapasów5[[#This Row],[Koszt za II przegląd\nbrutto]]","v":{"v":0,"d":"0.00 zł"}},"NIE"]
[null,"Aparat Grzewczo Wentylacyjny","FLOWAIR\nLeo FB","Bud. Nr 466",10,1,"NIE WYSTĘPUJĄ",0,0,"NIE",{"v":0,"d":"0.00 zł"},null,{"$f":"Wykaz_zapasów5[[#This Row],[Koszt za I przegląd\nbrutto]]+Wykaz_zapasów5[[#This Row],[Koszt za II przegląd\nbrutto]]","v":{"v":0,"d":"0.00 zł"}},"NIE"]
[null,"Centrala Wentylacyjna ","VTS\nVS-150-R-PMH","Bud. Nr 467",2,1,"490x490x250 ",32,"raz do roku","NIE",{"v":0,"d":"0.00 zł"},null,{"$f":"Wykaz_zapasów5[[#This Row],[Koszt za I przegląd\nbrutto]]+Wykaz_zapasów5[[#This Row],[Koszt za II przegląd\nbrutto]]","v":{"v":0,"d":"0.00 zł"}},"NIE"]
[null,"Centrala Wentylacyjna ","VTS\nVS-40-L-PMH","Bud. Nr 467",2,1,"490x490x250 ",8,"raz do roku","NIE",{"v":0,"d":"0.00 zł"},null,{"$f":"Wykaz_zapasów5[[#This Row],[Koszt za I przegląd\nbrutto]]+Wykaz_zapasów5[[#This Row],[Koszt za II przegląd\nbrutto]]","v":{"v":0,"d":"0.00 zł"}},"NIE"]
[null,"Wentylator dachowy","W1 do W4","Bud. Nr 467",4,1,"NIE WYSTĘPUJĄ",0,0,"NIE",{"v":0,"d":"0.00 zł"},null,{"$f":"Wykaz_zapasów5[[#This Row],[Koszt za I przegląd\nbrutto]]+Wykaz_zapasów5[[#This Row],[Koszt za II przegląd\nbrutto]]","v":{"v":0,"d":"0.00 zł"}},"NIE"]
[null,"Aparat Grzewczo Wentylacyjny","FLOWAIR\nLeo FB","Bud. Nr 467",10,1,"NIE WYSTĘPUJĄ",0,0,"NIE",{"v":0,"d":"0.00 zł"},null,{"$f":"Wykaz_zapasów5[[#This Row],[Koszt za I przegląd\nbrutto]]+Wykaz_zapasów5[[#This Row],[Koszt za II przegląd\nbrutto]]","v":{"v":0,"d":"0.00 zł"}},"NIE"]
[null,"Centrala Wentylacyjna ","VTS\nVS-120-R-PMH","Bud. Nr 468",2,1,"592x287x250 \n592x592x250 ","12\n12","raz do roku","NIE",{"v":0,"d":"0.00 zł"},null,{"$f":"Wykaz_zapasów5[[#This Row],[Koszt za I przegląd\nbrutto]]+Wykaz_zapasów5[[#This Row],[Koszt za II przegląd\nbrutto]]","v":{"v":0,"d":"0.00 zł"}},"NIE"]
[null,"Aparat Grzewczo Wentylacyjny","FLOWAIR\nLeo FB","Bud. Nr 468",10,1,"NIE WYSTĘPUJĄ",0,0,"NIE",{"v":0,"d":"0.00 zł"},null,{"$f":"Wykaz_zapasów5[[#This Row],[Koszt za I przegląd\nbrutto]]+Wykaz_zapasów5[[#This Row],[Koszt za II przegląd\nbrutto]]","v":{"v":0,"d":"0.00 zł"}},"NIE"]
[null,"Centrala Wentylacyjna ","VTS\nVS-150-R-PMH","Bud. Nr 469",2,1,"490x490x250 ",32,"raz do roku","NIE",{"v":0,"d":"0.00 zł"},null,{"$f":"Wykaz_zapasów5[[#This Row],[Koszt za I przegląd\nbrutto]]+Wykaz_zapasów5[[#This Row],[Koszt za II przegląd\nbrutto]]","v":{"v":0,"d":"0.00 zł"}},"NIE"]
[null,"Centrala Wentylacyjna ","VTS\nVS-40-L-PMH","Bud. Nr 469",2,1,"490x490x250 ",8,"raz do roku","NIE",{"v":0,"d":"0.00 zł"},null,{"$f":"Wykaz_zapasów5[[#This Row],[Koszt za I przegląd\nbrutto]]+Wykaz_zapasów5[[#This Row],[Koszt za II przegląd\nbrutto]]","v":{"v":0,"d":"0.00 zł"}},"NIE"]
[null,"Wentylator dachowy","W1 do W4","Bud. Nr 469",4,1,"NIE WYSTĘPUJĄ",0,0,"NIE",{"v":0,"d":"0.00 zł"},null,{"$f":"Wykaz_zapasów5[[#This Row],[Koszt za I przegląd\nbrutto]]+Wykaz_zapasów5[[#This Row],[Koszt za II przegląd\nbrutto]]","v":{"v":0,"d":"0.00 zł"}},"NIE"]
[null,"Aparat Grzewczo Wentylacyjny","FLOWAIR\nLeo FB","Bud. Nr 469",10,1,"NIE WYSTĘPUJĄ",0,0,"NIE",{"v":0,"d":"0.00 zł"},null,{"$f":"Wykaz_zapasów5[[#This Row],[Koszt za I przegląd\nbrutto]]+Wykaz_zapasów5[[#This Row],[Koszt za II przegląd\nbrutto]]","v":{"v":0,"d":"0.00 zł"}},"NIE"]
[null,"Centrala Wentylacyjna ","VTS\nVS-120-R-PMH","Bud. Nr 470",2,1,"592x287x250 \n592x592x250 ","12\n12","raz do roku","NIE",{"v":0,"d":"0.00 zł"},null,{"$f":"Wykaz_zapasów5[[#This Row],[Koszt za I przegląd\nbrutto]]+Wykaz_zapasów5[[#This Row],[Koszt za II przegląd\nbrutto]]","v":{"v":0,"d":"0.00 zł"}},"NIE"]
[null,"Aparat Grzewczo Wentylacyjny","FLOWAIR\nLeo FB","Bud. Nr 470",10,1,"NIE WYSTĘPUJĄ",0,0,"NIE",{"v":0,"d":"0.00 zł"},null,{"$f":"Wykaz_zapasów5[[#This Row],[Koszt za I przegląd\nbrutto]]+Wykaz_zapasów5[[#This Row],[Koszt za II przegląd\nbrutto]]","v":{"v":0,"d":"0.00 zł"}},"NIE"]
[null,"Centrala Wentylacyjna ","VTS\nVS-150-R-PMH","Bud. Nr 471",2,1,"490x490x250 ",32,"raz do roku","NIE",{"v":0,"d":"0.00 zł"},null,{"$f":"Wykaz_zapasów5[[#This Row],[Koszt za I przegląd\nbrutto]]+Wykaz_zapasów5[[#This Row],[Koszt za II przegląd\nbrutto]]","v":{"v":0,"d":"0.00 zł"}},"NIE"]
[null,"Centrala Wentylacyjna ","VTS\nVS-40-L-PMH","Bud. Nr 471",2,1,"490x490x250 ",8,"raz do roku","NIE",{"v":0,"d":"0.00 zł"},null,{"$f":"Wykaz_zapasów5[[#This Row],[Koszt za I przegląd\nbrutto]]+Wykaz_zapasów5[[#This Row],[Koszt za II przegląd\nbrutto]]","v":{"v":0,"d":"0.00 zł"}},"NIE"]
[null,"Wentylator dachowy","W1 do W4","Bud. Nr 471",4,1,"NIE WYSTĘPUJĄ",0,0,"NIE",{"v":0,"d":"0.00 zł"},null,{"$f":"Wykaz_zapasów5[[#This Row],[Koszt za I przegląd\nbrutto]]+Wykaz_zapasów5[[#This Row],[Koszt za II przegląd\nbrutto]]","v":{"v":0,"d":"0.00 zł"}},"NIE"]
[null,"Aparat Grzewczo Wentylacyjny","FLOWAIR\nLeo FB","Bud. Nr 471",10,1,"NIE WYSTĘPUJĄ",0,0,"NIE",{"v":0,"d":"0.00 zł"},null,{"$f":"Wykaz_zapasów5[[#This Row],[Koszt za I przegląd\nbrutto]]+Wykaz_zapasów5[[#This Row],[Koszt za II przegląd\nbrutto]]","v":{"v":0,"d":"0.00 zł"}},"NIE"]
[null,"Klimatyzacja Split","Jednostka zewnętrzna:\nJednostka wewnętrzna","KONTENERY\nStara ósemka",74,2,"NIE WYSTĘPUJĄ",0,0,"TAK",null,null,{"$f":"Wykaz_zapasów5[[#This Row],[Koszt za I przegląd\nbrutto]]+Wykaz_zapasów5[[#This Row],[Koszt za II przegląd\nbrutto]]","v":{"v":0,"d":"0.00 zł"}},"TAK"]
[null,"Klimatyzacja Split","Jednostka zewnętrzna:\nJednostka wewnętrzna","KONTENERY\nSTRAŻ- INFRASTRUKTURA",10,2,"NIE WYSTĘPUJĄ",0,0,"TAK",null,null,{"$f":"Wykaz_zapasów5[[#This Row],[Koszt za I przegląd\nbrutto]]+Wykaz_zapasów5[[#This Row],[Koszt za II przegląd\nbrutto]]","v":{"v":0,"d":"0.00 zł"}},"TAK"]
[null,"POZOSTAŁE JEDNOSTKI",{"$nulls":4},""]
[null,"Klimatyzator Split ","Jednostka zewnętrzna: \nPanasonic CU-UE9PKE ","Agregat kontenerowy\nKompleks 4204",1,1,"NIE WYSTĘPUJĄ",0,0,"TAK",{"v":0,"d":"0.00 zł"},null,{"$f":"Wykaz_zapasów5[[#This Row],[Koszt za I przegląd\nbrutto]]+Wykaz_zapasów5[[#This Row],[Koszt za II przegląd\nbrutto]]","v":{"v":0,"d":"0.00 zł"}},"NIE"]
[null,null,"Jednostka wewnętrzna:\nPanasonic CS-UE9PKE","Agregat kontenerowy\nKompleks 4204",1,1,"NIE WYSTĘPUJĄ",0,0,"TAK",{"v":0,"d":"0.00 zł"},null,{"$f":"Wykaz_zapasów5[[#This Row],[Koszt za I przegląd\nbrutto]]+Wykaz_zapasów5[[#This Row],[Koszt za II przegląd\nbrutto]]","v":{"v":0,"d":"0.00 zł"}},"NIE"]
[null,"Klimatyzator Split ","Jednostka zewnętrzna:\nRotenso CU-UE9PKE ","Bud. Nr 29\nKompleks 4204",1,1,"NIE WYSTĘPUJĄ",0,0,"TAK",{"v":0,"d":"0.00 zł"},null,{"$f":"Wykaz_zapasów5[[#This Row],[Koszt za I przegląd\nbrutto]]+Wykaz_zapasów5[[#This Row],[Koszt za II przegląd\nbrutto]]","v":{"v":0,"d":"0.00 zł"}},"NIE"]
[null,null,"Jednostka wewnętrzna: \nRotenso CS-UE9PKE","Bud. Nr 29\nKompleks 4204",1,1,"NIE WYSTĘPUJĄ",0,0,"TAK",{"v":0,"d":"0.00 zł"},null,{"$f":"Wykaz_zapasów5[[#This Row],[Koszt za I przegląd\nbrutto]]+Wykaz_zapasów5[[#This Row],[Koszt za II przegląd\nbrutto]]","v":{"v":0,"d":"0.00 zł"}},"NIE"]
[null,"Klimatyzator przenośny","KFR 66 GW Chico","Bud. Nr 2\nKompleks 936 - Witkowo",1,1,"NIE WYSTĘPUJĄ",0,0,"TAK",{"v":0,"d":"0.00 zł"},null,{"$f":"Wykaz_zapasów5[[#This Row],[Koszt za I przegląd\nbrutto]]+Wykaz_zapasów5[[#This Row],[Koszt za II przegląd\nbrutto]]","v":{"v":0,"d":"0.00 zł"}},"NIE"]
[null,"Klimatyzator przenośny","EXO12HN1W1 ","Bud. WKU\nKalisz\npom. 207, 204",2,1,"NIE WYSTĘPUJĄ",0,0,"TAK",{"v":0,"d":"0.00 zł"},null,{"$f":"Wykaz_zapasów5[[#This Row],[Koszt za I przegląd\nbrutto]]+Wykaz_zapasów5[[#This Row],[Koszt za II przegląd\nbrutto]]","v":{"v":0,"d":"0.00 zł"}},"NIE"]
[null,"Klimatyzator przenośny","WARMTEC KP 35W","Bud. WKU\nKalisz\npom. 5, 6, 10",3,1,"NIE WYSTĘPUJĄ",0,0,"TAK",{"v":0,"d":"0.00 zł"},null,{"$f":"Wykaz_zapasów5[[#This Row],[Koszt za I przegląd\nbrutto]]+Wykaz_zapasów5[[#This Row],[Koszt za II przegląd\nbrutto]]","v":{"v":0,"d":"0.00 zł"}},"NIE"]
[null,"Klimatyzator przenośny","ROTENSO GIRU G35W ","Bud. WKU\nKalisz\npom. 104, 205, 208",3,1,"NIE WYSTĘPUJĄ",0,0,"TAK",{"v":0,"d":"0.00 zł"},null,{"$f":"Wykaz_zapasów5[[#This Row],[Koszt za I przegląd\nbrutto]]+Wykaz_zapasów5[[#This Row],[Koszt za II przegląd\nbrutto]]","v":{"v":0,"d":"0.00 zł"}},"NIE"]
[null,"Klimatyzator","TOSHIBA                                    RAS-13 BKU E/BAV-E","16 brl Jarocin",1,1,"NIE WYSTĘPUJĄ",0,0,"TAK",{"v":0,"d":"0.00 zł"},null,{"$f":"Wykaz_zapasów5[[#This Row],[Koszt za I przegląd\nbrutto]]+Wykaz_zapasów5[[#This Row],[Koszt za II przegląd\nbrutto]]","v":{"v":0,"d":"0.00 zł"}},"TAK"]
[null,"Klimatyzator","LG                                   410KAVH05Q87","16 brl Jarocin",1,1,"NIE WYSTĘPUJĄ",0,0,"TAK",{"v":0,"d":"0.00 zł"},null,{"$f":"Wykaz_zapasów5[[#This Row],[Koszt za I przegląd\nbrutto]]+Wykaz_zapasów5[[#This Row],[Koszt za II przegląd\nbrutto]]","v":{"v":0,"d":"0.00 zł"}},"NIE"]
[null,"Klimatyzator przypodłogowy","Jednostka zewnetrzna:\nMIDEA KUMEE-\n24N8-CI/X4-24N8DO-O\ns/n 341E49068081A130850009","16 brl Jarocin",1,1,"NIE WYSTĘPUJĄ",0,0,"TAK",{"v":0,"d":"0.00 zł"},null,{"$f":"Wykaz_zapasów5[[#This Row],[Koszt za I przegląd\nbrutto]]+Wykaz_zapasów5[[#This Row],[Koszt za II przegląd\nbrutto]]","v":{"v":0,"d":"0.00 zł"}},"NIE"]
[null,null,"Jednostka wewnętrzna:\nMIDEA KUMEE-\n24N8-CI/X4-24N8DO-O\ns/n 341E49068081A130850009","16 brl Jarocin",1,1,"NIE WYSTĘPUJĄ",0,0,"TAK",{"v":0,"d":"0.00 zł"},null,{"$f":"Wykaz_zapasów5[[#This Row],[Koszt za I przegląd\nbrutto]]+Wykaz_zapasów5[[#This Row],[Koszt za II przegląd\nbrutto]]","v":{"v":0,"d":"0.00 zł"}},"NIE"]
[null,"Klimatyzator przypodłogowy","Jednostka zewnętrzna:\nMIDEA KUMEE-\n24N8-CI/X4-24N8DO-O\ns/n 341D735000217160160003","16 brl Jarocin",1,1,"NIE WYSTĘPUJĄ",0,0,"TAK",{"v":0,"d":"0.00 zł"},null,{"$f":"Wykaz_zapasów5[[#This Row],[Koszt za I przegląd\nbrutto]]+Wykaz_zapasów5[[#This Row],[Koszt za II przegląd\nbrutto]]","v":{"v":0,"d":"0.00 zł"}},"NIE"]
[null,null,"Jednostka wewnętrzna:\nMIDEA KUMEE-\n24N8-CI/X4-24N8DO-O\ns/n\n341D735000217160160003","16 brl Jarocin",1,1,"NIE WYSTĘPUJĄ",0,0,"TAK",{"v":0,"d":"0.00 zł"},null,{"$f":"Wykaz_zapasów5[[#This Row],[Koszt za I przegląd\nbrutto]]+Wykaz_zapasów5[[#This Row],[Koszt za II przegląd\nbrutto]]","v":{"v":0,"d":"0.00 zł"}},"NIE"]
[null,"Klimatyzator Split ","Jednostka zewnętrzna:\nGREE\nGWH12AGBXB\ns/n 63249915650","16 brl Jarocin\nBud. 2/Dowódca batalionu",1,1,"NIE WYSTĘPUJĄ",0,0,"TAK",{"v":0,"d":"0.00 zł"},null,{"$f":"Wykaz_zapasów5[[#This Row],[Koszt za I przegląd\nbrutto]]+Wykaz_zapasów5[[#This Row],[Koszt za II przegląd\nbrutto]]","v":{"v":0,"d":"0.00 zł"}},"TAK\nKwiecień/2026"]
[null,null,"Jednostka wewnętrzna:\nGREE\nGWH12AGBXB-K6DNA4A/I\ns/n 63249915649","16 brl Jarocin\nBud. 2/Dowódca batalionu",1,1,"NIE WYSTĘPUJĄ",0,0,"TAK",{"v":0,"d":"0.00 zł"},null,{"$f":"Wykaz_zapasów5[[#This Row],[Koszt za I przegląd\nbrutto]]+Wykaz_zapasów5[[#This Row],[Koszt za II przegląd\nbrutto]]","v":{"v":0,"d":"0.00 zł"}},"TAK\nKwiecień/2026"]
[null,"Klimatyzator przenośny","EXO12HN1W1","16 brl Jarocin",4,1,"NIE WYSTĘPUJĄ",null,0,"TAK",{"v":0,"d":"0.00 zł"},null,{"$f":"Wykaz_zapasów5[[#This Row],[Koszt za I przegląd\nbrutto]]+Wykaz_zapasów5[[#This Row],[Koszt za II przegląd\nbrutto]]","v":{"v":0,"d":"0.00 zł"}},"NIE"]
[null,"Rekuperator","VENTUS                                      VUT 1000 PE EC R ","16 brl Jarocin",1,1,"G4 647x274x27\nG4 647x274x40","1\n1","dwa razy do roku","TAK",{"v":0,"d":"0.00 zł"},null,{"$f":"Wykaz_zapasów5[[#This Row],[Koszt za I przegląd\nbrutto]]+Wykaz_zapasów5[[#This Row],[Koszt za II przegląd\nbrutto]]","v":{"v":0,"d":"0.00 zł"}},"NIE"]
[null,"Rekuperator","ZEFIR","16 brl Jarocin",1,1,"380x280x47",1,"dwa razy do roku","TAK",{"v":0,"d":"0.00 zł"},null,{"$f":"Wykaz_zapasów5[[#This Row],[Koszt za I przegląd\nbrutto]]+Wykaz_zapasów5[[#This Row],[Koszt za II przegląd\nbrutto]]","v":{"v":0,"d":"0.00 zł"}},"TAK"]
[null,"Klimatyzator przenośny","RAVANSON\nSL80C","16 brl Jarocin",1,1,"NIE WYSTĘPUJĄ",0,0,"TAK",{"v":0,"d":"0.00 zł"},null,{"$f":"Wykaz_zapasów5[[#This Row],[Koszt za I przegląd\nbrutto]]+Wykaz_zapasów5[[#This Row],[Koszt za II przegląd\nbrutto]]","v":{"v":0,"d":"0.00 zł"}},"NIE"]
[null,"Klimatzyator ścienny ","CHIGO\nKFR-70GW/X1c (S94A)","312 krt Ruchocinek\n8-11/4577",1,1,"NIE WYSTĘPUJĄ",0,0,"TAK",{"v":0,"d":"0.00 zł"},null,{"$f":"Wykaz_zapasów5[[#This Row],[Koszt za I przegląd\nbrutto]]+Wykaz_zapasów5[[#This Row],[Koszt za II przegląd\nbrutto]]","v":{"v":0,"d":"0.00 zł"}},"NIE"]
[null,"Klimatyzator okienny ","IDI                                        MWD09-1DCEH","312 krt Ruchocinek\n8-11/4577",30,1,"NIE WYSTĘPUJĄ",0,0,"TAK",{"v":0,"d":"0.00 zł"},null,{"$f":"Wykaz_zapasów5[[#This Row],[Koszt za I przegląd\nbrutto]]+Wykaz_zapasów5[[#This Row],[Koszt za II przegląd\nbrutto]]","v":{"v":0,"d":"0.00 zł"}},"NIE"]
[null,"Klimatyzator okienny ","FEDDERS","312 krt Ruchocinek\n8-11/4577",1,1,"NIE WYSTĘPUJĄ",0,0,"TAK",{"v":0,"d":"0.00 zł"},null,{"$f":"Wykaz_zapasów5[[#This Row],[Koszt za I przegląd\nbrutto]]+Wykaz_zapasów5[[#This Row],[Koszt za II przegląd\nbrutto]]","v":{"v":0,"d":"0.00 zł"}},"NIE"]
[null,"Centrala wentylacyjna","Clima Gold Opitma \nNW-2-P/WO/RE-CHf/He-T1/T1-We-2000/980                            \ns/n C700021","312 krt Ruchocinek\nBud. Nr.1/4577",1,1,{"$f":"IFERROR(VLOOKUP(Wykaz_zapasów5[[#This Row],[Ilość przeglądów]],#REF!,3,FALSE),\"\")","v":""},null,"dwa razy do roku","TAK",{"v":0,"d":"0.00 zł"},null,{"$f":"Wykaz_zapasów5[[#This Row],[Koszt za I przegląd\nbrutto]]+Wykaz_zapasów5[[#This Row],[Koszt za II przegląd\nbrutto]]","v":{"v":0,"d":"0.00 zł"}},"TAK"]
[null,"Centrala wentylacyjna","Clima Gold Opal Compact\nPP2-P/R-He \ns/n J1856/21","312 krt Ruchocinek\nBud. Nr.1/4577",1,1,{"$f":"IFERROR(VLOOKUP(Wykaz_zapasów5[[#This Row],[Ilość przeglądów]],#REF!,3,FALSE),\"\")","v":""},null,"dwa razy do roku","TAK",{"v":0,"d":"0.00 zł"},null,{"$f":"Wykaz_zapasów5[[#This Row],[Koszt za I przegląd\nbrutto]]+Wykaz_zapasów5[[#This Row],[Koszt za II przegląd\nbrutto]]","v":{"v":0,"d":"0.00 zł"}},"TAK"]
[null,"Filtrowentylacja","Wentylator promieniowy\nblok filtrowentylacyjny\nWPO-12,5 RD 0 \ns/n 2123 ","312 krt Ruchocinek\nBud. Nr.1/4577\npom. 14",1,1,{"$f":"IFERROR(VLOOKUP(Wykaz_zapasów5[[#This Row],[Ilość przeglądów]],#REF!,3,FALSE),\"\")","v":""},{"$nulls":3},{"v":0,"d":"0.00 zł"},null,{"$f":"Wykaz_zapasów5[[#This Row],[Koszt za I przegląd\nbrutto]]+Wykaz_zapasów5[[#This Row],[Koszt za II przegląd\nbrutto]]","v":{"v":0,"d":"0.00 zł"}},"TAK"]
[null,null,"Urządzenie filtrowentylacyjne \nUFP-3001C z fltropochłaniaczem FP-300P\nsn. 001","312 krt Ruchocinek\nBud. Nr.1/4577\npom. 14",1,1,{"$f":"IFERROR(VLOOKUP(Wykaz_zapasów5[[#This Row],[Ilość przeglądów]],#REF!,3,FALSE),\"\")","v":""},{"$nulls":3},{"v":0,"d":"0.00 zł"},null,{"$f":"Wykaz_zapasów5[[#This Row],[Koszt za I przegląd\nbrutto]]+Wykaz_zapasów5[[#This Row],[Koszt za II przegląd\nbrutto]]","v":{"v":0,"d":"0.00 zł"}},"TAK"]
[null,"Klimatyzator VRF","Jednostka zewnętrzna:\nLG ARUN100LLS0\ns/N 36589-10301C53C106UH\npłn. Ściana elewacji","312 krt Ruchocinek\nBud. Nr.1/4577\npłn. Ściana elewacji",1,1,"NIE WYSTĘPUJĄ",0,0,"TAK",{"v":0,"d":"0.00 zł"},null,{"$f":"Wykaz_zapasów5[[#This Row],[Koszt za I przegląd\nbrutto]]+Wykaz_zapasów5[[#This Row],[Koszt za II przegląd\nbrutto]]","v":{"v":0,"d":"0.00 zł"}},"TAK"]
[null,null,"Chłodnica dla centrali CN1W1","312 krt Ruchocinek\nBud. Nr.1/4577",1,1,"NIE WYSTĘPUJĄ",0,0,"TAK",{"v":0,"d":"0.00 zł"},null,{"$f":"Wykaz_zapasów5[[#This Row],[Koszt za I przegląd\nbrutto]]+Wykaz_zapasów5[[#This Row],[Koszt za II przegląd\nbrutto]]","v":{"v":0,"d":"0.00 zł"}},"TAK"]
[null,"Klimatyzator VRF","Jednostka zewnętrzna: \nLG ARUM100LTE5 \nsn. 94894-10304Y27-C10BXN","312 krt Ruchocinek\nBud. Nr.1/4577\npłn. Ściana elewacji",1,1,"NIE WYSTĘPUJĄ",0,0,"TAK",{"v":0,"d":"0.00 zł"},null,{"$f":"Wykaz_zapasów5[[#This Row],[Koszt za I przegląd\nbrutto]]+Wykaz_zapasów5[[#This Row],[Koszt za II przegląd\nbrutto]]","v":{"v":0,"d":"0.00 zł"}},"TAK"]
[null,1,"Jednostki wewnętrzne:\nLG ARNU05GSJC4\ns/n 280021021W641","312 krt Ruchocinek\nBud. Nr.1/4577\npom. 10.1",1,1,"NIE WYSTĘPUJĄ",0,0,"TAK",{"v":0,"d":"0.00 zł"},null,{"$f":"Wykaz_zapasów5[[#This Row],[Koszt za I przegląd\nbrutto]]+Wykaz_zapasów5[[#This Row],[Koszt za II przegląd\nbrutto]]","v":{"v":0,"d":"0.00 zł"}},"TAK"]
[null,2,"Jednostki wewnętrzne:\nLG ARNU05GSJC4\ns/n 280021021W627","312 krt Ruchocinek\nBud. Nr.1/4577\npom. 8",1,1,"NIE WYSTĘPUJĄ",0,0,"TAK",{"v":0,"d":"0.00 zł"},null,{"$f":"Wykaz_zapasów5[[#This Row],[Koszt za I przegląd\nbrutto]]+Wykaz_zapasów5[[#This Row],[Koszt za II przegląd\nbrutto]]","v":{"v":0,"d":"0.00 zł"}},"TAK"]
[null,3,"Jednostki wewnętrzne:\nLG ARNU05GSJC4\ns/n 280021021W639","312 krt Ruchocinek\nBud. Nr.1/4577\npom. 8.1",1,1,"NIE WYSTĘPUJĄ",0,0,"TAK",{"v":0,"d":"0.00 zł"},null,{"$f":"Wykaz_zapasów5[[#This Row],[Koszt za I przegląd\nbrutto]]+Wykaz_zapasów5[[#This Row],[Koszt za II przegląd\nbrutto]]","v":{"v":0,"d":"0.00 zł"}},"TAK"]
[null,4,"Jednostki wewnętrzne:\nLG ARNU05GSJC4\ns/n 280021021W634","312 krt Ruchocinek\nBud. Nr.1/4577\npom. 10.2",1,1,"NIE WYSTĘPUJĄ",0,0,"TAK",{"v":0,"d":"0.00 zł"},null,{"$f":"Wykaz_zapasów5[[#This Row],[Koszt za I przegląd\nbrutto]]+Wykaz_zapasów5[[#This Row],[Koszt za II przegląd\nbrutto]]","v":{"v":0,"d":"0.00 zł"}},"TAK"]
[null,5,"Jednostki wewnętrzne:\nLG ARNU05GSJC4\ns/n 280021021W626","312 krt Ruchocinek\nBud. Nr.1/4577\npom. 10.3",1,1,"NIE WYSTĘPUJĄ",0,0,"TAK",{"v":0,"d":"0.00 zł"},null,{"$f":"Wykaz_zapasów5[[#This Row],[Koszt za I przegląd\nbrutto]]+Wykaz_zapasów5[[#This Row],[Koszt za II przegląd\nbrutto]]","v":{"v":0,"d":"0.00 zł"}},"TAK"]
[null,6,"Jednostki wewnętrzne:\nLG ARNU05GSJC4\ns/n 280021021W673","312 krt Ruchocinek\nBud. Nr.1/4577\npom. 11.3",1,1,"NIE WYSTĘPUJĄ",0,0,"TAK",{"v":0,"d":"0.00 zł"},null,{"$f":"Wykaz_zapasów5[[#This Row],[Koszt za I przegląd\nbrutto]]+Wykaz_zapasów5[[#This Row],[Koszt za II przegląd\nbrutto]]","v":{"v":0,"d":"0.00 zł"}},"TAK"]
[null,7,"Jednostki wewnętrzne:\nLG ARNU05GSJC4\ns/n 280021021W640","312 krt Ruchocinek\nBud. Nr.1/4577\npom. 11.2",1,1,"NIE WYSTĘPUJĄ",0,0,"TAK",{"v":0,"d":"0.00 zł"},null,{"$f":"Wykaz_zapasów5[[#This Row],[Koszt za I przegląd\nbrutto]]+Wykaz_zapasów5[[#This Row],[Koszt za II przegląd\nbrutto]]","v":{"v":0,"d":"0.00 zł"}},"TAK"]
[null,8,"Jednostki wewnętrzne:\nLG ARNU05GSJC4\ns/n 280021021W629","312 krt Ruchocinek\nBud. Nr.1/4577\npom. 12.3",1,1,"NIE WYSTĘPUJĄ",0,0,"TAK",{"v":0,"d":"0.00 zł"},null,{"$f":"Wykaz_zapasów5[[#This Row],[Koszt za I przegląd\nbrutto]]+Wykaz_zapasów5[[#This Row],[Koszt za II przegląd\nbrutto]]","v":{"v":0,"d":"0.00 zł"}},"TAK"]
[null,9,"Jednostki wewnętrzne:\nLG ARNU05GSJC4\ns/n 280021021W628","312 krt Ruchocinek\nBud. Nr.1/4577\npom. 16.3",1,1,"NIE WYSTĘPUJĄ",0,0,"TAK",{"v":0,"d":"0.00 zł"},null,{"$f":"Wykaz_zapasów5[[#This Row],[Koszt za I przegląd\nbrutto]]+Wykaz_zapasów5[[#This Row],[Koszt za II przegląd\nbrutto]]","v":{"v":0,"d":"0.00 zł"}},"TAK"]
[null,10,"Jednostki wewnętrzne:\nLG ARNU05GSJC4\ns/n 280021021W632","312 krt Ruchocinek\nBud. Nr.1/4577\npom. 12.2",1,1,"NIE WYSTĘPUJĄ",0,0,"TAK",{"v":0,"d":"0.00 zł"},null,{"$f":"Wykaz_zapasów5[[#This Row],[Koszt za I przegląd\nbrutto]]+Wykaz_zapasów5[[#This Row],[Koszt za II przegląd\nbrutto]]","v":{"v":0,"d":"0.00 zł"}},"TAK"]
[null,11,"Jednostki wewnętrzne:\nLG ARNU05GSJC4\ns/n 280021021W637","312 krt Ruchocinek\nBud. Nr.1/4577\npom. 12.1",1,1,"NIE WYSTĘPUJĄ",0,0,"TAK",{"v":0,"d":"0.00 zł"},null,{"$f":"Wykaz_zapasów5[[#This Row],[Koszt za I przegląd\nbrutto]]+Wykaz_zapasów5[[#This Row],[Koszt za II przegląd\nbrutto]]","v":{"v":0,"d":"0.00 zł"}},"TAK"]
[null,12,"Jednostki wewnętrzne:\nLG ARNU05GSJC4\ns/n 280021021W633","312 krt Ruchocinek\nBud. Nr.1/4577\npom. 16.2",1,1,"NIE WYSTĘPUJĄ",0,0,"TAK",{"v":0,"d":"0.00 zł"},null,{"$f":"Wykaz_zapasów5[[#This Row],[Koszt za I przegląd\nbrutto]]+Wykaz_zapasów5[[#This Row],[Koszt za II przegląd\nbrutto]]","v":{"v":0,"d":"0.00 zł"}},"TAK"]
[null,13,"Jednostki wewnętrzne:\nLG ARNU05GSJC4\ns/n 280021021W674","312 krt Ruchocinek\nBud. Nr.1/4577\npom. 15.3",1,1,"NIE WYSTĘPUJĄ",0,0,"TAK",{"v":0,"d":"0.00 zł"},null,{"$f":"Wykaz_zapasów5[[#This Row],[Koszt za I przegląd\nbrutto]]+Wykaz_zapasów5[[#This Row],[Koszt za II przegląd\nbrutto]]","v":{"v":0,"d":"0.00 zł"}},"TAK"]
[null,14,"Jednostki wewnętrzne:\nLG ARNU05GSJC4\ns/n 280021021W630","312 krt Ruchocinek\nBud. Nr.1/4577\npom. 15.1",1,1,"NIE WYSTĘPUJĄ",0,0,"TAK",{"v":0,"d":"0.00 zł"},null,{"$f":"Wykaz_zapasów5[[#This Row],[Koszt za I przegląd\nbrutto]]+Wykaz_zapasów5[[#This Row],[Koszt za II przegląd\nbrutto]]","v":{"v":0,"d":"0.00 zł"}},"TAK"]
[null,15,"Jednostki wewnętrzne:\nLG ARNU05GSJC4\ns/n 280021021W635","312 krt Ruchocinek\nBud. Nr.1/4577\npom. 2",1,1,"NIE WYSTĘPUJĄ",0,0,"TAK",{"v":0,"d":"0.00 zł"},null,{"$f":"Wykaz_zapasów5[[#This Row],[Koszt za I przegląd\nbrutto]]+Wykaz_zapasów5[[#This Row],[Koszt za II przegląd\nbrutto]]","v":{"v":0,"d":"0.00 zł"}},"TAK"]
[null,16,"Jednostki wewnętrzne:\nLG ARNU05GSJC4\ns/n 280160120GZ32","312 krt Ruchocinek\nBud. Nr.1/4577\npom. 5",1,1,"NIE WYSTĘPUJĄ",0,0,"TAK",{"v":0,"d":"0.00 zł"},null,{"$f":"Wykaz_zapasów5[[#This Row],[Koszt za I przegląd\nbrutto]]+Wykaz_zapasów5[[#This Row],[Koszt za II przegląd\nbrutto]]","v":{"v":0,"d":"0.00 zł"}},"TAK"]
[null,17,"Jednostki wewnętrzne:\nLG ARNU05GSJC4\ns/n 280160120GZ35","312 krt Ruchocinek\nBud. Nr.1/4577\npom. 5",1,1,"NIE WYSTĘPUJĄ",0,0,"TAK",{"v":0,"d":"0.00 zł"},null,{"$f":"Wykaz_zapasów5[[#This Row],[Koszt za I przegląd\nbrutto]]+Wykaz_zapasów5[[#This Row],[Koszt za II przegląd\nbrutto]]","v":{"v":0,"d":"0.00 zł"}},"TAK"]
[null,"Klimatyzacja Split ","Jednostka zewnętrzna:\nLG ","312 krt Ruchocinek\nBud. Nr.1/4577",1,1,"NIE WYSTĘPUJĄ",0,0,"TAK",{"v":0,"d":"0.00 zł"},null,{"$f":"Wykaz_zapasów5[[#This Row],[Koszt za I przegląd\nbrutto]]+Wykaz_zapasów5[[#This Row],[Koszt za II przegląd\nbrutto]]","v":{"v":0,"d":"0.00 zł"}},"TAK"]
[null,null,"Jednostka wewnętrzna:\nLG","312 krt Ruchocinek\nBud. Nr.1/4577",1,1,"NIE WYSTĘPUJĄ",0,0,"TAK",{"v":0,"d":"0.00 zł"},null,{"$f":"Wykaz_zapasów5[[#This Row],[Koszt za I przegląd\nbrutto]]+Wykaz_zapasów5[[#This Row],[Koszt za II przegląd\nbrutto]]","v":{"v":0,"d":"0.00 zł"}},"TAK"]
[null,"Klimatyzacja Split ","Jednostka zewnętrzna:\nLG ","312 krt Ruchocinek\nBud. Nr.1/4577",1,1,"NIE WYSTĘPUJĄ",0,0,"TAK",{"v":0,"d":"0.00 zł"},null,{"$f":"Wykaz_zapasów5[[#This Row],[Koszt za I przegląd\nbrutto]]+Wykaz_zapasów5[[#This Row],[Koszt za II przegląd\nbrutto]]","v":{"v":0,"d":"0.00 zł"}},"TAK"]
[null,null,"Jednostka wewnętrzna:\nLG","312 krt Ruchocinek\nBud. Nr.1/4577",1,1,"NIE WYSTĘPUJĄ",0,0,"TAK",{"v":0,"d":"0.00 zł"},null,{"$f":"Wykaz_zapasów5[[#This Row],[Koszt za I przegląd\nbrutto]]+Wykaz_zapasów5[[#This Row],[Koszt za II przegląd\nbrutto]]","v":{"v":0,"d":"0.00 zł"}},"TAK"]
[null,"Klimatyzator przenośny","ZIBRO\nP 125","WKU Konin",3,1,"NIE WYSTĘPUJĄ",0,0,"TAK",{"v":0,"d":"0.00 zł"},null,{"$f":"Wykaz_zapasów5[[#This Row],[Koszt za I przegląd\nbrutto]]+Wykaz_zapasów5[[#This Row],[Koszt za II przegląd\nbrutto]]","v":{"v":0,"d":"0.00 zł"}},"NIE"]
[null,null,"CHIGO \n3.5 KW","WKU Konin",2,1,"NIE WYSTĘPUJĄ",0,0,"TAK",{"v":0,"d":"0.00 zł"},null,{"$f":"Wykaz_zapasów5[[#This Row],[Koszt za I przegląd\nbrutto]]+Wykaz_zapasów5[[#This Row],[Koszt za II przegląd\nbrutto]]","v":{"v":0,"d":"0.00 zł"}},"NIE"]
[null,"Klimatyzacja Multi KL 1","Jednostka zewętrzna:\nMIDEA M4O-36FN8-QH","TUREK",1,2,"NIE WYSTĘPUJĄ",0,0,"TAK",null,null,{"$f":"Wykaz_zapasów5[[#This Row],[Koszt za I przegląd\nbrutto]]+Wykaz_zapasów5[[#This Row],[Koszt za II przegląd\nbrutto]]","v":{"v":0,"d":"0.00 zł"}},"TAK"]
[null,null,"Jednostka wewnętrzna:\nMIDEA QNFMO\nKASETOWY","TUREK\npom. Sala wykładowa\nparter",3,2,"NIE WYSTĘPUJĄ",0,0,"TAK",null,null,{"$f":"Wykaz_zapasów5[[#This Row],[Koszt za I przegląd\nbrutto]]+Wykaz_zapasów5[[#This Row],[Koszt za II przegląd\nbrutto]]","v":{"v":0,"d":"0.00 zł"}},"TAK"]
[null,null,"Jednostka wewnętrzna:\nMIDEA AGBP\nŚCIENNY","TUREK\npom. Służby\nparter",1,2,"NIE WYSTĘPUJĄ",0,0,"TAK",null,null,{"$f":"Wykaz_zapasów5[[#This Row],[Koszt za I przegląd\nbrutto]]+Wykaz_zapasów5[[#This Row],[Koszt za II przegląd\nbrutto]]","v":{"v":0,"d":"0.00 zł"}},"TAK"]
[null,"Klimatyzacja Multi KL 2","Jednostka zewnętrzna:\nMIDEA M4O-27FN8-QH","TUREK",1,2,"NIE WYSTĘPUJĄ",0,0,"TAK",null,null,{"$f":"Wykaz_zapasów5[[#This Row],[Koszt za I przegląd\nbrutto]]+Wykaz_zapasów5[[#This Row],[Koszt za II przegląd\nbrutto]]","v":{"v":0,"d":"0.00 zł"}},"TAK"]
[null,null,"Jednostka wewnętrzna:\nMIDEA AGBP\nŚCIENNY","TUREK\npom. Sala odpraw\nI piętro",3,2,"NIE WYSTĘPUJĄ",0,0,"TAK",null,null,{"$f":"Wykaz_zapasów5[[#This Row],[Koszt za I przegląd\nbrutto]]+Wykaz_zapasów5[[#This Row],[Koszt za II przegląd\nbrutto]]","v":{"v":0,"d":"0.00 zł"}},"TAK"]
[null,"Klimatyzacja Split KL 4","Jednostka zewnętrzna:\nMIDEA X1BP-12N8D0","TUREK",1,2,"NIE WYSTĘPUJĄ",0,0,"TAK",null,null,{"$f":"Wykaz_zapasów5[[#This Row],[Koszt za I przegląd\nbrutto]]+Wykaz_zapasów5[[#This Row],[Koszt za II przegląd\nbrutto]]","v":{"v":0,"d":"0.00 zł"}},"TAK"]
[null,null,"Jednostka wewnętrzna:\nMIDEA AGBP\nŚCIENNY","TUREK\npom. Serwerowni",1,2,"NIE WYSTĘPUJĄ",0,0,"TAK",null,null,{"$f":"Wykaz_zapasów5[[#This Row],[Koszt za I przegląd\nbrutto]]+Wykaz_zapasów5[[#This Row],[Koszt za II przegląd\nbrutto]]","v":{"v":0,"d":"0.00 zł"}},"TAK"]
[null,"Klimatyzacja Split KL 4A","Jednostka zewnętrzna:\nMIDEA X1BP-12N8D0","TUREK",1,2,"NIE WYSTĘPUJĄ",0,0,"TAK",null,null,{"$f":"Wykaz_zapasów5[[#This Row],[Koszt za I przegląd\nbrutto]]+Wykaz_zapasów5[[#This Row],[Koszt za II przegląd\nbrutto]]","v":{"v":0,"d":"0.00 zł"}},"TAK"]
[null,null,"Jednostka wewnętrzna:\nMIDEA AGBP\nŚCIENNY","TUREK\npom. Serwerowni",1,2,"NIE WYSTĘPUJĄ",0,0,"TAK",null,null,{"$f":"Wykaz_zapasów5[[#This Row],[Koszt za I przegląd\nbrutto]]+Wykaz_zapasów5[[#This Row],[Koszt za II przegląd\nbrutto]]","v":{"v":0,"d":"0.00 zł"}},"TAK"]
[null,"Centrala wentylacyjna układu NW1","Clima Gold N-W Z ODZYSKIEM CIEPŁA\nOPAL COMPACT WO 6-P/R-Hw","TUREK\npom. Jadalni 0.05",1,2,"Kasetowy M5 100x935x460",2,2,"NIE",null,null,{"$f":"Wykaz_zapasów5[[#This Row],[Koszt za I przegląd\nbrutto]]+Wykaz_zapasów5[[#This Row],[Koszt za II przegląd\nbrutto]]","v":{"v":0,"d":"0.00 zł"}},"TAK"]
[null,"Centrala wentylacyjna układu NW2","KLIMOR \nZ ODZYSKIEM CIEPŁA\nBLAST 360E","TUREK\npom. Suszarni 1.24\nI piętro",1,2,"ePM 50% 160x500x25",2,2,"NIE",null,null,{"$f":"Wykaz_zapasów5[[#This Row],[Koszt za I przegląd\nbrutto]]+Wykaz_zapasów5[[#This Row],[Koszt za II przegląd\nbrutto]]","v":{"v":0,"d":"0.00 zł"}},"TAK"]
[null,"Centrala wentylacyjna układu NW3","KLIMOR \nZ ODZYSKIEM CIEPŁA\nBLAST 360E","TUREK\npom. Szatnia 1.23\nI piętro",1,2,"ePM 50% 160x500x25",2,2,"NIE",null,null,{"$f":"Wykaz_zapasów5[[#This Row],[Koszt za I przegląd\nbrutto]]+Wykaz_zapasów5[[#This Row],[Koszt za II przegląd\nbrutto]]","v":{"v":0,"d":"0.00 zł"}},"TAK"]
[null,"Centrala wentylacyjna układu NW4","KLIMOR \nZ ODZYSKIEM CIEPŁA\nBLAST 630E","TUREK\npom. Szatnia 2.41\nII piętro",1,2,"ePM 50% 160x500x25",2,2,"NIE",null,null,{"$f":"Wykaz_zapasów5[[#This Row],[Koszt za I przegląd\nbrutto]]+Wykaz_zapasów5[[#This Row],[Koszt za II przegląd\nbrutto]]","v":{"v":0,"d":"0.00 zł"}},"TAK"]
[null,"Centrala wentylacyjna układu NW","Clima Gold N-W Z ODZYSKIEM CIEPŁA\nOPAL COMPACT WO 6-P/R-Hw","TUREK",1,2,"Kasetowy M5 100x935x460",2,2,"NIE",null,null,{"$f":"Wykaz_zapasów5[[#This Row],[Koszt za I przegląd\nbrutto]]+Wykaz_zapasów5[[#This Row],[Koszt za II przegląd\nbrutto]]","v":{"v":0,"d":"0.00 zł"}},"TAK"]
[null,"Centrala wentylacyjna układu NW","Clima Gold N-W Z ODZYSKIEM CIEPŁA\nOPAL COMPACT WO 6-P/R-Hw","TUREK",1,2,"Kasetowy M5 100x935x460",2,2,"NIE",null,null,{"$f":"Wykaz_zapasów5[[#This Row],[Koszt za I przegląd\nbrutto]]+Wykaz_zapasów5[[#This Row],[Koszt za II przegląd\nbrutto]]","v":{"v":0,"d":"0.00 zł"}},"TAK"]
[null,"Centrala wentylacyjna układu NW","Clima Gold N-W Z ODZYSKIEM CIEPŁA\nOPAL COMPACT WO 6-P/R-Hw","TUREK",1,2,"Kasetowy M5 100x935x460",2,2,"NIE",null,null,{"$f":"Wykaz_zapasów5[[#This Row],[Koszt za I przegląd\nbrutto]]+Wykaz_zapasów5[[#This Row],[Koszt za II przegląd\nbrutto]]","v":{"v":0,"d":"0.00 zł"}},"TAK"]
[null,"Centrala wentylacyjna układu NW","Clima Gold N-W Z ODZYSKIEM CIEPŁA\nOPAL COMPACT WO 6-P/R-Hw","TUREK",1,2,"Kasetowy M5 100x935x460",2,2,"NIE",null,null,{"$f":"Wykaz_zapasów5[[#This Row],[Koszt za I przegląd\nbrutto]]+Wykaz_zapasów5[[#This Row],[Koszt za II przegląd\nbrutto]]","v":{"v":0,"d":"0.00 zł"}},"TAK"]
[null,"Centrala wentylacyjna układu NW","Clima Gold N-W Z ODZYSKIEM CIEPŁA\nOPAL COMPACT WO 6-P/R-Hw","TUREK",1,2,"Kasetowy M5 100x935x460",2,2,"NIE",null,null,{"$f":"Wykaz_zapasów5[[#This Row],[Koszt za I przegląd\nbrutto]]+Wykaz_zapasów5[[#This Row],[Koszt za II przegląd\nbrutto]]","v":{"v":0,"d":"0.00 zł"}},"TAK"]
[null,"Centrala wentylacyjna układu NW1","Clima Gold N-W Z ODZYSKIEM CIEPŁA\nOPAL COMPACT WO 6-P/R-Hw","TUREK",1,2,"Kasetowy M5 100x935x460",2,2,"NIE",null,null,{"$f":"Wykaz_zapasów5[[#This Row],[Koszt za I przegląd\nbrutto]]+Wykaz_zapasów5[[#This Row],[Koszt za II przegląd\nbrutto]]","v":{"v":0,"d":"0.00 zł"}},"TAK"]